Service Delivery Area(T),Service Delivery Team(T),ExpenditureGroup(T),Account(T),Supplier Name(T),Trans Date,Amount
"Communities, Customer & Commercial Services",Community Services,Supplies & Services,Grants To Voluntary Organis,1ST PRIORSLEE & ST GEORGES SCOUT GROUP,27/10/2023,500.00
Adult Social Care,ASC Prevention & Enablement,Transport-Related Expenditure,Taxi Costs,24X7 Ltd,24/10/2023,193.70
Adult Social Care,ASC Prevention & Enablement,Transport-Related Expenditure,Taxi Costs,24X7 Ltd,24/10/2023,193.70
Children�s Safeguarding & Family Support,Child Protection & Family Support,Transport-Related Expenditure,Taxi Costs,24X7 Ltd,26/10/2023,826.56
Children�s Safeguarding & Family Support,"Family Placements, Children in Care, Leaving Care & Emergency Duty Team",Transport-Related Expenditure,Taxi Costs,24X7 Ltd,12/10/2023,656.18
Children�s Safeguarding & Family Support,"Family Placements, Children in Care, Leaving Care & Emergency Duty Team",Transport-Related Expenditure,Taxi Costs,24X7 Ltd,12/10/2023,"1,807.04"
Children�s Safeguarding & Family Support,"Family Placements, Children in Care, Leaving Care & Emergency Duty Team",Transport-Related Expenditure,Taxi Costs,24X7 Ltd,12/10/2023,"2,187.90"
Children�s Safeguarding & Family Support,"Family Placements, Children in Care, Leaving Care & Emergency Duty Team",Transport-Related Expenditure,Taxi Costs,24X7 Ltd,12/10/2023,468.70
Education & Skills,SEND (0-25),Transport-Related Expenditure,Taxi Costs,24X7 Ltd,19/10/2023,"1,340.40"
Adult Social Care,Prevention & Independence - Older Adults & Disability,Supplies & Services,Legal Expenses,39 Essex Chambers,20/10/2023,500.00
Education & Skills,Consultancy & Advisory Services,Supplies & Services,Adult Flexi / Day Care,4 All Foundation,04/10/2023,"1,500.00"
Health & Wellbeing,Consultant in Public Health,Supplies & Services,Service Contracts,A Better Tomorrow C.I.C.,14/10/2023,"17,250.00"
Neighbourhood & Enforcement Services,Strategic Transport & Highway Network Management,Capital Expenditure,Payments to Contractor,A.R.M. Surveys Ltd,11/10/2023,"4,750.00"
Neighbourhood & Enforcement Services,Waste & Neighbourhood Services,Supplies & Services,Other Services,A.R.M. Surveys Ltd,09/10/2023,293.25
Neighbourhood & Enforcement Services,Waste & Neighbourhood Services,Supplies & Services,Other Services,A.R.M. Surveys Ltd,19/10/2023,"1,350.00"
Prosperity & Investment,Regeneration & Investment,Capital Expenditure,Payments to Contractor,A.R.M. Surveys Ltd,31/10/2023,204.00
"Communities, Customer & Commercial Services",Culture & Events,Supplies & Services,Crockery/Hardware/Light Equip,A1 BARSTUFF LTD,31/10/2023,159.96
Prosperity & Investment,BiT,Premises-Related Expenditure,R&M -Buildings DLO Charge,A1 Glass & Glazing Limited,09/10/2023,220.00
Prosperity & Investment,BiT,Premises-Related Expenditure,R&M -Buildings DLO Charge,A1 Glass & Glazing Limited,24/10/2023,170.00
Prosperity & Investment,BiT,Premises-Related Expenditure,R&M -Buildings DLO Charge,A1 Glass & Glazing Limited,24/10/2023,300.00
Prosperity & Investment,BiT,Premises-Related Expenditure,R&M -Buildings DLO Charge,A1 Glass & Glazing Limited,03/10/2023,"1,425.00"
Prosperity & Investment,BiT,Premises-Related Expenditure,R&M -Buildings DLO Charge,A1 Glass & Glazing Limited,18/10/2023,120.00
Prosperity & Investment,BiT,Premises-Related Expenditure,R&M -Buildings DLO Charge,A1 Glass & Glazing Limited,18/10/2023,375.00
Prosperity & Investment,BiT,Premises-Related Expenditure,R&M -Buildings DLO Charge,A1 Glass & Glazing Limited,03/10/2023,160.00
Prosperity & Investment,BiT,Premises-Related Expenditure,R&M -Buildings DLO Charge,A1 Glass & Glazing Limited,09/10/2023,220.00
Prosperity & Investment,BiT,Premises-Related Expenditure,R&M -Buildings DLO Charge,A1 Glass & Glazing Limited,18/10/2023,490.00
Prosperity & Investment,BiT,Premises-Related Expenditure,R&M -Buildings DLO Charge,A1 Glass & Glazing Limited,18/10/2023,200.00
Prosperity & Investment,BiT,Supplies & Services,Fees,A1 Glass & Glazing Limited,18/10/2023,170.00
Prosperity & Investment,BiT,Supplies & Services,Fees,A1 Glass & Glazing Limited,20/10/2023,"1,400.00"
Prosperity & Investment,BiT,Premises-Related Expenditure,R&M -Buildings DLO Charge,A1 Glass & Glazing Limited,03/10/2023,110.00
Prosperity & Investment,BiT,Premises-Related Expenditure,R&M -Buildings DLO Charge,A1 Glass & Glazing Limited,03/10/2023,200.00
Prosperity & Investment,BiT,Premises-Related Expenditure,R&M -Buildings DLO Charge,A1 Glass & Glazing Limited,03/10/2023,200.00
Prosperity & Investment,BiT,Premises-Related Expenditure,R&M -Buildings DLO Charge,A1 Glass & Glazing Limited,03/10/2023,240.00
Prosperity & Investment,BiT,Premises-Related Expenditure,R&M -Buildings DLO Charge,A1 Glass & Glazing Limited,03/10/2023,120.00
Prosperity & Investment,BiT,Premises-Related Expenditure,R&M -Buildings DLO Charge,A1 Glass & Glazing Limited,03/10/2023,200.00
Prosperity & Investment,BiT,Premises-Related Expenditure,R&M -Buildings DLO Charge,A1 Glass & Glazing Limited,03/10/2023,110.00
Prosperity & Investment,BiT,Premises-Related Expenditure,R&M -Buildings DLO Charge,A1 Glass & Glazing Limited,03/10/2023,140.00
Prosperity & Investment,BiT,Premises-Related Expenditure,R&M -Buildings DLO Charge,A1 Glass & Glazing Limited,03/10/2023,240.00
Prosperity & Investment,BiT,Premises-Related Expenditure,R&M -Buildings DLO Charge,A1 Glass & Glazing Limited,03/10/2023,360.00
Prosperity & Investment,Regeneration & Investment,Premises-Related Expenditure,R&M -Building Other,A1 Glass & Glazing Limited,27/10/2023,775.00
Finance & Human Resources,"Finance Manager (Business, Education & Care)",Employees,Professional Subs,AAT,18/10/2023,184.00
Health & Wellbeing,Consultant in Public Health,Supplies & Services,Sub Contractors,A Rapid Diagnostics Limited,11/10/2023,300.00
Health & Wellbeing,Consultant in Public Health,Supplies & Services,Sub Contractors,A Rapid Diagnostics Limited,11/10/2023,335.27
Health & Wellbeing,Consultant in Public Health,Supplies & Services,Sub Contractors,A Rapid Diagnostics Limited,11/10/2023,491.27
Health & Wellbeing,Consultant in Public Health,Supplies & Services,Sub Contractors,A Rapid Diagnostics Limited,11/10/2023,156.00
Health & Wellbeing,Consultant in Public Health,Supplies & Services,Sub Contractors,A Rapid Diagnostics Limited,11/10/2023,312.00
Health & Wellbeing,Consultant in Public Health,Supplies & Services,Sub Contractors,A Rapid Diagnostics Limited,11/10/2023,377.27
Health & Wellbeing,Consultant in Public Health,Supplies & Services,Sub Contractors,A Rapid Diagnostics Limited,11/10/2023,828.00
Health & Wellbeing,Consultant in Public Health,Supplies & Services,Sub Contractors,A Rapid Diagnostics Limited,11/10/2023,312.00
Health & Wellbeing,Consultant in Public Health,Supplies & Services,Sub Contractors,A Rapid Diagnostics Limited,11/10/2023,414.00
Education & Skills,SEND (0-25),Third Party Payments,DSG - High Needs Block,ABC DAY NURSERY HOLLINSWOOD ,16/10/2023,"2,659.23"
Adult Social Care,Prevention & Independence - Older Adults & Disability,Employees,Other Employee Costs,Ability Smart Ltd,06/10/2023,"3,919.99"
Education & Skills,SEND (0-25),Third Party Payments,DSG - High Needs Block,ABRAHAM DARBY ACADEMY ,06/10/2023,"53,502.86"
Adult Social Care,My Options,Supplies & Services,Computer Software (Maint),Access UK Ltd,05/10/2023,150.00
Adult Social Care,My Options,Supplies & Services,Computer Software (Maint),Access UK Ltd,05/10/2023,494.40
Education & Skills,Consultancy & Advisory Services,Supplies & Services,Comp Software (Purch / Hire),Access UK Ltd,30/10/2023,"17,474.75"
Policy & Governance,Governance & Legal Services,Premises-Related Expenditure,Hire Of Rooms,Ace Education Advice & Training,04/10/2023,390.00
Policy & Governance,Governance & Legal Services,Supplies & Services,Other Services,Ace Education Advice & Training,03/10/2023,195.00
"Housing, Employment & Infrastructure",Inward Investment & Business Support,Supplies & Services,Consultancy,Acer Marketing Communications Limited,18/10/2023,625.00
Education & Skills,SEND (0-25),Third Party Payments,DSG - High Needs Block,Acorn Care & Education Ltd,30/10/2023,"24,913.34"
Education & Skills,SEND (0-25),Supplies & Services,Health & Safety Expenses,Activate for Kids Ltd,24/10/2023,"5,253.38"
Children�s Safeguarding & Family Support,"Family Placements, Children in Care, Leaving Care & Emergency Duty Team",Supplies & Services,Section 17 Childrens Act,AD Clearances Ltd,12/10/2023,240.00
Prosperity & Investment,BiT,Premises-Related Expenditure,R&M -Buildings DLO Charge,Adexsi UK Ltd,03/10/2023,355.90
Prosperity & Investment,BiT,Premises-Related Expenditure,R&M -Buildings DLO Charge,Adexsi UK Ltd,03/10/2023,355.90
Prosperity & Investment,BiT,Premises-Related Expenditure,R&M -Buildings DLO Charge,Adexsi UK Ltd,03/10/2023,355.90
"Communities, Customer & Commercial Services",ICT,Premises-Related Expenditure,Hire Of Rooms,Admaston House Community Centre Trust,24/10/2023,144.00
Prosperity & Investment,BiT,Premises-Related Expenditure,R&M -Buildings DLO Charge,REDACTED PERSONAL INFORMATION,13/10/2023,300.00
Prosperity & Investment,BiT,Premises-Related Expenditure,R&M -Buildings DLO Charge,REDACTED PERSONAL INFORMATION,24/10/2023,350.00
Prosperity & Investment,BiT,Premises-Related Expenditure,R&M -Buildings DLO Charge,REDACTED PERSONAL INFORMATION,03/10/2023,900.00
Policy & Governance,Governance & Legal Services,Premises-Related Expenditure,Hire Of Rooms,AFC Telford Holdings Limited,19/10/2023,350.00
Education & Skills,Consultancy & Advisory Services,Supplies & Services,Other Grants (Expenses),AFC Telford United Foundation CIC,17/10/2023,"1,149.00"
Education & Skills,Consultancy & Advisory Services,Supplies & Services,Other Grants (Expenses),AFC Telford United Foundation CIC,17/10/2023,"2,543.33"
"Communities, Customer & Commercial Services",Sport & Leisure,Premises-Related Expenditure,R&M WC Planned,Agrovista UK LTD,04/10/2023,"2,189.65"
"Communities, Customer & Commercial Services",Sport & Leisure,Premises-Related Expenditure,R&M WC Planned,Agrovista UK LTD,04/10/2023,944.30
"Communities, Customer & Commercial Services",Sport & Leisure,Premises-Related Expenditure,R&M WC Planned,Agrovista UK LTD,18/10/2023,"4,875.00"
"Communities, Customer & Commercial Services",ICT,Supplies & Services,Telecomms,Airband Community Internet,16/10/2023,300.00
"Communities, Customer & Commercial Services",ICT,Supplies & Services,Telecomms,Airband Community Internet,24/10/2023,300.00
"Communities, Customer & Commercial Services",ICT,Supplies & Services,Telecomms,Airband Community Internet,24/10/2023,300.00
"Communities, Customer & Commercial Services",ICT,Supplies & Services,Telecomms,Airband Community Internet,24/10/2023,120.00
"Communities, Customer & Commercial Services",Customer Relationships & Welfare Services,Supplies & Services,Consultancy,Airey Consultancy Services Ltd.,17/10/2023,650.00
Neighbourhood & Enforcement Services,Waste & Neighbourhood Services,Premises-Related Expenditure,Grounds Maintenance - Other,AJB CONTRACTING LTD,13/10/2023,"28,750.00"
Prosperity & Investment,Development Management,Capital Expenditure,Payments to Contractor,AJB CONTRACTING LTD,19/10/2023,750.00
Prosperity & Investment,Development Management,Capital Expenditure,Payments to Contractor,AJB CONTRACTING LTD,24/10/2023,"1,750.00"
Prosperity & Investment,Development Management,Capital Expenditure,Payments to Contractor,AJB CONTRACTING LTD,24/10/2023,"3,550.00"
Prosperity & Investment,Development Management,Capital Expenditure,Payments to Contractor,AJB CONTRACTING LTD,24/10/2023,"12,657.00"
Prosperity & Investment,Development Management,Capital Expenditure,Payments to Contractor,AJB CONTRACTING LTD,24/10/2023,"1,590.00"
"Housing, Employment & Infrastructure",Inward Investment & Business Support,Supplies & Services,Other Services,Alcium Software Ltd,13/10/2023,250.00
Adult Social Care,Prevention & Independence - Older Adults & Disability,Supplies & Services,Aids & Appliances,Alert-it Care Alarms,23/10/2023,255.78
Adult Social Care,My Options,Premises-Related Expenditure,Hire Of Rooms,All Saints Wellington,31/10/2023,300.00
Adult Social Care,My Options,Premises-Related Expenditure,Hire Of Rooms,All Saints Wellington,31/10/2023,420.00
Education & Skills,Consultancy & Advisory Services,Third Party Payments,3 & 4 Year Old Funding,Allscott Meads Primary School & Nursery,12/10/2023,"4,998.00"
Neighbourhood & Enforcement Services,Strategic Transport & Highway Network Management,Transport-Related Expenditure,Fuel,ALLSTAR BUSINESS SOLUTIONS LTD,10/10/2023,"8,449.43"
Neighbourhood & Enforcement Services,Strategic Transport & Highway Network Management,Transport-Related Expenditure,Fuel,ALLSTAR BUSINESS SOLUTIONS LTD,24/10/2023,"7,711.31"
Policy & Governance,Governance & Legal Services,Supplies & Services,Miscellaneous Insurance,Alphatec Software Limited,17/10/2023,"-6,890.00"
Neighbourhood & Enforcement Services,"Highways, Engineering & Project Delivery",Supplies & Services,Consultancy,Amey OW Ltd,18/10/2023,"7,212.13"
Neighbourhood & Enforcement Services,"Highways, Engineering & Project Delivery",Capital Expenditure,Payments to Contractor,Amey OW Ltd,19/10/2023,"13,340.15"
Neighbourhood & Enforcement Services,"Highways, Engineering & Project Delivery",Capital Expenditure,Payments to Contractor,Amey OW Ltd,18/10/2023,"2,501.58"
Neighbourhood & Enforcement Services,"Highways, Engineering & Project Delivery",Capital Expenditure,Payments to Contractor,Amey OW Ltd,18/10/2023,"1,075.04"
Neighbourhood & Enforcement Services,"Highways, Engineering & Project Delivery",Capital Expenditure,Payments to Contractor,Amey OW Ltd,18/10/2023,"1,862.84"
Neighbourhood & Enforcement Services,"Highways, Engineering & Project Delivery",Capital Expenditure,External Professional Fees,Amey OW Ltd,18/10/2023,"3,454.34"
Neighbourhood & Enforcement Services,Waste & Neighbourhood Services,Premises-Related Expenditure,Grounds Maintenance - Other,Amey OW Ltd,18/10/2023,805.97
Prosperity & Investment,BiT,Premises-Related Expenditure,Solid Fuel,AMP CLEAN ENERGY,16/10/2023,"2,044.00"
Prosperity & Investment,Regeneration & Investment,Capital Expenditure,Payments to Contractor,A D & CO,31/10/2023,"1,200.00"
Prosperity & Investment,BiT,Premises-Related Expenditure,R&M -Buildings DLO Charge,REDACTED PERSONAL INFORMATION,20/10/2023,935.00
Prosperity & Investment,BiT,Premises-Related Expenditure,R&M -Buildings DLO Charge,REDACTED PERSONAL INFORMATION,20/10/2023,985.00
Policy & Governance,Governance & Legal Services,Supplies & Services,Legal Expenses,A C Solicitors LLP,16/10/2023,"1,255.00"
Education & Skills,SEND (0-25),Third Party Payments,DSG - High Needs Block,Apley Village Day Nursery,16/10/2023,"1,753.41"
"Communities, Customer & Commercial Services",Customer Relationships & Welfare Services,Supplies & Services,Permit Production - Blue Badge,APS Group,13/10/2023,"1,087.94"
"Communities, Customer & Commercial Services",Sport & Leisure,Employees,Staff Training,APSE ,26/10/2023,184.00
"Communities, Customer & Commercial Services",Sport & Leisure,Employees,Staff Training,APSE ,26/10/2023,184.00
Neighbourhood & Enforcement Services,Neighbourhood & Environmental Services,Supplies & Services,Other Services,APSE ,26/10/2023,700.00
Education & Skills,SEND (0-25),Third Party Payments,DSG - High Needs Block,Aqueduct Little Learners,16/10/2023,"2,854.78"
Adult Social Care,ASC Prevention & Enablement,Supplies & Services,Equipment - Hire,ARJO UK LTD,24/10/2023,690.00
Adult Social Care,Prevention & Independence - Older Adults & Disability,Supplies & Services,Equipment - Hire,ARJO UK LTD,06/10/2023,620.00
Adult Social Care,Prevention & Independence - Older Adults & Disability,Supplies & Services,Equipment - Hire,ARJO UK LTD,06/10/2023,620.00
Adult Social Care,Prevention & Independence - Older Adults & Disability,Supplies & Services,Equipment - Hire,ARJO UK LTD,06/10/2023,600.00
Children�s Safeguarding & Family Support,"Family Placements, Children in Care, Leaving Care & Emergency Duty Team",Supplies & Services,Equipment - Repair,ARJO UK LTD,12/10/2023,352.00
Education & Skills,Education & Skills,Capital Expenditure,Payments to Contractor,ARJO UK LTD,03/10/2023,600.00
Education & Skills,Education & Skills,Capital Expenditure,Payments to Contractor,ARJO UK LTD,03/10/2023,"3,218.88"
Children�s Safeguarding & Family Support,"Family Placements, Children in Care, Leaving Care & Emergency Duty Team",Transport-Related Expenditure,Season Tickets,ARRIVA MIDLANDS LTD ,13/10/2023,"2,270.00"
Neighbourhood & Enforcement Services,Strategic Transport & Highway Network Management,Supplies & Services,Concessionary Travel,ARRIVA MIDLANDS LTD ,20/10/2023,"125,955.49"
Neighbourhood & Enforcement Services,Strategic Transport & Highway Network Management,Transport-Related Expenditure,Subsidised Routes,ARRIVA MIDLANDS LTD ,19/10/2023,"9,313.26"
Neighbourhood & Enforcement Services,Strategic Transport & Highway Network Management,Transport-Related Expenditure,Subsidised Routes,ARRIVA MIDLANDS LTD ,19/10/2023,"2,792.39"
Neighbourhood & Enforcement Services,Strategic Transport & Highway Network Management,Transport-Related Expenditure,Subsidised Routes,ARRIVA MIDLANDS LTD ,19/10/2023,"2,498.00"
Neighbourhood & Enforcement Services,Strategic Transport & Highway Network Management,Transport-Related Expenditure,Subsidised Routes,ARRIVA MIDLANDS LTD ,19/10/2023,"6,526.78"
Neighbourhood & Enforcement Services,Strategic Transport & Highway Network Management,Transport-Related Expenditure,Subsidised Routes,ARRIVA MIDLANDS LTD ,19/10/2023,"36,898.42"
Neighbourhood & Enforcement Services,Strategic Transport & Highway Network Management,Transport-Related Expenditure,Subsidised Routes,ARRIVA MIDLANDS LTD ,19/10/2023,"4,923.10"
Neighbourhood & Enforcement Services,Strategic Transport & Highway Network Management,Transport-Related Expenditure,Subsidised Routes,ARRIVA MIDLANDS LTD ,19/10/2023,"2,429.74"
Neighbourhood & Enforcement Services,Safer & Stronger Communities,Premises-Related Expenditure,Insurance Premises,A J. G INSURANCE BROKERS LTD,16/10/2023,"1,153.86"
Policy & Governance,Governance & Legal Services,Supplies & Services,Miscellaneous Insurance,A J. G INSURANCE BROKERS LTD,31/10/2023,"4,750.00"
"Communities, Customer & Commercial Services",Culture & Events,Supplies & Services,Artistes Fees,ARTISTES INTERNATIONAL MANAGEMENT,17/10/2023,"10,303.94"
"Communities, Customer & Commercial Services",Customer Relationships & Welfare Services,Supplies & Services,Blue Badge Assessments,Ascenti,13/10/2023,390.00
"Communities, Customer & Commercial Services",Customer Relationships & Welfare Services,Supplies & Services,Blue Badge Assessments,Ascenti,13/10/2023,252.00
Health & Wellbeing,Health Improvement,Supplies & Services,Libraries Book Fund,A & H Library Services Ltd,09/10/2023,166.94
Health & Wellbeing,Health Improvement,Supplies & Services,Libraries Book Fund,A & H Library Services Ltd,14/10/2023,133.31
Health & Wellbeing,Health Improvement,Supplies & Services,Libraries Book Fund,A & H Library Services Ltd,14/10/2023,113.89
Health & Wellbeing,Health Improvement,Supplies & Services,Libraries Book Fund,A & H Library Services Ltd,14/10/2023,205.60
Health & Wellbeing,Health Improvement,Supplies & Services,Libraries Book Fund,A & H Library Services Ltd,14/10/2023,150.97
Health & Wellbeing,Health Improvement,Supplies & Services,Libraries Book Fund,A & H Library Services Ltd,31/10/2023,112.09
Health & Wellbeing,Health Improvement,Supplies & Services,Libraries Book Fund,A & H Library Services Ltd,31/10/2023,117.34
Health & Wellbeing,Health Improvement,Supplies & Services,Libraries Book Fund,A & H Library Services Ltd,27/10/2023,270.50
Policy & Governance,Governance & Legal Services,Employees,Course Fees,ASSOCIATION OF ELECTORAL ADMINISTRATORS,06/10/2023,742.50
Policy & Governance,Governance & Legal Services,Employees,Professional Subs,ASSOCIATION OF ELECTORAL ADMINISTRATORS,20/10/2023,285.00
Children�s Safeguarding & Family Support,"Family Placements, Children in Care, Leaving Care & Emergency Duty Team",Transport-Related Expenditure,Outside Hire,A-STAR TRANSPORT MIDLANDS LTD,24/10/2023,720.00
Children�s Safeguarding & Family Support,"Family Placements, Children in Care, Leaving Care & Emergency Duty Team",Supplies & Services,Aids & Appliances,Astor Bannerman Ltd,13/10/2023,"1,054.00"
Neighbourhood & Enforcement Services,Enforcement,Supplies & Services,Security Services,ATKINS LIMITED,23/10/2023,"2,540.00"
Neighbourhood & Enforcement Services,Strategic Transport & Highway Network Management,Capital Expenditure,Payments to Contractor,ATKINS LIMITED,19/10/2023,"12,599.38"
"Communities, Customer & Commercial Services",Sport & Leisure,Supplies & Services,Fees,Austin Mix Ltd,12/10/2023,315.00
Prosperity & Investment,Regeneration & Investment,Supplies & Services,Advertising,Austin Mix Ltd,10/10/2023,120.00
Policy & Governance,Governance & Legal Services,Supplies & Services,Miscellaneous Insurance,AVIVA LIFE & PENSIONS LIMITED,19/10/2023,"2,827.14"
Health & Wellbeing,Health Improvement,Supplies & Services,Computer Software (Maint),AXIELL LTD,23/10/2023,"5,220.87"
Neighbourhood & Enforcement Services,Strategic Transport & Highway Network Management,Supplies & Services,Concessionary Travel,B P B TRAVEL LTD,19/10/2023,629.00
Neighbourhood & Enforcement Services,Strategic Transport & Highway Network Management,Transport-Related Expenditure,Subsidised Routes,B P B TRAVEL LTD,19/10/2023,"14,895.00"
Neighbourhood & Enforcement Services,Strategic Transport & Highway Network Management,Transport-Related Expenditure,Subsidised Routes,B P B TRAVEL LTD,19/10/2023,"11,008.00"
Neighbourhood & Enforcement Services,Strategic Transport & Highway Network Management,Transport-Related Expenditure,Subsidised Routes,B P B TRAVEL LTD,19/10/2023,"9,873.00"
Neighbourhood & Enforcement Services,Strategic Transport & Highway Network Management,Transport-Related Expenditure,Subsidised Routes,B P B TRAVEL LTD,19/10/2023,"9,927.00"
Education & Skills,Consultancy & Advisory Services,Supplies & Services,Furniture - Purchase,BACK CARE SOLUTIONS LTD,02/10/2023,"1,992.00"
Education & Skills,Consultancy & Advisory Services,Supplies & Services,Furniture - Purchase,BACK CARE SOLUTIONS LTD,02/10/2023,"1,927.00"
Children�s Safeguarding & Family Support,"Family Placements, Children in Care, Leaving Care & Emergency Duty Team",Supplies & Services,Aids & Appliances,Baffin Technology Systems Limited,24/10/2023,"2,670.00"
Neighbourhood & Enforcement Services,"Highways, Engineering & Project Delivery",Third Party Payments,Highways Contract - BBLP,Balfour Beatty Civils Limited,20/10/2023,"1,067,022.41"
Neighbourhood & Enforcement Services,Strategic Transport & Highway Network Management,Supplies & Services,Concessionary Travel,Banga Travel,03/10/2023,"2,212.00"
Neighbourhood & Enforcement Services,Strategic Transport & Highway Network Management,Supplies & Services,Concessionary Travel,Banga Travel,19/10/2023,"1,991.00"
Neighbourhood & Enforcement Services,Safer & Stronger Communities,Premises-Related Expenditure,General Rents,Barratt West Midlands,02/10/2023,700.00
Neighbourhood & Enforcement Services,Safer & Stronger Communities,Premises-Related Expenditure,General Rents,Barratt West Midlands,30/10/2023,700.00
Children�s Safeguarding & Family Support,"Family Placements, Children in Care, Leaving Care & Emergency Duty Team",Supplies & Services,Advertising,Bauer Radio Ltd,16/10/2023,960.31
Children�s Safeguarding & Family Support,"Family Placements, Children in Care, Leaving Care & Emergency Duty Team",Supplies & Services,Advertising,Bauer Radio Ltd,16/10/2023,938.37
Education & Skills,Skills,Supplies & Services,Advertising,Bauer Radio Ltd,10/10/2023,"1,269.72"
"Communities, Customer & Commercial Services",Community Services,Supplies & Services,Grants To Voluntary Organis,BELMONT COMMUNITY HALL,20/10/2023,"1,000.00"
"Communities, Customer & Commercial Services",Community Services,Supplies & Services,Grants To Voluntary Organis,BELMONT COMMUNITY HALL,20/10/2023,500.00
Prosperity & Investment,BiT,Premises-Related Expenditure,R&M -Buildings DLO Charge,Belvidere Lifts Ltd,25/10/2023,150.00
Prosperity & Investment,BiT,Premises-Related Expenditure,R&M -Buildings DLO Charge,Belvidere Lifts Ltd,20/10/2023,"1,550.00"
Prosperity & Investment,BiT,Premises-Related Expenditure,R&M -Buildings DLO Charge,Belvidere Lifts Ltd,03/10/2023,443.60
Prosperity & Investment,BiT,Premises-Related Expenditure,R&M -Buildings DLO Charge,Belvidere Lifts Ltd,09/10/2023,160.00
Prosperity & Investment,BiT,Premises-Related Expenditure,R&M -Buildings DLO Charge,Belvidere Lifts Ltd,09/10/2023,150.00
Neighbourhood & Enforcement Services,Enforcement,Supplies & Services,Security Services,BemroseBooth Paragon,05/10/2023,"1,849.92"
Adult Social Care,My Options,Premises-Related Expenditure,Clean Mats & Toilet Requisites,B CARE EQUIPMENT LTD,24/10/2023,117.34
Adult Social Care,My Options,Premises-Related Expenditure,Clean Mats & Toilet Requisites,B CARE EQUIPMENT LTD,05/10/2023,203.30
Adult Social Care,My Options,Premises-Related Expenditure,Clean Mats & Toilet Requisites,B CARE EQUIPMENT LTD,31/10/2023,191.97
Adult Social Care,Prevention & Independence - Older Adults & Disability,Supplies & Services,Aids & Appliances,B CARE EQUIPMENT LTD,04/10/2023,662.00
"Communities, Customer & Commercial Services",Sport & Leisure,Premises-Related Expenditure,Clean Mats & Toilet Requisites,Border Janitorial Supplies Limited,02/10/2023,110.12
"Communities, Customer & Commercial Services",Sport & Leisure,Premises-Related Expenditure,Clean Mats & Toilet Requisites,Border Janitorial Supplies Limited,02/10/2023,591.00
"Communities, Customer & Commercial Services",Sport & Leisure,Premises-Related Expenditure,Clean Mats & Toilet Requisites,Border Janitorial Supplies Limited,02/10/2023,278.33
"Communities, Customer & Commercial Services",Sport & Leisure,Premises-Related Expenditure,Clean Mats & Toilet Requisites,Border Janitorial Supplies Limited,02/10/2023,215.27
"Communities, Customer & Commercial Services",Sport & Leisure,Premises-Related Expenditure,Clean Mats & Toilet Requisites,Border Janitorial Supplies Limited,06/10/2023,110.84
"Communities, Customer & Commercial Services",Sport & Leisure,Premises-Related Expenditure,Clean Mats & Toilet Requisites,Border Janitorial Supplies Limited,06/10/2023,334.35
"Communities, Customer & Commercial Services",Sport & Leisure,Premises-Related Expenditure,Clean Mats & Toilet Requisites,Border Janitorial Supplies Limited,06/10/2023,124.25
"Communities, Customer & Commercial Services",Sport & Leisure,Premises-Related Expenditure,Clean Mats & Toilet Requisites,Border Janitorial Supplies Limited,10/10/2023,262.17
"Communities, Customer & Commercial Services",Sport & Leisure,Premises-Related Expenditure,Clean Mats & Toilet Requisites,Border Janitorial Supplies Limited,10/10/2023,639.07
"Communities, Customer & Commercial Services",Sport & Leisure,Premises-Related Expenditure,Clean Mats & Toilet Requisites,Border Janitorial Supplies Limited,06/10/2023,339.67
"Communities, Customer & Commercial Services",Sport & Leisure,Premises-Related Expenditure,Clean Mats & Toilet Requisites,Border Janitorial Supplies Limited,06/10/2023,260.24
"Communities, Customer & Commercial Services",Sport & Leisure,Premises-Related Expenditure,Clean Mats & Toilet Requisites,Border Janitorial Supplies Limited,10/10/2023,205.83
"Communities, Customer & Commercial Services",Sport & Leisure,Premises-Related Expenditure,Clean Mats & Toilet Requisites,Border Janitorial Supplies Limited,11/10/2023,199.03
"Communities, Customer & Commercial Services",Sport & Leisure,Premises-Related Expenditure,Clean Mats & Toilet Requisites,Border Janitorial Supplies Limited,11/10/2023,104.10
"Communities, Customer & Commercial Services",Sport & Leisure,Premises-Related Expenditure,Clean Mats & Toilet Requisites,Border Janitorial Supplies Limited,11/10/2023,180.06
"Communities, Customer & Commercial Services",Sport & Leisure,Premises-Related Expenditure,Clean Mats & Toilet Requisites,Border Janitorial Supplies Limited,11/10/2023,575.24
"Communities, Customer & Commercial Services",Sport & Leisure,Premises-Related Expenditure,Clean Mats & Toilet Requisites,Border Janitorial Supplies Limited,11/10/2023,150.75
"Communities, Customer & Commercial Services",Sport & Leisure,Premises-Related Expenditure,Clean Mats & Toilet Requisites,Border Janitorial Supplies Limited,20/10/2023,113.57
"Communities, Customer & Commercial Services",Sport & Leisure,Premises-Related Expenditure,Clean Mats & Toilet Requisites,Border Janitorial Supplies Limited,20/10/2023,197.64
"Communities, Customer & Commercial Services",Sport & Leisure,Premises-Related Expenditure,Clean Mats & Toilet Requisites,Border Janitorial Supplies Limited,25/10/2023,102.78
"Communities, Customer & Commercial Services",Sport & Leisure,Premises-Related Expenditure,Clean Mats & Toilet Requisites,Border Janitorial Supplies Limited,25/10/2023,356.26
"Communities, Customer & Commercial Services",Sport & Leisure,Premises-Related Expenditure,Clean Mats & Toilet Requisites,Border Janitorial Supplies Limited,20/10/2023,167.35
"Communities, Customer & Commercial Services",Sport & Leisure,Premises-Related Expenditure,Clean Mats & Toilet Requisites,Border Janitorial Supplies Limited,24/10/2023,109.26
"Communities, Customer & Commercial Services",Sport & Leisure,Premises-Related Expenditure,Clean Mats & Toilet Requisites,Border Janitorial Supplies Limited,31/10/2023,113.45
"Communities, Customer & Commercial Services",Sport & Leisure,Premises-Related Expenditure,Clean Mats & Toilet Requisites,Border Janitorial Supplies Limited,31/10/2023,106.09
"Communities, Customer & Commercial Services",Sport & Leisure,Premises-Related Expenditure,Clean Mats & Toilet Requisites,Border Janitorial Supplies Limited,02/10/2023,132.24
"Communities, Customer & Commercial Services",Sport & Leisure,Premises-Related Expenditure,Clean Mats & Toilet Requisites,Border Janitorial Supplies Limited,02/10/2023,148.51
"Communities, Customer & Commercial Services",Sport & Leisure,Premises-Related Expenditure,Clean Mats & Toilet Requisites,Border Janitorial Supplies Limited,06/10/2023,105.19
"Communities, Customer & Commercial Services",Sport & Leisure,Premises-Related Expenditure,Clean Mats & Toilet Requisites,Border Janitorial Supplies Limited,06/10/2023,248.56
"Communities, Customer & Commercial Services",Sport & Leisure,Premises-Related Expenditure,Clean Mats & Toilet Requisites,Border Janitorial Supplies Limited,06/10/2023,204.11
"Communities, Customer & Commercial Services",Sport & Leisure,Premises-Related Expenditure,Clean Mats & Toilet Requisites,Border Janitorial Supplies Limited,06/10/2023,113.15
"Communities, Customer & Commercial Services",Sport & Leisure,Premises-Related Expenditure,Clean Mats & Toilet Requisites,Border Janitorial Supplies Limited,06/10/2023,135.27
"Communities, Customer & Commercial Services",Sport & Leisure,Premises-Related Expenditure,Clean Mats & Toilet Requisites,Border Janitorial Supplies Limited,24/10/2023,351.05
"Communities, Customer & Commercial Services",Sport & Leisure,Premises-Related Expenditure,Clean Mats & Toilet Requisites,Border Janitorial Supplies Limited,11/10/2023,140.79
"Communities, Customer & Commercial Services",Sport & Leisure,Premises-Related Expenditure,Clean Mats & Toilet Requisites,Border Janitorial Supplies Limited,10/10/2023,708.32
"Communities, Customer & Commercial Services",Sport & Leisure,Premises-Related Expenditure,Clean Mats & Toilet Requisites,Border Janitorial Supplies Limited,10/10/2023,273.43
"Communities, Customer & Commercial Services",Sport & Leisure,Premises-Related Expenditure,Clean Mats & Toilet Requisites,Border Janitorial Supplies Limited,10/10/2023,233.09
"Communities, Customer & Commercial Services",Sport & Leisure,Premises-Related Expenditure,Clean Mats & Toilet Requisites,Border Janitorial Supplies Limited,11/10/2023,299.76
"Communities, Customer & Commercial Services",Sport & Leisure,Premises-Related Expenditure,Clean Mats & Toilet Requisites,Border Janitorial Supplies Limited,20/10/2023,209.94
"Communities, Customer & Commercial Services",Sport & Leisure,Premises-Related Expenditure,Clean Mats & Toilet Requisites,Border Janitorial Supplies Limited,20/10/2023,141.30
"Communities, Customer & Commercial Services",Sport & Leisure,Premises-Related Expenditure,Clean Mats & Toilet Requisites,Border Janitorial Supplies Limited,20/10/2023,324.35
"Communities, Customer & Commercial Services",Sport & Leisure,Premises-Related Expenditure,Clean Mats & Toilet Requisites,Border Janitorial Supplies Limited,20/10/2023,125.28
"Communities, Customer & Commercial Services",Sport & Leisure,Premises-Related Expenditure,Clean Mats & Toilet Requisites,Border Janitorial Supplies Limited,20/10/2023,131.27
"Communities, Customer & Commercial Services",Sport & Leisure,Premises-Related Expenditure,Clean Mats & Toilet Requisites,Border Janitorial Supplies Limited,24/10/2023,399.38
"Communities, Customer & Commercial Services",Sport & Leisure,Premises-Related Expenditure,Clean Mats & Toilet Requisites,Border Janitorial Supplies Limited,03/10/2023,232.26
"Communities, Customer & Commercial Services",Sport & Leisure,Premises-Related Expenditure,Clean Mats & Toilet Requisites,Border Janitorial Supplies Limited,02/10/2023,168.00
"Communities, Customer & Commercial Services",Sport & Leisure,Premises-Related Expenditure,Clean Mats & Toilet Requisites,Border Janitorial Supplies Limited,05/10/2023,138.50
"Communities, Customer & Commercial Services",Sport & Leisure,Premises-Related Expenditure,Clean Mats & Toilet Requisites,Border Janitorial Supplies Limited,05/10/2023,255.50
"Communities, Customer & Commercial Services",Sport & Leisure,Premises-Related Expenditure,Clean Mats & Toilet Requisites,Border Janitorial Supplies Limited,05/10/2023,193.85
"Communities, Customer & Commercial Services",Sport & Leisure,Premises-Related Expenditure,Clean Mats & Toilet Requisites,Border Janitorial Supplies Limited,13/10/2023,148.22
"Communities, Customer & Commercial Services",Sport & Leisure,Premises-Related Expenditure,Clean Mats & Toilet Requisites,Border Janitorial Supplies Limited,20/10/2023,248.27
"Communities, Customer & Commercial Services",Sport & Leisure,Premises-Related Expenditure,Clean Mats & Toilet Requisites,Border Janitorial Supplies Limited,24/10/2023,404.21
"Communities, Customer & Commercial Services",Sport & Leisure,Premises-Related Expenditure,Clean Mats & Toilet Requisites,Border Janitorial Supplies Limited,26/10/2023,126.19
"Communities, Customer & Commercial Services",Sport & Leisure,Supplies & Services,Crockery/Hardware/Light Equip,Border Janitorial Supplies Limited,17/10/2023,147.00
"Communities, Customer & Commercial Services",Sport & Leisure,Supplies & Services,Crockery/Hardware/Light Equip,Border Janitorial Supplies Limited,17/10/2023,106.82
"Communities, Customer & Commercial Services",Sport & Leisure,Supplies & Services,Crockery/Hardware/Light Equip,Border Janitorial Supplies Limited,24/10/2023,138.45
"Communities, Customer & Commercial Services",Sport & Leisure,Supplies & Services,Crockery/Hardware/Light Equip,Border Janitorial Supplies Limited,24/10/2023,311.89
"Communities, Customer & Commercial Services",Sport & Leisure,Supplies & Services,Crockery/Hardware/Light Equip,Border Janitorial Supplies Limited,10/10/2023,110.63
"Communities, Customer & Commercial Services",Sport & Leisure,Supplies & Services,Crockery/Hardware/Light Equip,Border Janitorial Supplies Limited,10/10/2023,113.50
"Communities, Customer & Commercial Services",Sport & Leisure,Supplies & Services,Crockery/Hardware/Light Equip,Border Janitorial Supplies Limited,13/10/2023,155.67
"Communities, Customer & Commercial Services",Sport & Leisure,Supplies & Services,Crockery/Hardware/Light Equip,Border Janitorial Supplies Limited,13/10/2023,177.78
"Communities, Customer & Commercial Services",Sport & Leisure,Premises-Related Expenditure,Clean Mats & Toilet Requisites,Border Janitorial Supplies Limited,27/10/2023,216.36
Prosperity & Investment,BiT,Premises-Related Expenditure,Clean Mats & Toilet Requisites,Border Janitorial Supplies Limited,09/10/2023,"1,052.11"
Prosperity & Investment,BiT,Premises-Related Expenditure,Clean Mats & Toilet Requisites,Border Janitorial Supplies Limited,06/10/2023,123.70
Prosperity & Investment,BiT,Premises-Related Expenditure,Clean Mats & Toilet Requisites,Border Janitorial Supplies Limited,30/10/2023,192.78
Prosperity & Investment,BiT,Supplies & Services,Chemicals/Cleaning Products,Border Janitorial Supplies Limited,17/10/2023,295.02
Adult Social Care,Community Social Work (Principal Social Worker),Premises-Related Expenditure,General Rents,BOURNVILLE VILLAGE TRUST,11/10/2023,"12,764.88"
Prosperity & Investment,BiT,Premises-Related Expenditure,R&M -Buildings DLO Charge,B INDUSTRIAL SERVICES,24/10/2023,110.25
Prosperity & Investment,BiT,Premises-Related Expenditure,R&M -Buildings DLO Charge,B INDUSTRIAL SERVICES,24/10/2023,"1,493.31"
Prosperity & Investment,BiT,Premises-Related Expenditure,R&M -Buildings DLO Charge,B INDUSTRIAL SERVICES,20/10/2023,887.24
Prosperity & Investment,BiT,Premises-Related Expenditure,R&M -Buildings DLO Charge,B INDUSTRIAL SERVICES,20/10/2023,147.00
Prosperity & Investment,BiT,Premises-Related Expenditure,R&M -Buildings DLO Charge,B INDUSTRIAL SERVICES,20/10/2023,325.09
Prosperity & Investment,BiT,Premises-Related Expenditure,R&M -Buildings DLO Charge,B INDUSTRIAL SERVICES,20/10/2023,128.63
Prosperity & Investment,BiT,Premises-Related Expenditure,R&M -Buildings DLO Charge,B INDUSTRIAL SERVICES,20/10/2023,203.46
Prosperity & Investment,BiT,Premises-Related Expenditure,R&M -Buildings DLO Charge,B INDUSTRIAL SERVICES,20/10/2023,110.25
Prosperity & Investment,BiT,Premises-Related Expenditure,R&M -Buildings DLO Charge,B INDUSTRIAL SERVICES,20/10/2023,114.00
Prosperity & Investment,BiT,Premises-Related Expenditure,Service Contracts,B INDUSTRIAL SERVICES,13/10/2023,217.81
Prosperity & Investment,BiT,Premises-Related Expenditure,R&M -Buildings DLO Charge,B INDUSTRIAL SERVICES,24/10/2023,114.00
"Communities, Customer & Commercial Services",Sport & Leisure,Supplies & Services,Flex Charges,Bramble Hub Limited,13/10/2023,"79,854.86"
Neighbourhood & Enforcement Services,Strategic Transport & Highway Network Management,Transport-Related Expenditure,Vehicle Parts,BraunAbility UK Ltd,24/10/2023,436.00
"Housing, Employment & Infrastructure",Inward Investment & Business Support,Supplies & Services,Consultancy,Breeze Strategy,31/10/2023,"4,950.00"
"Communities, Customer & Commercial Services",Sport & Leisure,Supplies & Services,Chemicals/Cleaning Products,B UK LIMITED,26/10/2023,"1,032.00"
"Communities, Customer & Commercial Services",Sport & Leisure,Supplies & Services,Carriage/Delivery Charge,B UK LIMITED,26/10/2023,103.00
"Communities, Customer & Commercial Services",Sport & Leisure,Premises-Related Expenditure,Swimming Pool Chemicals,B UK LIMITED,03/10/2023,295.73
"Communities, Customer & Commercial Services",Sport & Leisure,Premises-Related Expenditure,Swimming Pool Chemicals,B UK LIMITED,26/10/2023,658.00
"Communities, Customer & Commercial Services",Sport & Leisure,Supplies & Services,Chemicals/Cleaning Products,B UK LIMITED,03/10/2023,125.00
Education & Skills,SEND (0-25),Third Party Payments,DSG - High Needs Block,Bridge Therapy,30/10/2023,778.50
Education & Skills,SEND (0-25),Third Party Payments,DSG - High Needs Block,Bridge Therapy,30/10/2023,"1,038.00"
Prosperity & Investment,BiT,Premises-Related Expenditure,Electricity,BRITISH GAS BUSINESS,13/10/2023,840.98
Prosperity & Investment,BiT,Premises-Related Expenditure,Planned Repairs,BRITISH GAS BUSINESS,20/10/2023,"1,340.57"
Prosperity & Investment,BiT,Premises-Related Expenditure,Electricity,BRITISH GAS BUSINESS,13/10/2023,406.99
Prosperity & Investment,BiT,Premises-Related Expenditure,Electricity,BRITISH GAS BUSINESS,13/10/2023,148.48
Prosperity & Investment,BiT,Premises-Related Expenditure,Gas,BRITISH GAS BUSINESS,13/10/2023,108.21
Prosperity & Investment,Regeneration & Investment,Capital Expenditure,Payments to Contractor,BRITISH GAS BUSINESS,23/10/2023,206.70
Prosperity & Investment,Regeneration & Investment,Capital Expenditure,Payments to Contractor,BRITISH GAS BUSINESS,12/10/2023,206.70
"Communities, Customer & Commercial Services",ICT,Supplies & Services,Telephones,BRITISH TELECOMMUNICATIONS PLC ,16/10/2023,"5,505.37"
"Communities, Customer & Commercial Services",Community Services,Supplies & Services,Other - Arts Development,BRITISH YOUTH COUNCIL,27/10/2023,720.00
"Communities, Customer & Commercial Services",ICT,Supplies & Services,Comp Software (Purch / Hire),Bromcom Computers Plc,06/10/2023,883.00
"Communities, Customer & Commercial Services",ICT,Supplies & Services,Comp Software (Purch / Hire),Bromcom Computers Plc,06/10/2023,"4,218.20"
Children�s Safeguarding & Family Support,"Family Placements, Children in Care, Leaving Care & Emergency Duty Team",Supplies & Services,Section 17 Childrens Act,BROMFORD HOUSING ASSOCIATION LIMITED,12/10/2023,523.55
Health & Wellbeing,Health Protection,Supplies & Services,Legal Expenses,Bromsgrove District Council,31/10/2023,184.80
Children�s Safeguarding & Family Support,Family Connect & Childrens Centres,Premises-Related Expenditure,Hire Of Rooms,Brookside Central,17/10/2023,102.00
"Communities, Customer & Commercial Services",ICT,Premises-Related Expenditure,Hire Of Rooms,Brookside Central,24/10/2023,276.00
Education & Skills,Skills,Premises-Related Expenditure,Minor Alterations H & Safety,Brookside Central,10/10/2023,132.00
Education & Skills,Skills,Premises-Related Expenditure,Hire Of Rooms,Brookside Central,20/10/2023,204.00
Health & Wellbeing,Health Improvement,Premises-Related Expenditure,Hire Of Rooms,Brookside Central,10/10/2023,144.00
Neighbourhood & Enforcement Services,Safer & Stronger Communities,Supplies & Services,Other Services,Brookside Central,16/10/2023,148.50
Prosperity & Investment,Regeneration & Investment,Capital Expenditure,Legal Fees,B J LLP,11/10/2023,"1,593.72"
Prosperity & Investment,Regeneration & Investment,Premises-Related Expenditure,Water Rates,Business Stream Ltd,09/10/2023,106.93
"Communities, Customer & Commercial Services",Sport & Leisure,Supplies & Services,Sub Contractors,BUSINESS WATCH GUARDING LIMITED,16/10/2023,574.06
Prosperity & Investment,BiT,Supplies & Services,Security Services,BUSINESS WATCH GUARDING LIMITED,09/10/2023,456.12
Prosperity & Investment,BiT,Supplies & Services,Security Services,BUSINESS WATCH GUARDING LIMITED,09/10/2023,977.05
Prosperity & Investment,Regeneration & Investment,Supplies & Services,Security Services,BUSINESS WATCH GUARDING LIMITED,09/10/2023,530.20
Prosperity & Investment,Regeneration & Investment,Supplies & Services,Security Services,BUSINESS WATCH GUARDING LIMITED,09/10/2023,247.59
Prosperity & Investment,Regeneration & Investment,Premises-Related Expenditure,Clean Mats & Toilet Requisites,BUSY BEE CLEANING LTD,09/10/2023,437.67
Prosperity & Investment,Regeneration & Investment,Premises-Related Expenditure,Window Cleaning,BUSY BEE CLEANING LTD,05/10/2023,330.80
Prosperity & Investment,Regeneration & Investment,Premises-Related Expenditure,Window Cleaning,BUSY BEE CLEANING LTD,17/10/2023,352.80
Prosperity & Investment,Regeneration & Investment,Premises-Related Expenditure,Contract Cleaning,BUSY BEE CLEANING LTD,09/10/2023,340.80
Neighbourhood & Enforcement Services,Public Protection,Supplies & Services,Sampling & Analysis,BWY Canine Limited,11/10/2023,400.00
Prosperity & Investment,BiT,Premises-Related Expenditure,R&M -Buildings DLO Charge,C & S Carpet & Flooring,03/10/2023,172.65
Prosperity & Investment,BiT,Premises-Related Expenditure,R&M -Buildings DLO Charge,C & S Carpet & Flooring,03/10/2023,378.88
Prosperity & Investment,BiT,Premises-Related Expenditure,R&M -Buildings DLO Charge,C & S Carpet & Flooring,03/10/2023,167.86
Prosperity & Investment,BiT,Premises-Related Expenditure,R&M -Buildings DLO Charge,C & S Carpet & Flooring,03/10/2023,373.98
Prosperity & Investment,BiT,Premises-Related Expenditure,R&M -Buildings DLO Charge,C & S Carpet & Flooring,03/10/2023,298.84
Prosperity & Investment,BiT,Premises-Related Expenditure,R&M -Buildings DLO Charge,C & S Carpet & Flooring,03/10/2023,354.89
Prosperity & Investment,BiT,Premises-Related Expenditure,R&M -Buildings DLO Charge,C & S Carpet & Flooring,03/10/2023,167.86
Prosperity & Investment,BiT,Premises-Related Expenditure,R&M -Buildings DLO Charge,C & S Carpet & Flooring,03/10/2023,191.84
Prosperity & Investment,BiT,Premises-Related Expenditure,R&M -Buildings DLO Charge,C & S Carpet & Flooring,03/10/2023,230.20
Prosperity & Investment,BiT,Premises-Related Expenditure,R&M -Buildings DLO Charge,C & S Carpet & Flooring,03/10/2023,167.86
Neighbourhood & Enforcement Services,Strategic Transport & Highway Network Management,Employees,Course Fees,AFTA Thought Training Consultant Ltd,03/10/2023,"4,000.00"
"Communities, Customer & Commercial Services",Sport & Leisure,Supplies & Services,Crockery/Hardware/Light Equip,CALTEL CATERING & LAUNDRY EQUIPMENT LLP,26/10/2023,950.00
"Communities, Customer & Commercial Services",Sport & Leisure,Supplies & Services,Crockery/Hardware/Light Equip,CALTEL CATERING & LAUNDRY EQUIPMENT LLP,26/10/2023,309.93
"Communities, Customer & Commercial Services",Sport & Leisure,Supplies & Services,Crockery/Hardware/Light Equip,CALTEL CATERING & LAUNDRY EQUIPMENT LLP,26/10/2023,132.50
"Communities, Customer & Commercial Services",Sport & Leisure,Supplies & Services,Crockery/Hardware/Light Equip,CALTEL CATERING & LAUNDRY EQUIPMENT LLP,26/10/2023,309.93
"Communities, Customer & Commercial Services",Sport & Leisure,Supplies & Services,Loss On Catering,CALTEL CATERING & LAUNDRY EQUIPMENT LLP,26/10/2023,132.50
Prosperity & Investment,BiT,Premises-Related Expenditure,R&M -Buildings DLO Charge,CALTEL CATERING & LAUNDRY EQUIPMENT LLP,20/10/2023,646.00
Health & Wellbeing,Consultant in Public Health,Supplies & Services,Sub Contractors,Cambridgeshire Community Services NHS Trust,05/10/2023,214.00
Adult Social Care,Prevention & Independence - Older Adults & Disability,Supplies & Services,Aids & Appliances,Canary Care Global Limited,10/10/2023,319.00
Adult Social Care,Prevention & Independence - Older Adults & Disability,Supplies & Services,Aids & Appliances,Canary Care Global Limited,27/10/2023,207.00
Adult Social Care,Prevention & Independence - Older Adults & Disability,Supplies & Services,Aids & Appliances,Canary Care Global Limited,24/10/2023,280.00
Adult Social Care,Prevention & Independence - Older Adults & Disability,Supplies & Services,Other Grants (Expenses),Doro Care Uk,26/10/2023,"5,217.17"
Adult Social Care,My Options,Premises-Related Expenditure,Clean Mats & Toilet Requisites,CARESHOP,27/10/2023,177.91
Neighbourhood & Enforcement Services,"Highways, Engineering & Project Delivery",Capital Expenditure,Payments to Contractor,C West Ltd,27/10/2023,"1,694.00"
Neighbourhood & Enforcement Services,Strategic Transport & Highway Network Management,Supplies & Services,Consultancy,C West Ltd,24/10/2023,"1,694.00"
Adult Social Care,ASC Prevention & Enablement,Transport-Related Expenditure,Taxi Costs,C West Ltd,24/10/2023,187.25
Adult Social Care,ASC Prevention & Enablement,Transport-Related Expenditure,Taxi Costs,C West Ltd,24/10/2023,214.00
Adult Social Care,ASC Prevention & Enablement,Transport-Related Expenditure,Taxi Costs,C West Ltd,24/10/2023,240.75
Adult Social Care,ASC Prevention & Enablement,Transport-Related Expenditure,Taxi Costs,C West Ltd,24/10/2023,160.50
Adult Social Care,ASC Prevention & Enablement,Transport-Related Expenditure,Taxi Costs,C West Ltd,24/10/2023,187.25
Adult Social Care,ASC Prevention & Enablement,Transport-Related Expenditure,Taxi Costs,C West Ltd,24/10/2023,187.25
Adult Social Care,ASC Prevention & Enablement,Transport-Related Expenditure,Taxi Costs,C West Ltd,24/10/2023,187.25
Adult Social Care,ASC Prevention & Enablement,Transport-Related Expenditure,Taxi Costs,C West Ltd,24/10/2023,133.75
Adult Social Care,ASC Prevention & Enablement,Transport-Related Expenditure,Taxi Costs,C West Ltd,24/10/2023,160.50
Adult Social Care,ASC Prevention & Enablement,Transport-Related Expenditure,Taxi Costs,C West Ltd,24/10/2023,294.25
Education & Skills,Consultancy & Advisory Services,Supplies & Services,Other Grants (Expenses),Casey�s Cordingley Hall,17/10/2023,"4,000.00"
"Housing, Employment & Infrastructure",Inward Investment & Business Support,Capital Expenditure,Payments to Contractor,Castlepoint WM Limited,11/10/2023,410.00
"Housing, Employment & Infrastructure",Inward Investment & Business Support,Capital Expenditure,Payments to Contractor,Castlepoint WM Limited,11/10/2023,410.00
Education & Skills,Pupil Support Services,Third Party Payments,Misc. Education Payments to T&W Schools (incl Academies),CAT - Telford Priory School,16/10/2023,"2,282.18"
Education & Skills,Pupil Support Services,Third Party Payments,Misc. Education Payments to T&W Schools (incl Academies),CAT - Telford Priory School,16/10/2023,348.94
Health & Wellbeing,Health Protection,Employees,Cont Prof Development,CATG Ltd,02/10/2023,"2,214.00"
"Communities, Customer & Commercial Services",ICT,Supplies & Services,Mobile Phones,CCS MEDIA LIMITED,06/10/2023,933.75
"Communities, Customer & Commercial Services",ICT,Supplies & Services,Mobile Phones,CCS MEDIA LIMITED,06/10/2023,213.75
"Communities, Customer & Commercial Services",ICT,Supplies & Services,Mobile Phones,CCS MEDIA LIMITED,06/10/2023,960.00
"Communities, Customer & Commercial Services",ICT,Supplies & Services,Mobile Phones,CCS MEDIA LIMITED,30/10/2023,"8,928.00"
"Communities, Customer & Commercial Services",ICT,Supplies & Services,Comp Hardware (Purch / Hire),CCS MEDIA LIMITED,03/10/2023,739.05
"Communities, Customer & Commercial Services",ICT,Supplies & Services,Comp Hardware (Purch / Hire),CCS MEDIA LIMITED,20/10/2023,131.25
"Communities, Customer & Commercial Services",ICT,Supplies & Services,Comp Hardware (Purch / Hire),CCS MEDIA LIMITED,30/10/2023,461.25
"Communities, Customer & Commercial Services",ICT,Supplies & Services,Comp Hardware (Purch / Hire),CCS MEDIA LIMITED,10/10/2023,624.83
"Communities, Customer & Commercial Services",ICT,Supplies & Services,Comp Software (Purch / Hire),CCS MEDIA LIMITED,10/10/2023,440.09
"Communities, Customer & Commercial Services",ICT,Capital Expenditure,Computer Hardware,CCS MEDIA LIMITED,03/10/2023,"6,202.00"
"Communities, Customer & Commercial Services",ICT,Capital Expenditure,Computer Hardware,CCS MEDIA LIMITED,02/10/2023,"1,100.00"
"Communities, Customer & Commercial Services",ICT,Capital Expenditure,Computer Hardware,CCS MEDIA LIMITED,02/10/2023,740.00
"Communities, Customer & Commercial Services",ICT,Capital Expenditure,Computer Hardware,CCS MEDIA LIMITED,04/10/2023,"11,518.00"
Prosperity & Investment,BiT,Capital Expenditure,Computer Hardware,CCS MEDIA LIMITED,03/10/2023,"44,431.56"
Prosperity & Investment,BiT,Capital Expenditure,Computer Software,CCS MEDIA LIMITED,03/10/2023,"2,705.92"
Education & Skills,Consultancy & Advisory Services,Supplies & Services,Other Grants (Expenses),CEIA,04/10/2023,"2,484.00"
Prosperity & Investment,BiT,Premises-Related Expenditure,R&M -Buildings DLO Charge,Celsius Design Limited,05/10/2023,498.00
"Communities, Customer & Commercial Services",Sport & Leisure,Transport-Related Expenditure,Servicing & Repairs V&P,CENTRAL CROPSPRAYER SERVICES,12/10/2023,129.58
Health & Wellbeing,Consultant in Public Health,Supplies & Services,Sub Contractors,Central Health Solutions Ltd,18/10/2023,"1,250.00"
Health & Wellbeing,Consultant in Public Health,Supplies & Services,Sub Contractors,Central Health Solutions Ltd,18/10/2023,"2,365.00"
Health & Wellbeing,Consultant in Public Health,Supplies & Services,Sub Contractors,Central Health Solutions Ltd,18/10/2023,"1,912.85"
Education & Skills,SEND (0-25),Third Party Payments,DSG - High Needs Block,CENTRAL PARK NURSERY,16/10/2023,584.47
Education & Skills,Skills,Supplies & Services,Equipment - Purchase,CGP Books,20/10/2023,239.25
Education & Skills,Skills,Supplies & Services,Equipment - Purchase,CGP Books,20/10/2023,261.00
Education & Skills,Skills,Supplies & Services,Equipment - Purchase,CGP Books,20/10/2023,130.50
Education & Skills,Skills,Supplies & Services,Equipment - Purchase,CGP Books,20/10/2023,326.25
Education & Skills,Skills,Supplies & Services,Equipment - Purchase,CGP Books,20/10/2023,130.50
Education & Skills,SEND (0-25),Third Party Payments,DSG - High Needs Block,Chalkline Education & Support Ltd,16/10/2023,500.00
Education & Skills,SEND (0-25),Third Party Payments,DSG - High Needs Block,Chalkline Education & Support Ltd,16/10/2023,500.00
Education & Skills,SEND (0-25),Third Party Payments,DSG - High Needs Block,Chalkline Education & Support Ltd,16/10/2023,500.00
Education & Skills,SEND (0-25),Third Party Payments,DSG - High Needs Block,Chalkline Education & Support Ltd,19/10/2023,500.00
Education & Skills,SEND (0-25),Third Party Payments,DSG - High Needs Block,Chalkline Education & Support Ltd,19/10/2023,500.00
"Communities, Customer & Commercial Services",ICT,Premises-Related Expenditure,R&M -Building Other,Charlton Academy,03/10/2023,"12,489.88"
Education & Skills,Pupil Support Services,Third Party Payments,Misc. Education Payments to T&W Schools (incl Academies),Charlton Academy,12/10/2023,"3,162.57"
Education & Skills,SEND (0-25),Third Party Payments,DSG - High Needs Block,Chase Grammar School LTD,09/10/2023,"3,060.00"
Education & Skills,SEND (0-25),Third Party Payments,DSG - High Needs Block,Cherry Blossom Day Care Ltd,16/10/2023,584.47
Education & Skills,Skills,Third Party Payments,Childminders,CHILDCARE SOS,20/10/2023,186.00
Education & Skills,SEND (0-25),Third Party Payments,DSG - High Needs Block,CHIPMUNKS NURSERY,16/10/2023,"1,168.94"
Education & Skills,SEND (0-25),Third Party Payments,DSG - High Needs Block,Chipmunks Nursery OSC Ltd ,16/10/2023,"1,168.94"
Neighbourhood & Enforcement Services,Enforcement,Supplies & Services,Security Services,Chipside Ltd,12/10/2023,323.17
Neighbourhood & Enforcement Services,Enforcement,Supplies & Services,Security Services,Chipside Ltd,12/10/2023,285.36
Neighbourhood & Enforcement Services,Enforcement,Supplies & Services,Security Services,Chipside Ltd,12/10/2023,117.61
"Communities, Customer & Commercial Services",Customer Relationships & Welfare Services,Supplies & Services,Furniture - Purchase,CHRISBEON OFFICE SUPPLIES,10/10/2023,195.00
Policy & Governance,Governance & Legal Services,Supplies & Services,Miscellaneous Insurance,CHUBB European Group,16/10/2023,"14,028.62"
"Communities, Customer & Commercial Services",Sport & Leisure,Supplies & Services,Other Materials,Churches Fire Security Ltd,20/10/2023,111.90
"Communities, Customer & Commercial Services",Sport & Leisure,Supplies & Services,Other Materials,Churches Fire Security Ltd,19/10/2023,104.50
Prosperity & Investment,BiT,Premises-Related Expenditure,R&M -Buildings DLO Charge,Churches Fire Security Ltd,09/10/2023,282.00
Prosperity & Investment,BiT,Premises-Related Expenditure,R&M -Buildings DLO Charge,Churches Fire Security Ltd,25/10/2023,239.50
Prosperity & Investment,BiT,Premises-Related Expenditure,R&M -Buildings DLO Charge,Churches Fire Security Ltd,24/10/2023,103.00
Prosperity & Investment,BiT,Premises-Related Expenditure,R&M -Buildings DLO Charge,Churches Fire Security Ltd,24/10/2023,132.75
Prosperity & Investment,BiT,Premises-Related Expenditure,Service Contracts,Churches Fire Security Ltd,09/10/2023,152.70
Prosperity & Investment,BiT,Premises-Related Expenditure,Service Contracts,Churches Fire Security Ltd,18/10/2023,114.25
Prosperity & Investment,BiT,Premises-Related Expenditure,R&M -Buildings DLO Charge,Churches Fire Security Ltd,24/10/2023,210.25
Prosperity & Investment,Regeneration & Investment,Premises-Related Expenditure,R&M -Building Other,Churches Fire Security Ltd,26/10/2023,106.80
Prosperity & Investment,Regeneration & Investment,Premises-Related Expenditure,R&M -Building Other,Churches Fire Security Ltd,31/10/2023,140.00
Prosperity & Investment,Regeneration & Investment,Premises-Related Expenditure,R&M -Building Other,Churches Fire Security Ltd,31/10/2023,380.00
"Communities, Customer & Commercial Services",Sport & Leisure,Supplies & Services,Computer Hardware (Maint),CIVICA UK LIMITED,20/10/2023,140.00
"Communities, Customer & Commercial Services",Sport & Leisure,Supplies & Services,Computer Hardware (Maint),CIVICA UK LIMITED,20/10/2023,140.00
"Communities, Customer & Commercial Services",Sport & Leisure,Supplies & Services,Computer Hardware (Maint),CIVICA UK LIMITED,20/10/2023,140.00
Children�s Safeguarding & Family Support,"Family Placements, Children in Care, Leaving Care & Emergency Duty Team",Supplies & Services,Section 17 Childrens Act,C SOLICITORS,12/10/2023,413.76
Children�s Safeguarding & Family Support,"Family Placements, Children in Care, Leaving Care & Emergency Duty Team",Supplies & Services,Section 17 Childrens Act,C SOLICITORS,12/10/2023,499.14
Adult Social Care,ASC Prevention & Enablement,Supplies & Services,CL - Repairs & Maintenance,CLEANIT CLEANING SERVICES,24/10/2023,595.00
"Communities, Customer & Commercial Services",Sport & Leisure,Supplies & Services,Protective Clothing,CMW Equipment Holdings Limited,18/10/2023,150.50
Education & Skills,Skills,Supplies & Services,Computer Software (Maint),CogniSoft Limited,18/10/2023,425.00
Policy & Governance,Governance & Legal Services,Employees,Staff Training,College of Law Services,16/10/2023,"1,490.00"
"Communities, Customer & Commercial Services",Culture & Events,Supplies & Services,Advertising,Colston Media Ltd,16/10/2023,150.00
Education & Skills,Skills,Supplies & Services,Telephones,Esendex,10/10/2023,115.99
Neighbourhood & Enforcement Services,"Highways, Engineering & Project Delivery",Supplies & Services,Materials,Compass Minerals UK Ltd,02/10/2023,"6,371.68"
Neighbourhood & Enforcement Services,"Highways, Engineering & Project Delivery",Supplies & Services,Materials,Compass Minerals UK Ltd,02/10/2023,"2,545.26"
Adult Social Care,Prevention & Independence - Older Adults & Disability,Supplies & Services,Aids & Appliances,Connected Care Solutions ,23/10/2023,365.00
Children�s Safeguarding & Family Support,"Family Placements, Children in Care, Leaving Care & Emergency Duty Team",Supplies & Services,Other Services,CONNOR CASTLE,03/10/2023,107.57
"Communities, Customer & Commercial Services",Culture & Events,Supplies & Services,Equipment - Purchase,COOL SERVICES LTD,02/10/2023,179.74
"Communities, Customer & Commercial Services",Sport & Leisure,Premises-Related Expenditure,R&M -Building Other,COOL SERVICES LTD,17/10/2023,188.60
"Communities, Customer & Commercial Services",Sport & Leisure,Premises-Related Expenditure,R&M -Building Other,COOL SERVICES LTD,20/10/2023,194.70
Prosperity & Investment,BiT,Premises-Related Expenditure,R&M -Buildings DLO Charge,COOL SERVICES LTD,03/10/2023,138.00
Prosperity & Investment,BiT,Premises-Related Expenditure,R&M -Buildings DLO Charge,COOL SERVICES LTD,03/10/2023,"1,959.14"
Prosperity & Investment,BiT,Premises-Related Expenditure,R&M -Buildings DLO Charge,COOL SERVICES LTD,13/10/2023,437.19
Prosperity & Investment,BiT,Premises-Related Expenditure,R&M -Buildings DLO Charge,COOL SERVICES LTD,20/10/2023,534.01
Prosperity & Investment,BiT,Premises-Related Expenditure,R&M -Buildings DLO Charge,COOL SERVICES LTD,20/10/2023,"2,104.96"
Prosperity & Investment,BiT,Premises-Related Expenditure,R&M -Buildings DLO Charge,COOL SERVICES LTD,03/10/2023,200.40
Prosperity & Investment,BiT,Premises-Related Expenditure,R&M -Buildings DLO Charge,COOL SERVICES LTD,13/10/2023,161.00
Prosperity & Investment,BiT,Premises-Related Expenditure,R&M -Buildings DLO Charge,COOL SERVICES LTD,20/10/2023,"2,142.84"
Prosperity & Investment,BiT,Premises-Related Expenditure,Service Contracts,COOL SERVICES LTD,13/10/2023,171.00
Prosperity & Investment,Regeneration & Investment,Premises-Related Expenditure,Dilapidations,COOL SERVICES LTD,17/10/2023,138.00
Education & Skills,Education & Skills,Capital Expenditure,Payments to Contractor,C & W LTD,18/10/2023,"138,371.59"
Education & Skills,Education & Skills,Capital Expenditure,Payments to Contractor,C & W LTD,25/10/2023,"51,055.30"
"Communities, Customer & Commercial Services",Sport & Leisure,Supplies & Services,Protective Clothing,CORPORATE TOGS LTD,18/10/2023,175.00
"Communities, Customer & Commercial Services",Sport & Leisure,Supplies & Services,Protective Clothing,CORPORATE TOGS LTD,16/10/2023,901.34
Children�s Safeguarding & Family Support,"Family Placements, Children in Care, Leaving Care & Emergency Duty Team",Supplies & Services,Doctors Fees,COURT STREET MEDICAL PRACTICE,16/10/2023,108.00
Health & Wellbeing,Health Improvement,Supplies & Services,Comp Hardware (Purch / Hire),COVERGOLD LTD,17/10/2023,"4,250.00"
Health & Wellbeing,Health Improvement,Supplies & Services,Comp Hardware (Purch / Hire),COVERGOLD LTD,17/10/2023,415.00
Education & Skills,Skills,Premises-Related Expenditure,Hire Of Rooms,Creative Training Spaces,12/10/2023,131.25
Neighbourhood & Enforcement Services,Strategic Transport & Highway Network Management,Transport-Related Expenditure,Vehicle Parts,Crelling Harnesses For Disabled Ltd,13/10/2023,510.00
Neighbourhood & Enforcement Services,Strategic Transport & Highway Network Management,Transport-Related Expenditure,Vehicle Parts,Crelling Harnesses For Disabled Ltd,24/10/2023,560.00
Prosperity & Investment,BiT,Premises-Related Expenditure,Grounds Maintenance - Other,Cropper Grounds Maintenance Ltd,03/10/2023,"4,279.12"
Prosperity & Investment,BiT,Premises-Related Expenditure,Grounds Maintenance - Other,Cropper Grounds Maintenance Ltd,03/10/2023,"4,279.12"
Education & Skills,SEND (0-25),Third Party Payments,DSG - High Needs Block,CROSSBAR COACHING,30/10/2023,"7,800.00"
Education & Skills,SEND (0-25),Third Party Payments,DSG - High Needs Block,CROSSBAR COACHING,30/10/2023,"201,825.00"
"Communities, Customer & Commercial Services",Culture & Events,Supplies & Services,Promotion Expenses,crowdEngage Limited,06/10/2023,241.99
"Communities, Customer & Commercial Services",Sport & Leisure,Premises-Related Expenditure,R&M - Mechanical,Culligan LTD,20/10/2023,117.72
Prosperity & Investment,BiT,Supplies & Services,Equipment - Hire,Culligan LTD,09/10/2023,125.30
Prosperity & Investment,BiT,Supplies & Services,Equipment - Hire,Culligan LTD,20/10/2023,129.92
"Communities, Customer & Commercial Services",Culture & Events,Supplies & Services,Artistes Fees,CultureTainment CIC,16/10/2023,"1,429.12"
Neighbourhood & Enforcement Services,Strategic Transport & Highway Network Management,Supplies & Services,Concessionary Travel,D&G Bus,19/10/2023,"2,233.00"
Neighbourhood & Enforcement Services,Strategic Transport & Highway Network Management,Supplies & Services,Concessionary Travel,D&G Bus,19/10/2023,"2,419.00"
Neighbourhood & Enforcement Services,Strategic Transport & Highway Network Management,Transport-Related Expenditure,Subsidised Routes,D&G Bus,19/10/2023,"39,834.33"
Neighbourhood & Enforcement Services,Strategic Transport & Highway Network Management,Transport-Related Expenditure,Subsidised Routes,D&G Bus,19/10/2023,"16,762.40"
Neighbourhood & Enforcement Services,Strategic Transport & Highway Network Management,Transport-Related Expenditure,Subsidised Routes,D&G Bus,19/10/2023,"20,682.70"
Neighbourhood & Enforcement Services,Strategic Transport & Highway Network Management,Transport-Related Expenditure,Subsidised Routes,D&G Bus,19/10/2023,"1,250.70"
Neighbourhood & Enforcement Services,Strategic Transport & Highway Network Management,Transport-Related Expenditure,Subsidised Routes,D&G Bus,19/10/2023,605.00
Neighbourhood & Enforcement Services,Strategic Transport & Highway Network Management,Transport-Related Expenditure,Subsidised Routes,D&G Bus,19/10/2023,"36,563.40"
Neighbourhood & Enforcement Services,Strategic Transport & Highway Network Management,Transport-Related Expenditure,Subsidised Routes,D&G Bus,19/10/2023,"15,009.70"
Neighbourhood & Enforcement Services,Strategic Transport & Highway Network Management,Transport-Related Expenditure,Subsidised Routes,D&G Bus,19/10/2023,"19,710.85"
Neighbourhood & Enforcement Services,Strategic Transport & Highway Network Management,Transport-Related Expenditure,Subsidised Routes,D&G Bus,19/10/2023,"1,170.35"
Neighbourhood & Enforcement Services,Strategic Transport & Highway Network Management,Transport-Related Expenditure,Subsidised Routes,D&G Bus,19/10/2023,572.00
Neighbourhood & Enforcement Services,Strategic Transport & Highway Network Management,Capital Expenditure,Payments to Contractor,D&G Bus,25/10/2023,200.00
Neighbourhood & Enforcement Services,Strategic Transport & Highway Network Management,Capital Expenditure,Payments to Contractor,D&G Bus,25/10/2023,250.00
Neighbourhood & Enforcement Services,Strategic Transport & Highway Network Management,Capital Expenditure,Payments to Contractor,D&G Bus,25/10/2023,225.00
Neighbourhood & Enforcement Services,Strategic Transport & Highway Network Management,Capital Expenditure,Payments to Contractor,D&G Bus,25/10/2023,"3,600.00"
Neighbourhood & Enforcement Services,Strategic Transport & Highway Network Management,Capital Expenditure,Payments to Contractor,D&G Bus,25/10/2023,"4,140.00"
Neighbourhood & Enforcement Services,Strategic Transport & Highway Network Management,Capital Expenditure,Payments to Contractor,D&G Bus,25/10/2023,"1,500.00"
Education & Skills,SEND (0-25),Third Party Payments,DSG - High Needs Block,DAISY CHAIN @ OLD HALL,16/10/2023,584.47
"Communities, Customer & Commercial Services",ICT,Capital Expenditure,Computer Hardware,Daisy Corporate Services Trading Limited,16/10/2023,"2,021.28"
Health & Wellbeing,Health Improvement,Premises-Related Expenditure,Hire Of Rooms,D H TRUST,18/10/2023,168.00
"Communities, Customer & Commercial Services",Culture & Events,Supplies & Services,Artistes Fees,D M Productions Ltd,24/10/2023,"5,852.62"
Children�s Safeguarding & Family Support,"Family Placements, Children in Care, Leaving Care & Emergency Duty Team",Premises-Related Expenditure,Hire Of Rooms,Dawley Baptist Church,10/10/2023,627.00
Children�s Safeguarding & Family Support,"Family Placements, Children in Care, Leaving Care & Emergency Duty Team",Premises-Related Expenditure,Hire Of Rooms,Dawley Baptist Church,16/10/2023,150.00
Education & Skills,SEND (0-25),Third Party Payments,DSG - High Needs Block,Dawley C of E Primary Academy,16/10/2023,"1,953.74"
Neighbourhood & Enforcement Services,Strategic Transport & Highway Network Management,Transport-Related Expenditure,Outside Hire,DAYS RENTAL,05/10/2023,300.30
Neighbourhood & Enforcement Services,Strategic Transport & Highway Network Management,Transport-Related Expenditure,Outside Hire,DAYS RENTAL,05/10/2023,300.30
Neighbourhood & Enforcement Services,Strategic Transport & Highway Network Management,Transport-Related Expenditure,Outside Hire,DAYS RENTAL,05/10/2023,300.30
Neighbourhood & Enforcement Services,Strategic Transport & Highway Network Management,Transport-Related Expenditure,Outside Hire,DAYS RENTAL,05/10/2023,300.30
Neighbourhood & Enforcement Services,Strategic Transport & Highway Network Management,Transport-Related Expenditure,Outside Hire,DAYS RENTAL,05/10/2023,429.90
Neighbourhood & Enforcement Services,Strategic Transport & Highway Network Management,Transport-Related Expenditure,Outside Hire,DAYS RENTAL,05/10/2023,300.30
Neighbourhood & Enforcement Services,Strategic Transport & Highway Network Management,Transport-Related Expenditure,Outside Hire,DAYS RENTAL,05/10/2023,300.30
Neighbourhood & Enforcement Services,Strategic Transport & Highway Network Management,Transport-Related Expenditure,Outside Hire,DAYS RENTAL,05/10/2023,410.10
Neighbourhood & Enforcement Services,Strategic Transport & Highway Network Management,Transport-Related Expenditure,Outside Hire,DAYS RENTAL,05/10/2023,300.30
Neighbourhood & Enforcement Services,Strategic Transport & Highway Network Management,Transport-Related Expenditure,Outside Hire,DAYS RENTAL,05/10/2023,300.30
Neighbourhood & Enforcement Services,Strategic Transport & Highway Network Management,Transport-Related Expenditure,Outside Hire,DAYS RENTAL,24/10/2023,246.06
Neighbourhood & Enforcement Services,Strategic Transport & Highway Network Management,Transport-Related Expenditure,Outside Hire,DAYS RENTAL,05/10/2023,410.10
Neighbourhood & Enforcement Services,Strategic Transport & Highway Network Management,Transport-Related Expenditure,Outside Hire,DAYS RENTAL,05/10/2023,410.10
Neighbourhood & Enforcement Services,Strategic Transport & Highway Network Management,Transport-Related Expenditure,Outside Hire,DAYS RENTAL,05/10/2023,"1,133.10"
Neighbourhood & Enforcement Services,Strategic Transport & Highway Network Management,Transport-Related Expenditure,Intra Committee - Transport,DAYS RENTAL,05/10/2023,"1,229.10"
Neighbourhood & Enforcement Services,Strategic Transport & Highway Network Management,Transport-Related Expenditure,Outside Hire,DAYS RENTAL,05/10/2023,410.10
Neighbourhood & Enforcement Services,Strategic Transport & Highway Network Management,Transport-Related Expenditure,Outside Hire,DAYS RENTAL,09/10/2023,477.30
Neighbourhood & Enforcement Services,Strategic Transport & Highway Network Management,Transport-Related Expenditure,Hire Charges from MO,DAYS RENTAL,09/10/2023,410.10
"Communities, Customer & Commercial Services",Sport & Leisure,Supplies & Services,Provisions,Delice de France,02/10/2023,215.12
"Communities, Customer & Commercial Services",Sport & Leisure,Supplies & Services,Provisions,Delice de France,13/10/2023,254.64
"Communities, Customer & Commercial Services",Sport & Leisure,Supplies & Services,Provisions,Delice de France,20/10/2023,"1,011.78"
Neighbourhood & Enforcement Services,Safer & Stronger Communities,Supplies & Services,Other Services,REDACTED PERSONAL INFORMATION,18/10/2023,160.00
Finance & Human Resources,Human Resources,Employees,Criminal Records Bureau Checks,DISCLOSURE & BARRING SERVICE,05/10/2023,"5,598.00"
Finance & Human Resources,Human Resources,Employees,Criminal Records Bureau Checks,DISCLOSURE & BARRING SERVICE,10/10/2023,"5,184.00"
"Communities, Customer & Commercial Services",Customer Relationships & Welfare Services,Supplies & Services,Other Grants (Expenses),Discretionary Household Support,12/10/2023,241.64
"Communities, Customer & Commercial Services",Customer Relationships & Welfare Services,Supplies & Services,Other Grants (Expenses),Discretionary Household Support,05/10/2023,150.00
"Communities, Customer & Commercial Services",Customer Relationships & Welfare Services,Supplies & Services,Other Grants (Expenses),Discretionary Household Support,11/10/2023,120.00
"Communities, Customer & Commercial Services",Culture & Events,Supplies & Services,Audit Services,DMC STOCKTAKING,26/10/2023,160.00
"Communities, Customer & Commercial Services",Culture & Events,Supplies & Services,Audit Services,DMC STOCKTAKING,26/10/2023,160.00
"Communities, Customer & Commercial Services",Sport & Leisure,Supplies & Services,Provisions,BIKOLD,12/10/2023,123.49
"Communities, Customer & Commercial Services",Sport & Leisure,Supplies & Services,Provisions,BIKOLD,19/10/2023,161.36
"Communities, Customer & Commercial Services",Sport & Leisure,Supplies & Services,Provisions,BIKOLD,26/10/2023,158.42
"Communities, Customer & Commercial Services",Sport & Leisure,Supplies & Services,Provisions,BIKOLD,05/10/2023,215.00
"Communities, Customer & Commercial Services",Sport & Leisure,Supplies & Services,Provisions,BIKOLD,05/10/2023,132.80
"Communities, Customer & Commercial Services",Sport & Leisure,Supplies & Services,Provisions,BIKOLD,05/10/2023,264.58
"Communities, Customer & Commercial Services",Sport & Leisure,Supplies & Services,Provisions,BIKOLD,05/10/2023,554.11
"Communities, Customer & Commercial Services",Sport & Leisure,Supplies & Services,Provisions,BIKOLD,05/10/2023,104.97
"Communities, Customer & Commercial Services",Sport & Leisure,Supplies & Services,Provisions,BIKOLD,05/10/2023,121.50
"Communities, Customer & Commercial Services",Sport & Leisure,Supplies & Services,Provisions,BIKOLD,05/10/2023,149.23
"Communities, Customer & Commercial Services",Sport & Leisure,Supplies & Services,Provisions,BIKOLD,05/10/2023,504.83
"Communities, Customer & Commercial Services",Sport & Leisure,Supplies & Services,Provisions,BIKOLD,05/10/2023,143.47
"Communities, Customer & Commercial Services",Sport & Leisure,Supplies & Services,Provisions,BIKOLD,05/10/2023,381.14
"Communities, Customer & Commercial Services",Sport & Leisure,Supplies & Services,Provisions,BIKOLD,05/10/2023,315.03
"Communities, Customer & Commercial Services",Sport & Leisure,Supplies & Services,Provisions,BIKOLD,05/10/2023,492.19
"Communities, Customer & Commercial Services",Sport & Leisure,Supplies & Services,Provisions,BIKOLD,05/10/2023,141.87
"Communities, Customer & Commercial Services",Sport & Leisure,Supplies & Services,Provisions,BIKOLD,05/10/2023,271.69
"Communities, Customer & Commercial Services",Sport & Leisure,Supplies & Services,Provisions,BIKOLD,05/10/2023,350.32
"Communities, Customer & Commercial Services",Sport & Leisure,Supplies & Services,Provisions,BIKOLD,05/10/2023,389.52
"Communities, Customer & Commercial Services",Sport & Leisure,Supplies & Services,Provisions,BIKOLD,05/10/2023,394.42
"Communities, Customer & Commercial Services",Sport & Leisure,Supplies & Services,Provisions,BIKOLD,05/10/2023,130.17
"Communities, Customer & Commercial Services",Sport & Leisure,Supplies & Services,Provisions,BIKOLD,05/10/2023,195.79
"Communities, Customer & Commercial Services",Sport & Leisure,Supplies & Services,Provisions,BIKOLD,05/10/2023,138.50
"Communities, Customer & Commercial Services",Sport & Leisure,Supplies & Services,Provisions,BIKOLD,05/10/2023,115.08
"Communities, Customer & Commercial Services",Sport & Leisure,Supplies & Services,Provisions,BIKOLD,05/10/2023,388.50
"Communities, Customer & Commercial Services",Sport & Leisure,Supplies & Services,Provisions,BIKOLD,05/10/2023,713.10
"Communities, Customer & Commercial Services",Sport & Leisure,Supplies & Services,Provisions,BIKOLD,05/10/2023,234.49
"Communities, Customer & Commercial Services",Sport & Leisure,Supplies & Services,Provisions,BIKOLD,05/10/2023,702.12
"Communities, Customer & Commercial Services",Sport & Leisure,Supplies & Services,Provisions,BIKOLD,05/10/2023,197.13
"Communities, Customer & Commercial Services",Sport & Leisure,Supplies & Services,Provisions,BIKOLD,05/10/2023,716.53
"Communities, Customer & Commercial Services",Sport & Leisure,Supplies & Services,Provisions,BIKOLD,05/10/2023,118.99
"Communities, Customer & Commercial Services",Sport & Leisure,Supplies & Services,Provisions,BIKOLD,05/10/2023,190.09
"Communities, Customer & Commercial Services",Sport & Leisure,Supplies & Services,Provisions,BIKOLD,05/10/2023,263.09
"Communities, Customer & Commercial Services",Sport & Leisure,Supplies & Services,Provisions,BIKOLD,05/10/2023,160.72
"Communities, Customer & Commercial Services",Sport & Leisure,Supplies & Services,Provisions,BIKOLD,05/10/2023,460.90
"Communities, Customer & Commercial Services",Sport & Leisure,Supplies & Services,Provisions,BIKOLD,05/10/2023,216.54
"Communities, Customer & Commercial Services",Sport & Leisure,Supplies & Services,Provisions,BIKOLD,05/10/2023,181.05
"Communities, Customer & Commercial Services",Sport & Leisure,Supplies & Services,Provisions,BIKOLD,05/10/2023,171.57
"Communities, Customer & Commercial Services",Sport & Leisure,Supplies & Services,Provisions,BIKOLD,05/10/2023,468.42
"Communities, Customer & Commercial Services",Sport & Leisure,Supplies & Services,Provisions,BIKOLD,05/10/2023,336.24
"Communities, Customer & Commercial Services",Sport & Leisure,Supplies & Services,Provisions,BIKOLD,05/10/2023,149.04
"Communities, Customer & Commercial Services",Sport & Leisure,Supplies & Services,Provisions,BIKOLD,05/10/2023,107.06
"Communities, Customer & Commercial Services",Sport & Leisure,Supplies & Services,Provisions,BIKOLD,05/10/2023,107.97
"Communities, Customer & Commercial Services",Sport & Leisure,Supplies & Services,Provisions,BIKOLD,05/10/2023,321.08
"Communities, Customer & Commercial Services",Sport & Leisure,Supplies & Services,Provisions,BIKOLD,05/10/2023,155.38
"Communities, Customer & Commercial Services",Sport & Leisure,Supplies & Services,Provisions,BIKOLD,05/10/2023,165.16
"Communities, Customer & Commercial Services",Sport & Leisure,Supplies & Services,Provisions,BIKOLD,05/10/2023,353.25
"Communities, Customer & Commercial Services",Sport & Leisure,Supplies & Services,Provisions,BIKOLD,05/10/2023,142.17
"Communities, Customer & Commercial Services",Sport & Leisure,Supplies & Services,Provisions,BIKOLD,05/10/2023,101.54
"Communities, Customer & Commercial Services",Sport & Leisure,Supplies & Services,Provisions,BIKOLD,05/10/2023,146.78
"Communities, Customer & Commercial Services",Sport & Leisure,Supplies & Services,Provisions,BIKOLD,05/10/2023,291.85
"Communities, Customer & Commercial Services",Sport & Leisure,Supplies & Services,Provisions,BIKOLD,05/10/2023,131.37
"Communities, Customer & Commercial Services",Sport & Leisure,Supplies & Services,Provisions,BIKOLD,05/10/2023,136.41
"Communities, Customer & Commercial Services",Sport & Leisure,Supplies & Services,Provisions,BIKOLD,05/10/2023,154.20
"Communities, Customer & Commercial Services",Sport & Leisure,Supplies & Services,Provisions,BIKOLD,05/10/2023,100.48
"Communities, Customer & Commercial Services",Sport & Leisure,Supplies & Services,Provisions,BIKOLD,05/10/2023,120.44
"Communities, Customer & Commercial Services",Sport & Leisure,Supplies & Services,Provisions,BIKOLD,05/10/2023,615.29
"Communities, Customer & Commercial Services",Sport & Leisure,Supplies & Services,Provisions,BIKOLD,05/10/2023,300.80
"Communities, Customer & Commercial Services",Sport & Leisure,Supplies & Services,Provisions,BIKOLD,05/10/2023,505.52
"Communities, Customer & Commercial Services",Sport & Leisure,Supplies & Services,Provisions,BIKOLD,05/10/2023,660.48
"Communities, Customer & Commercial Services",Sport & Leisure,Supplies & Services,Provisions,BIKOLD,05/10/2023,265.19
"Communities, Customer & Commercial Services",Sport & Leisure,Supplies & Services,Provisions,BIKOLD,05/10/2023,123.06
"Communities, Customer & Commercial Services",Sport & Leisure,Supplies & Services,Provisions,BIKOLD,05/10/2023,148.44
"Communities, Customer & Commercial Services",Sport & Leisure,Supplies & Services,Provisions,BIKOLD,05/10/2023,215.69
"Communities, Customer & Commercial Services",Sport & Leisure,Supplies & Services,Provisions,BIKOLD,05/10/2023,283.96
"Communities, Customer & Commercial Services",Sport & Leisure,Supplies & Services,Provisions,BIKOLD,05/10/2023,133.45
"Communities, Customer & Commercial Services",Sport & Leisure,Supplies & Services,Provisions,BIKOLD,05/10/2023,175.25
"Communities, Customer & Commercial Services",Sport & Leisure,Supplies & Services,Provisions,BIKOLD,05/10/2023,625.63
"Communities, Customer & Commercial Services",Sport & Leisure,Supplies & Services,Provisions,BIKOLD,05/10/2023,195.62
"Communities, Customer & Commercial Services",Sport & Leisure,Supplies & Services,Provisions,BIKOLD,05/10/2023,427.88
"Communities, Customer & Commercial Services",Sport & Leisure,Supplies & Services,Provisions,BIKOLD,05/10/2023,416.54
"Communities, Customer & Commercial Services",Sport & Leisure,Supplies & Services,Provisions,BIKOLD,05/10/2023,203.26
"Communities, Customer & Commercial Services",Sport & Leisure,Supplies & Services,Provisions,BIKOLD,05/10/2023,109.31
"Communities, Customer & Commercial Services",Sport & Leisure,Supplies & Services,Provisions,BIKOLD,05/10/2023,125.77
"Communities, Customer & Commercial Services",Sport & Leisure,Supplies & Services,Provisions,BIKOLD,05/10/2023,525.91
"Communities, Customer & Commercial Services",Sport & Leisure,Supplies & Services,Provisions,BIKOLD,05/10/2023,189.04
"Communities, Customer & Commercial Services",Sport & Leisure,Supplies & Services,Provisions,BIKOLD,05/10/2023,200.17
"Communities, Customer & Commercial Services",Sport & Leisure,Supplies & Services,Provisions,BIKOLD,05/10/2023,282.87
"Communities, Customer & Commercial Services",Sport & Leisure,Supplies & Services,Provisions,BIKOLD,05/10/2023,206.08
"Communities, Customer & Commercial Services",Sport & Leisure,Supplies & Services,Provisions,BIKOLD,05/10/2023,522.97
"Communities, Customer & Commercial Services",Sport & Leisure,Supplies & Services,Provisions,BIKOLD,05/10/2023,280.76
"Communities, Customer & Commercial Services",Sport & Leisure,Supplies & Services,Provisions,BIKOLD,05/10/2023,474.22
"Communities, Customer & Commercial Services",Sport & Leisure,Supplies & Services,Provisions,BIKOLD,05/10/2023,167.01
"Communities, Customer & Commercial Services",Sport & Leisure,Supplies & Services,Provisions,BIKOLD,05/10/2023,159.50
"Communities, Customer & Commercial Services",Sport & Leisure,Supplies & Services,Provisions,BIKOLD,05/10/2023,163.22
"Communities, Customer & Commercial Services",Sport & Leisure,Supplies & Services,Provisions,BIKOLD,05/10/2023,120.33
"Communities, Customer & Commercial Services",Sport & Leisure,Supplies & Services,Provisions,BIKOLD,05/10/2023,243.05
"Communities, Customer & Commercial Services",Sport & Leisure,Supplies & Services,Provisions,BIKOLD,05/10/2023,317.01
"Communities, Customer & Commercial Services",Sport & Leisure,Supplies & Services,Provisions,BIKOLD,05/10/2023,156.13
"Communities, Customer & Commercial Services",Sport & Leisure,Supplies & Services,Provisions,BIKOLD,05/10/2023,134.49
"Communities, Customer & Commercial Services",Sport & Leisure,Supplies & Services,Provisions,BIKOLD,05/10/2023,117.43
"Communities, Customer & Commercial Services",Sport & Leisure,Supplies & Services,Provisions,BIKOLD,05/10/2023,355.44
"Communities, Customer & Commercial Services",Sport & Leisure,Supplies & Services,Provisions,BIKOLD,05/10/2023,503.01
"Communities, Customer & Commercial Services",Sport & Leisure,Supplies & Services,Provisions,BIKOLD,05/10/2023,253.73
"Communities, Customer & Commercial Services",Sport & Leisure,Supplies & Services,Provisions,BIKOLD,05/10/2023,204.17
"Communities, Customer & Commercial Services",Sport & Leisure,Supplies & Services,Provisions,BIKOLD,12/10/2023,265.47
"Communities, Customer & Commercial Services",Sport & Leisure,Supplies & Services,Provisions,BIKOLD,12/10/2023,314.88
"Communities, Customer & Commercial Services",Sport & Leisure,Supplies & Services,Provisions,BIKOLD,12/10/2023,111.78
"Communities, Customer & Commercial Services",Sport & Leisure,Supplies & Services,Provisions,BIKOLD,12/10/2023,345.58
"Communities, Customer & Commercial Services",Sport & Leisure,Supplies & Services,Provisions,BIKOLD,12/10/2023,121.42
"Communities, Customer & Commercial Services",Sport & Leisure,Supplies & Services,Provisions,BIKOLD,12/10/2023,192.72
"Communities, Customer & Commercial Services",Sport & Leisure,Supplies & Services,Provisions,BIKOLD,12/10/2023,169.81
"Communities, Customer & Commercial Services",Sport & Leisure,Supplies & Services,Provisions,BIKOLD,12/10/2023,240.30
"Communities, Customer & Commercial Services",Sport & Leisure,Supplies & Services,Provisions,BIKOLD,12/10/2023,114.55
"Communities, Customer & Commercial Services",Sport & Leisure,Supplies & Services,Provisions,BIKOLD,12/10/2023,114.13
"Communities, Customer & Commercial Services",Sport & Leisure,Supplies & Services,Provisions,BIKOLD,12/10/2023,313.39
"Communities, Customer & Commercial Services",Sport & Leisure,Supplies & Services,Provisions,BIKOLD,12/10/2023,238.88
"Communities, Customer & Commercial Services",Sport & Leisure,Supplies & Services,Provisions,BIKOLD,12/10/2023,291.80
"Communities, Customer & Commercial Services",Sport & Leisure,Supplies & Services,Provisions,BIKOLD,12/10/2023,310.77
"Communities, Customer & Commercial Services",Sport & Leisure,Supplies & Services,Provisions,BIKOLD,12/10/2023,202.20
"Communities, Customer & Commercial Services",Sport & Leisure,Supplies & Services,Provisions,BIKOLD,12/10/2023,182.60
"Communities, Customer & Commercial Services",Sport & Leisure,Supplies & Services,Provisions,BIKOLD,12/10/2023,187.98
"Communities, Customer & Commercial Services",Sport & Leisure,Supplies & Services,Provisions,BIKOLD,12/10/2023,106.27
"Communities, Customer & Commercial Services",Sport & Leisure,Supplies & Services,Provisions,BIKOLD,12/10/2023,285.36
"Communities, Customer & Commercial Services",Sport & Leisure,Supplies & Services,Provisions,BIKOLD,12/10/2023,119.55
"Communities, Customer & Commercial Services",Sport & Leisure,Supplies & Services,Provisions,BIKOLD,12/10/2023,240.51
"Communities, Customer & Commercial Services",Sport & Leisure,Supplies & Services,Provisions,BIKOLD,12/10/2023,129.98
"Communities, Customer & Commercial Services",Sport & Leisure,Supplies & Services,Provisions,BIKOLD,12/10/2023,143.60
"Communities, Customer & Commercial Services",Sport & Leisure,Supplies & Services,Provisions,BIKOLD,12/10/2023,126.27
"Communities, Customer & Commercial Services",Sport & Leisure,Supplies & Services,Provisions,BIKOLD,12/10/2023,178.74
"Communities, Customer & Commercial Services",Sport & Leisure,Supplies & Services,Provisions,BIKOLD,12/10/2023,324.36
"Communities, Customer & Commercial Services",Sport & Leisure,Supplies & Services,Provisions,BIKOLD,12/10/2023,101.76
"Communities, Customer & Commercial Services",Sport & Leisure,Supplies & Services,Provisions,BIKOLD,12/10/2023,361.50
"Communities, Customer & Commercial Services",Sport & Leisure,Supplies & Services,Provisions,BIKOLD,12/10/2023,182.50
"Communities, Customer & Commercial Services",Sport & Leisure,Supplies & Services,Provisions,BIKOLD,12/10/2023,125.48
"Communities, Customer & Commercial Services",Sport & Leisure,Supplies & Services,Provisions,BIKOLD,12/10/2023,701.36
"Communities, Customer & Commercial Services",Sport & Leisure,Supplies & Services,Provisions,BIKOLD,12/10/2023,295.18
"Communities, Customer & Commercial Services",Sport & Leisure,Supplies & Services,Provisions,BIKOLD,12/10/2023,326.20
"Communities, Customer & Commercial Services",Sport & Leisure,Supplies & Services,Provisions,BIKOLD,12/10/2023,120.54
"Communities, Customer & Commercial Services",Sport & Leisure,Supplies & Services,Provisions,BIKOLD,12/10/2023,243.88
"Communities, Customer & Commercial Services",Sport & Leisure,Supplies & Services,Provisions,BIKOLD,12/10/2023,222.60
"Communities, Customer & Commercial Services",Sport & Leisure,Supplies & Services,Provisions,BIKOLD,12/10/2023,110.99
"Communities, Customer & Commercial Services",Sport & Leisure,Supplies & Services,Provisions,BIKOLD,12/10/2023,148.34
"Communities, Customer & Commercial Services",Sport & Leisure,Supplies & Services,Provisions,BIKOLD,12/10/2023,406.46
"Communities, Customer & Commercial Services",Sport & Leisure,Supplies & Services,Provisions,BIKOLD,12/10/2023,119.97
"Communities, Customer & Commercial Services",Sport & Leisure,Supplies & Services,Provisions,BIKOLD,12/10/2023,132.86
"Communities, Customer & Commercial Services",Sport & Leisure,Supplies & Services,Provisions,BIKOLD,12/10/2023,353.75
"Communities, Customer & Commercial Services",Sport & Leisure,Supplies & Services,Provisions,BIKOLD,12/10/2023,371.81
"Communities, Customer & Commercial Services",Sport & Leisure,Supplies & Services,Provisions,BIKOLD,12/10/2023,142.68
"Communities, Customer & Commercial Services",Sport & Leisure,Supplies & Services,Provisions,BIKOLD,12/10/2023,380.11
"Communities, Customer & Commercial Services",Sport & Leisure,Supplies & Services,Provisions,BIKOLD,12/10/2023,132.63
"Communities, Customer & Commercial Services",Sport & Leisure,Supplies & Services,Provisions,BIKOLD,12/10/2023,123.82
"Communities, Customer & Commercial Services",Sport & Leisure,Supplies & Services,Provisions,BIKOLD,12/10/2023,118.09
"Communities, Customer & Commercial Services",Sport & Leisure,Supplies & Services,Provisions,BIKOLD,12/10/2023,268.60
"Communities, Customer & Commercial Services",Sport & Leisure,Supplies & Services,Provisions,BIKOLD,12/10/2023,225.71
"Communities, Customer & Commercial Services",Sport & Leisure,Supplies & Services,Provisions,BIKOLD,12/10/2023,566.67
"Communities, Customer & Commercial Services",Sport & Leisure,Supplies & Services,Provisions,BIKOLD,12/10/2023,154.77
"Communities, Customer & Commercial Services",Sport & Leisure,Supplies & Services,Provisions,BIKOLD,12/10/2023,260.03
"Communities, Customer & Commercial Services",Sport & Leisure,Supplies & Services,Provisions,BIKOLD,12/10/2023,534.26
"Communities, Customer & Commercial Services",Sport & Leisure,Supplies & Services,Provisions,BIKOLD,12/10/2023,522.81
"Communities, Customer & Commercial Services",Sport & Leisure,Supplies & Services,Provisions,BIKOLD,12/10/2023,561.91
"Communities, Customer & Commercial Services",Sport & Leisure,Supplies & Services,Provisions,BIKOLD,12/10/2023,135.70
"Communities, Customer & Commercial Services",Sport & Leisure,Supplies & Services,Provisions,BIKOLD,12/10/2023,190.00
"Communities, Customer & Commercial Services",Sport & Leisure,Supplies & Services,Provisions,BIKOLD,12/10/2023,232.64
"Communities, Customer & Commercial Services",Sport & Leisure,Supplies & Services,Provisions,BIKOLD,12/10/2023,181.01
"Communities, Customer & Commercial Services",Sport & Leisure,Supplies & Services,Provisions,BIKOLD,12/10/2023,313.33
"Communities, Customer & Commercial Services",Sport & Leisure,Supplies & Services,Provisions,BIKOLD,12/10/2023,137.93
"Communities, Customer & Commercial Services",Sport & Leisure,Supplies & Services,Provisions,BIKOLD,12/10/2023,210.48
"Communities, Customer & Commercial Services",Sport & Leisure,Supplies & Services,Provisions,BIKOLD,12/10/2023,260.02
"Communities, Customer & Commercial Services",Sport & Leisure,Supplies & Services,Provisions,BIKOLD,12/10/2023,124.26
"Communities, Customer & Commercial Services",Sport & Leisure,Supplies & Services,Provisions,BIKOLD,12/10/2023,258.88
"Communities, Customer & Commercial Services",Sport & Leisure,Supplies & Services,Provisions,BIKOLD,12/10/2023,193.04
"Communities, Customer & Commercial Services",Sport & Leisure,Supplies & Services,Provisions,BIKOLD,12/10/2023,344.67
"Communities, Customer & Commercial Services",Sport & Leisure,Supplies & Services,Provisions,BIKOLD,12/10/2023,264.22
"Communities, Customer & Commercial Services",Sport & Leisure,Supplies & Services,Provisions,BIKOLD,12/10/2023,177.16
"Communities, Customer & Commercial Services",Sport & Leisure,Supplies & Services,Provisions,BIKOLD,12/10/2023,229.51
"Communities, Customer & Commercial Services",Sport & Leisure,Supplies & Services,Provisions,BIKOLD,12/10/2023,397.62
"Communities, Customer & Commercial Services",Sport & Leisure,Supplies & Services,Provisions,BIKOLD,12/10/2023,119.00
"Communities, Customer & Commercial Services",Sport & Leisure,Supplies & Services,Provisions,BIKOLD,12/10/2023,260.88
"Communities, Customer & Commercial Services",Sport & Leisure,Supplies & Services,Provisions,BIKOLD,12/10/2023,102.28
"Communities, Customer & Commercial Services",Sport & Leisure,Supplies & Services,Provisions,BIKOLD,12/10/2023,409.08
"Communities, Customer & Commercial Services",Sport & Leisure,Supplies & Services,Provisions,BIKOLD,12/10/2023,380.38
"Communities, Customer & Commercial Services",Sport & Leisure,Supplies & Services,Provisions,BIKOLD,12/10/2023,107.40
"Communities, Customer & Commercial Services",Sport & Leisure,Supplies & Services,Provisions,BIKOLD,12/10/2023,242.34
"Communities, Customer & Commercial Services",Sport & Leisure,Supplies & Services,Provisions,BIKOLD,19/10/2023,140.69
"Communities, Customer & Commercial Services",Sport & Leisure,Supplies & Services,Provisions,BIKOLD,19/10/2023,169.21
"Communities, Customer & Commercial Services",Sport & Leisure,Supplies & Services,Provisions,BIKOLD,19/10/2023,613.93
"Communities, Customer & Commercial Services",Sport & Leisure,Supplies & Services,Provisions,BIKOLD,19/10/2023,100.76
"Communities, Customer & Commercial Services",Sport & Leisure,Supplies & Services,Provisions,BIKOLD,19/10/2023,112.67
"Communities, Customer & Commercial Services",Sport & Leisure,Supplies & Services,Provisions,BIKOLD,19/10/2023,125.40
"Communities, Customer & Commercial Services",Sport & Leisure,Supplies & Services,Provisions,BIKOLD,19/10/2023,140.54
"Communities, Customer & Commercial Services",Sport & Leisure,Supplies & Services,Provisions,BIKOLD,19/10/2023,190.80
"Communities, Customer & Commercial Services",Sport & Leisure,Supplies & Services,Provisions,BIKOLD,19/10/2023,160.94
"Communities, Customer & Commercial Services",Sport & Leisure,Supplies & Services,Provisions,BIKOLD,19/10/2023,331.19
"Communities, Customer & Commercial Services",Sport & Leisure,Supplies & Services,Provisions,BIKOLD,19/10/2023,153.81
"Communities, Customer & Commercial Services",Sport & Leisure,Supplies & Services,Provisions,BIKOLD,19/10/2023,287.08
"Communities, Customer & Commercial Services",Sport & Leisure,Supplies & Services,Provisions,BIKOLD,19/10/2023,132.39
"Communities, Customer & Commercial Services",Sport & Leisure,Supplies & Services,Provisions,BIKOLD,19/10/2023,100.28
"Communities, Customer & Commercial Services",Sport & Leisure,Supplies & Services,Provisions,BIKOLD,19/10/2023,279.01
"Communities, Customer & Commercial Services",Sport & Leisure,Supplies & Services,Provisions,BIKOLD,19/10/2023,343.83
"Communities, Customer & Commercial Services",Sport & Leisure,Supplies & Services,Provisions,BIKOLD,19/10/2023,158.44
"Communities, Customer & Commercial Services",Sport & Leisure,Supplies & Services,Provisions,BIKOLD,19/10/2023,255.39
"Communities, Customer & Commercial Services",Sport & Leisure,Supplies & Services,Provisions,BIKOLD,19/10/2023,125.21
"Communities, Customer & Commercial Services",Sport & Leisure,Supplies & Services,Provisions,BIKOLD,19/10/2023,301.43
"Communities, Customer & Commercial Services",Sport & Leisure,Supplies & Services,Provisions,BIKOLD,19/10/2023,519.31
"Communities, Customer & Commercial Services",Sport & Leisure,Supplies & Services,Provisions,BIKOLD,19/10/2023,442.74
"Communities, Customer & Commercial Services",Sport & Leisure,Supplies & Services,Provisions,BIKOLD,19/10/2023,222.14
"Communities, Customer & Commercial Services",Sport & Leisure,Supplies & Services,Provisions,BIKOLD,19/10/2023,148.45
"Communities, Customer & Commercial Services",Sport & Leisure,Supplies & Services,Provisions,BIKOLD,19/10/2023,487.98
"Communities, Customer & Commercial Services",Sport & Leisure,Supplies & Services,Provisions,BIKOLD,19/10/2023,250.82
"Communities, Customer & Commercial Services",Sport & Leisure,Supplies & Services,Provisions,BIKOLD,19/10/2023,142.15
"Communities, Customer & Commercial Services",Sport & Leisure,Supplies & Services,Provisions,BIKOLD,19/10/2023,358.61
"Communities, Customer & Commercial Services",Sport & Leisure,Supplies & Services,Provisions,BIKOLD,19/10/2023,163.06
"Communities, Customer & Commercial Services",Sport & Leisure,Supplies & Services,Provisions,BIKOLD,19/10/2023,384.56
"Communities, Customer & Commercial Services",Sport & Leisure,Supplies & Services,Provisions,BIKOLD,19/10/2023,378.85
"Communities, Customer & Commercial Services",Sport & Leisure,Supplies & Services,Provisions,BIKOLD,19/10/2023,290.85
"Communities, Customer & Commercial Services",Sport & Leisure,Supplies & Services,Provisions,BIKOLD,19/10/2023,138.19
"Communities, Customer & Commercial Services",Sport & Leisure,Supplies & Services,Provisions,BIKOLD,19/10/2023,102.81
"Communities, Customer & Commercial Services",Sport & Leisure,Supplies & Services,Provisions,BIKOLD,19/10/2023,127.14
"Communities, Customer & Commercial Services",Sport & Leisure,Supplies & Services,Provisions,BIKOLD,19/10/2023,159.70
"Communities, Customer & Commercial Services",Sport & Leisure,Supplies & Services,Provisions,BIKOLD,19/10/2023,277.93
"Communities, Customer & Commercial Services",Sport & Leisure,Supplies & Services,Provisions,BIKOLD,19/10/2023,345.02
"Communities, Customer & Commercial Services",Sport & Leisure,Supplies & Services,Provisions,BIKOLD,19/10/2023,226.76
"Communities, Customer & Commercial Services",Sport & Leisure,Supplies & Services,Provisions,BIKOLD,19/10/2023,-117.30
"Communities, Customer & Commercial Services",Sport & Leisure,Supplies & Services,Provisions,BIKOLD,19/10/2023,208.55
"Communities, Customer & Commercial Services",Sport & Leisure,Supplies & Services,Provisions,BIKOLD,19/10/2023,349.91
"Communities, Customer & Commercial Services",Sport & Leisure,Supplies & Services,Provisions,BIKOLD,19/10/2023,269.33
"Communities, Customer & Commercial Services",Sport & Leisure,Supplies & Services,Provisions,BIKOLD,19/10/2023,102.54
"Communities, Customer & Commercial Services",Sport & Leisure,Supplies & Services,Provisions,BIKOLD,19/10/2023,282.87
"Communities, Customer & Commercial Services",Sport & Leisure,Supplies & Services,Provisions,BIKOLD,19/10/2023,530.14
"Communities, Customer & Commercial Services",Sport & Leisure,Supplies & Services,Provisions,BIKOLD,19/10/2023,538.47
"Communities, Customer & Commercial Services",Sport & Leisure,Supplies & Services,Provisions,BIKOLD,19/10/2023,376.54
"Communities, Customer & Commercial Services",Sport & Leisure,Supplies & Services,Provisions,BIKOLD,19/10/2023,434.95
"Communities, Customer & Commercial Services",Sport & Leisure,Supplies & Services,Provisions,BIKOLD,19/10/2023,150.43
"Communities, Customer & Commercial Services",Sport & Leisure,Supplies & Services,Provisions,BIKOLD,19/10/2023,178.62
"Communities, Customer & Commercial Services",Sport & Leisure,Supplies & Services,Provisions,BIKOLD,19/10/2023,363.52
"Communities, Customer & Commercial Services",Sport & Leisure,Supplies & Services,Provisions,BIKOLD,19/10/2023,147.19
"Communities, Customer & Commercial Services",Sport & Leisure,Supplies & Services,Provisions,BIKOLD,19/10/2023,105.96
"Communities, Customer & Commercial Services",Sport & Leisure,Supplies & Services,Provisions,BIKOLD,19/10/2023,158.76
"Communities, Customer & Commercial Services",Sport & Leisure,Supplies & Services,Provisions,BIKOLD,19/10/2023,505.27
"Communities, Customer & Commercial Services",Sport & Leisure,Supplies & Services,Provisions,BIKOLD,19/10/2023,363.96
"Communities, Customer & Commercial Services",Sport & Leisure,Supplies & Services,Provisions,BIKOLD,19/10/2023,392.22
"Communities, Customer & Commercial Services",Sport & Leisure,Supplies & Services,Provisions,BIKOLD,19/10/2023,123.79
"Communities, Customer & Commercial Services",Sport & Leisure,Supplies & Services,Provisions,BIKOLD,19/10/2023,202.69
"Communities, Customer & Commercial Services",Sport & Leisure,Supplies & Services,Provisions,BIKOLD,19/10/2023,205.47
"Communities, Customer & Commercial Services",Sport & Leisure,Supplies & Services,Provisions,BIKOLD,19/10/2023,337.44
"Communities, Customer & Commercial Services",Sport & Leisure,Supplies & Services,Provisions,BIKOLD,19/10/2023,126.73
"Communities, Customer & Commercial Services",Sport & Leisure,Supplies & Services,Provisions,BIKOLD,19/10/2023,294.89
"Communities, Customer & Commercial Services",Sport & Leisure,Supplies & Services,Provisions,BIKOLD,19/10/2023,427.17
"Communities, Customer & Commercial Services",Sport & Leisure,Supplies & Services,Provisions,BIKOLD,19/10/2023,115.30
"Communities, Customer & Commercial Services",Sport & Leisure,Supplies & Services,Provisions,BIKOLD,19/10/2023,148.43
"Communities, Customer & Commercial Services",Sport & Leisure,Supplies & Services,Provisions,BIKOLD,19/10/2023,135.92
"Communities, Customer & Commercial Services",Sport & Leisure,Supplies & Services,Provisions,BIKOLD,19/10/2023,346.58
"Communities, Customer & Commercial Services",Sport & Leisure,Supplies & Services,Provisions,BIKOLD,19/10/2023,143.97
"Communities, Customer & Commercial Services",Sport & Leisure,Supplies & Services,Provisions,BIKOLD,19/10/2023,143.19
"Communities, Customer & Commercial Services",Sport & Leisure,Supplies & Services,Provisions,BIKOLD,19/10/2023,102.20
"Communities, Customer & Commercial Services",Sport & Leisure,Supplies & Services,Provisions,BIKOLD,19/10/2023,106.13
"Communities, Customer & Commercial Services",Sport & Leisure,Supplies & Services,Provisions,BIKOLD,19/10/2023,139.67
"Communities, Customer & Commercial Services",Sport & Leisure,Supplies & Services,Provisions,BIKOLD,19/10/2023,193.70
"Communities, Customer & Commercial Services",Sport & Leisure,Supplies & Services,Provisions,BIKOLD,19/10/2023,239.20
"Communities, Customer & Commercial Services",Sport & Leisure,Supplies & Services,Provisions,BIKOLD,19/10/2023,147.63
"Communities, Customer & Commercial Services",Sport & Leisure,Supplies & Services,Provisions,BIKOLD,19/10/2023,309.21
"Communities, Customer & Commercial Services",Sport & Leisure,Supplies & Services,Provisions,BIKOLD,19/10/2023,114.26
"Communities, Customer & Commercial Services",Sport & Leisure,Supplies & Services,Provisions,BIKOLD,19/10/2023,107.19
"Communities, Customer & Commercial Services",Sport & Leisure,Supplies & Services,Provisions,BIKOLD,19/10/2023,418.19
"Communities, Customer & Commercial Services",Sport & Leisure,Supplies & Services,Provisions,BIKOLD,19/10/2023,209.20
"Communities, Customer & Commercial Services",Sport & Leisure,Supplies & Services,Provisions,BIKOLD,19/10/2023,111.16
"Communities, Customer & Commercial Services",Sport & Leisure,Supplies & Services,Provisions,BIKOLD,19/10/2023,212.46
"Communities, Customer & Commercial Services",Sport & Leisure,Supplies & Services,Provisions,BIKOLD,19/10/2023,429.39
"Communities, Customer & Commercial Services",Sport & Leisure,Supplies & Services,Provisions,BIKOLD,19/10/2023,164.97
"Communities, Customer & Commercial Services",Sport & Leisure,Supplies & Services,Provisions,BIKOLD,19/10/2023,105.09
"Communities, Customer & Commercial Services",Sport & Leisure,Supplies & Services,Provisions,BIKOLD,19/10/2023,202.43
"Communities, Customer & Commercial Services",Sport & Leisure,Supplies & Services,Provisions,BIKOLD,19/10/2023,461.19
"Communities, Customer & Commercial Services",Sport & Leisure,Supplies & Services,Provisions,BIKOLD,19/10/2023,429.76
"Communities, Customer & Commercial Services",Sport & Leisure,Supplies & Services,Provisions,BIKOLD,19/10/2023,208.76
"Communities, Customer & Commercial Services",Sport & Leisure,Supplies & Services,Provisions,BIKOLD,19/10/2023,207.01
"Communities, Customer & Commercial Services",Sport & Leisure,Supplies & Services,Provisions,BIKOLD,19/10/2023,327.09
"Communities, Customer & Commercial Services",Sport & Leisure,Supplies & Services,Provisions,BIKOLD,19/10/2023,102.72
"Communities, Customer & Commercial Services",Sport & Leisure,Supplies & Services,Provisions,BIKOLD,19/10/2023,319.09
"Communities, Customer & Commercial Services",Sport & Leisure,Supplies & Services,Provisions,BIKOLD,19/10/2023,185.63
"Communities, Customer & Commercial Services",Sport & Leisure,Supplies & Services,Provisions,BIKOLD,19/10/2023,100.72
"Communities, Customer & Commercial Services",Sport & Leisure,Supplies & Services,Provisions,BIKOLD,19/10/2023,238.97
"Communities, Customer & Commercial Services",Sport & Leisure,Supplies & Services,Provisions,BIKOLD,19/10/2023,140.95
"Communities, Customer & Commercial Services",Sport & Leisure,Supplies & Services,Provisions,BIKOLD,19/10/2023,358.87
"Communities, Customer & Commercial Services",Sport & Leisure,Supplies & Services,Provisions,BIKOLD,19/10/2023,176.94
"Communities, Customer & Commercial Services",Sport & Leisure,Supplies & Services,Provisions,BIKOLD,19/10/2023,317.58
"Communities, Customer & Commercial Services",Sport & Leisure,Supplies & Services,Provisions,BIKOLD,19/10/2023,365.66
"Communities, Customer & Commercial Services",Sport & Leisure,Supplies & Services,Provisions,BIKOLD,19/10/2023,349.93
"Communities, Customer & Commercial Services",Sport & Leisure,Supplies & Services,Provisions,BIKOLD,19/10/2023,120.69
"Communities, Customer & Commercial Services",Sport & Leisure,Supplies & Services,Provisions,BIKOLD,19/10/2023,398.55
"Communities, Customer & Commercial Services",Sport & Leisure,Supplies & Services,Provisions,BIKOLD,19/10/2023,350.75
"Communities, Customer & Commercial Services",Sport & Leisure,Supplies & Services,Provisions,BIKOLD,19/10/2023,276.53
"Communities, Customer & Commercial Services",Sport & Leisure,Supplies & Services,Provisions,BIKOLD,19/10/2023,380.78
"Communities, Customer & Commercial Services",Sport & Leisure,Supplies & Services,Provisions,BIKOLD,19/10/2023,266.68
"Communities, Customer & Commercial Services",Sport & Leisure,Supplies & Services,Provisions,BIKOLD,19/10/2023,162.84
"Communities, Customer & Commercial Services",Sport & Leisure,Supplies & Services,Provisions,BIKOLD,19/10/2023,433.03
"Communities, Customer & Commercial Services",Sport & Leisure,Supplies & Services,Provisions,BIKOLD,19/10/2023,240.02
"Communities, Customer & Commercial Services",Sport & Leisure,Supplies & Services,Provisions,BIKOLD,19/10/2023,247.34
"Communities, Customer & Commercial Services",Sport & Leisure,Supplies & Services,Provisions,BIKOLD,19/10/2023,157.75
"Communities, Customer & Commercial Services",Sport & Leisure,Supplies & Services,Provisions,BIKOLD,19/10/2023,669.25
"Communities, Customer & Commercial Services",Sport & Leisure,Supplies & Services,Provisions,BIKOLD,19/10/2023,121.30
"Communities, Customer & Commercial Services",Sport & Leisure,Supplies & Services,Provisions,BIKOLD,26/10/2023,430.19
"Communities, Customer & Commercial Services",Sport & Leisure,Supplies & Services,Provisions,BIKOLD,26/10/2023,221.21
"Communities, Customer & Commercial Services",Sport & Leisure,Supplies & Services,Provisions,BIKOLD,26/10/2023,108.74
"Communities, Customer & Commercial Services",Sport & Leisure,Supplies & Services,Provisions,BIKOLD,26/10/2023,357.06
"Communities, Customer & Commercial Services",Sport & Leisure,Supplies & Services,Provisions,BIKOLD,26/10/2023,550.70
"Communities, Customer & Commercial Services",Sport & Leisure,Supplies & Services,Provisions,BIKOLD,26/10/2023,361.39
"Communities, Customer & Commercial Services",Sport & Leisure,Supplies & Services,Provisions,BIKOLD,26/10/2023,186.60
"Communities, Customer & Commercial Services",Sport & Leisure,Supplies & Services,Provisions,BIKOLD,26/10/2023,184.04
"Communities, Customer & Commercial Services",Sport & Leisure,Supplies & Services,Provisions,BIKOLD,26/10/2023,204.19
"Communities, Customer & Commercial Services",Sport & Leisure,Supplies & Services,Provisions,BIKOLD,26/10/2023,293.00
"Communities, Customer & Commercial Services",Sport & Leisure,Supplies & Services,Provisions,BIKOLD,26/10/2023,118.92
"Communities, Customer & Commercial Services",Sport & Leisure,Supplies & Services,Provisions,BIKOLD,26/10/2023,282.96
"Communities, Customer & Commercial Services",Sport & Leisure,Supplies & Services,Provisions,BIKOLD,26/10/2023,157.78
"Communities, Customer & Commercial Services",Sport & Leisure,Supplies & Services,Provisions,BIKOLD,26/10/2023,331.06
"Communities, Customer & Commercial Services",Sport & Leisure,Supplies & Services,Provisions,BIKOLD,26/10/2023,236.38
"Communities, Customer & Commercial Services",Sport & Leisure,Supplies & Services,Provisions,BIKOLD,26/10/2023,346.80
"Communities, Customer & Commercial Services",Sport & Leisure,Supplies & Services,Provisions,BIKOLD,26/10/2023,398.14
"Communities, Customer & Commercial Services",Sport & Leisure,Supplies & Services,Provisions,BIKOLD,26/10/2023,113.12
"Communities, Customer & Commercial Services",Sport & Leisure,Supplies & Services,Provisions,BIKOLD,26/10/2023,804.66
"Communities, Customer & Commercial Services",Sport & Leisure,Supplies & Services,Provisions,BIKOLD,26/10/2023,530.23
"Communities, Customer & Commercial Services",Sport & Leisure,Supplies & Services,Provisions,BIKOLD,26/10/2023,493.45
"Communities, Customer & Commercial Services",Sport & Leisure,Supplies & Services,Provisions,BIKOLD,26/10/2023,364.27
"Communities, Customer & Commercial Services",Sport & Leisure,Supplies & Services,Provisions,BIKOLD,26/10/2023,234.46
"Communities, Customer & Commercial Services",Sport & Leisure,Supplies & Services,Provisions,BIKOLD,26/10/2023,201.57
"Communities, Customer & Commercial Services",Sport & Leisure,Supplies & Services,Provisions,BIKOLD,26/10/2023,234.34
"Communities, Customer & Commercial Services",Sport & Leisure,Supplies & Services,Provisions,BIKOLD,26/10/2023,126.62
"Communities, Customer & Commercial Services",Sport & Leisure,Supplies & Services,Provisions,BIKOLD,26/10/2023,400.27
"Communities, Customer & Commercial Services",Sport & Leisure,Supplies & Services,Provisions,BIKOLD,26/10/2023,238.35
"Communities, Customer & Commercial Services",Sport & Leisure,Supplies & Services,Provisions,BIKOLD,26/10/2023,480.92
"Communities, Customer & Commercial Services",Sport & Leisure,Supplies & Services,Provisions,BIKOLD,26/10/2023,127.25
"Communities, Customer & Commercial Services",Sport & Leisure,Supplies & Services,Provisions,BIKOLD,26/10/2023,146.04
"Communities, Customer & Commercial Services",Sport & Leisure,Supplies & Services,Provisions,BIKOLD,26/10/2023,410.47
"Communities, Customer & Commercial Services",Sport & Leisure,Supplies & Services,Provisions,BIKOLD,26/10/2023,101.61
"Communities, Customer & Commercial Services",Sport & Leisure,Supplies & Services,Provisions,BIKOLD,26/10/2023,201.30
"Communities, Customer & Commercial Services",Sport & Leisure,Supplies & Services,Provisions,BIKOLD,26/10/2023,245.32
"Communities, Customer & Commercial Services",Sport & Leisure,Supplies & Services,Provisions,BIKOLD,26/10/2023,289.59
"Communities, Customer & Commercial Services",Sport & Leisure,Supplies & Services,Provisions,BIKOLD,26/10/2023,100.49
"Communities, Customer & Commercial Services",Sport & Leisure,Supplies & Services,Provisions,BIKOLD,26/10/2023,537.62
"Communities, Customer & Commercial Services",Sport & Leisure,Supplies & Services,Provisions,BIKOLD,26/10/2023,591.47
"Communities, Customer & Commercial Services",Sport & Leisure,Supplies & Services,Provisions,BIKOLD,26/10/2023,542.38
"Communities, Customer & Commercial Services",Sport & Leisure,Supplies & Services,Provisions,BIKOLD,26/10/2023,577.34
"Communities, Customer & Commercial Services",Sport & Leisure,Supplies & Services,Provisions,BIKOLD,26/10/2023,117.11
"Communities, Customer & Commercial Services",Sport & Leisure,Supplies & Services,Provisions,BIKOLD,26/10/2023,442.17
"Communities, Customer & Commercial Services",Sport & Leisure,Supplies & Services,Provisions,BIKOLD,26/10/2023,219.76
"Communities, Customer & Commercial Services",Sport & Leisure,Supplies & Services,Provisions,BIKOLD,26/10/2023,225.75
"Communities, Customer & Commercial Services",Sport & Leisure,Supplies & Services,Provisions,BIKOLD,26/10/2023,248.35
"Communities, Customer & Commercial Services",Sport & Leisure,Supplies & Services,Provisions,BIKOLD,26/10/2023,171.35
"Communities, Customer & Commercial Services",Sport & Leisure,Supplies & Services,Provisions,BIKOLD,26/10/2023,121.93
"Communities, Customer & Commercial Services",Sport & Leisure,Supplies & Services,Provisions,BIKOLD,26/10/2023,319.46
"Communities, Customer & Commercial Services",Sport & Leisure,Supplies & Services,Provisions,BIKOLD,26/10/2023,415.96
"Communities, Customer & Commercial Services",Sport & Leisure,Supplies & Services,Provisions,BIKOLD,26/10/2023,121.51
"Communities, Customer & Commercial Services",Sport & Leisure,Supplies & Services,Provisions,BIKOLD,26/10/2023,173.01
"Communities, Customer & Commercial Services",Sport & Leisure,Supplies & Services,Provisions,BIKOLD,05/10/2023,254.44
"Communities, Customer & Commercial Services",Sport & Leisure,Supplies & Services,Provisions,BIKOLD,05/10/2023,116.93
"Communities, Customer & Commercial Services",Sport & Leisure,Supplies & Services,Provisions,BIKOLD,05/10/2023,163.40
"Communities, Customer & Commercial Services",Sport & Leisure,Supplies & Services,Provisions,BIKOLD,05/10/2023,166.59
"Communities, Customer & Commercial Services",Sport & Leisure,Supplies & Services,Provisions,BIKOLD,05/10/2023,220.81
"Communities, Customer & Commercial Services",Sport & Leisure,Supplies & Services,Provisions,BIKOLD,05/10/2023,294.44
"Communities, Customer & Commercial Services",Sport & Leisure,Supplies & Services,Provisions,BIKOLD,05/10/2023,214.90
"Communities, Customer & Commercial Services",Sport & Leisure,Supplies & Services,Provisions,BIKOLD,05/10/2023,113.81
"Communities, Customer & Commercial Services",Sport & Leisure,Supplies & Services,Provisions,BIKOLD,05/10/2023,124.80
"Communities, Customer & Commercial Services",Sport & Leisure,Supplies & Services,Provisions,BIKOLD,05/10/2023,341.05
"Communities, Customer & Commercial Services",Sport & Leisure,Supplies & Services,Provisions,BIKOLD,05/10/2023,168.78
"Communities, Customer & Commercial Services",Sport & Leisure,Supplies & Services,Provisions,BIKOLD,05/10/2023,152.88
"Communities, Customer & Commercial Services",Sport & Leisure,Supplies & Services,Provisions,BIKOLD,05/10/2023,269.15
"Communities, Customer & Commercial Services",Sport & Leisure,Supplies & Services,Provisions,BIKOLD,05/10/2023,248.18
"Communities, Customer & Commercial Services",Sport & Leisure,Supplies & Services,Provisions,BIKOLD,05/10/2023,273.07
"Communities, Customer & Commercial Services",Sport & Leisure,Supplies & Services,Provisions,BIKOLD,05/10/2023,317.23
"Communities, Customer & Commercial Services",Sport & Leisure,Supplies & Services,Provisions,BIKOLD,05/10/2023,175.25
"Communities, Customer & Commercial Services",Sport & Leisure,Supplies & Services,Provisions,BIKOLD,05/10/2023,151.30
"Communities, Customer & Commercial Services",Sport & Leisure,Supplies & Services,Provisions,BIKOLD,05/10/2023,218.92
"Communities, Customer & Commercial Services",Sport & Leisure,Supplies & Services,Provisions,BIKOLD,05/10/2023,134.36
"Communities, Customer & Commercial Services",Sport & Leisure,Supplies & Services,Provisions,BIKOLD,05/10/2023,442.68
"Communities, Customer & Commercial Services",Sport & Leisure,Supplies & Services,Provisions,BIKOLD,05/10/2023,283.33
"Communities, Customer & Commercial Services",Sport & Leisure,Supplies & Services,Provisions,BIKOLD,05/10/2023,283.74
"Communities, Customer & Commercial Services",Sport & Leisure,Supplies & Services,Provisions,BIKOLD,05/10/2023,152.40
"Communities, Customer & Commercial Services",Sport & Leisure,Supplies & Services,Provisions,BIKOLD,05/10/2023,123.12
"Communities, Customer & Commercial Services",Sport & Leisure,Supplies & Services,Provisions,BIKOLD,05/10/2023,460.11
"Communities, Customer & Commercial Services",Sport & Leisure,Supplies & Services,Provisions,BIKOLD,05/10/2023,108.94
"Communities, Customer & Commercial Services",Sport & Leisure,Supplies & Services,Provisions,BIKOLD,05/10/2023,273.84
"Communities, Customer & Commercial Services",Sport & Leisure,Supplies & Services,Provisions,BIKOLD,05/10/2023,132.72
"Communities, Customer & Commercial Services",Sport & Leisure,Supplies & Services,Provisions,BIKOLD,05/10/2023,375.28
"Communities, Customer & Commercial Services",Sport & Leisure,Supplies & Services,Provisions,BIKOLD,05/10/2023,120.25
"Communities, Customer & Commercial Services",Sport & Leisure,Supplies & Services,Provisions,BIKOLD,05/10/2023,582.61
"Communities, Customer & Commercial Services",Sport & Leisure,Supplies & Services,Provisions,BIKOLD,05/10/2023,182.02
"Communities, Customer & Commercial Services",Sport & Leisure,Supplies & Services,Provisions,BIKOLD,12/10/2023,187.76
"Communities, Customer & Commercial Services",Sport & Leisure,Supplies & Services,Provisions,BIKOLD,12/10/2023,518.52
"Communities, Customer & Commercial Services",Sport & Leisure,Supplies & Services,Provisions,BIKOLD,12/10/2023,394.37
"Communities, Customer & Commercial Services",Sport & Leisure,Supplies & Services,Provisions,BIKOLD,12/10/2023,294.93
"Communities, Customer & Commercial Services",Sport & Leisure,Supplies & Services,Provisions,BIKOLD,12/10/2023,216.50
"Communities, Customer & Commercial Services",Sport & Leisure,Supplies & Services,Provisions,BIKOLD,12/10/2023,337.63
"Communities, Customer & Commercial Services",Sport & Leisure,Supplies & Services,Provisions,BIKOLD,12/10/2023,539.97
"Communities, Customer & Commercial Services",Sport & Leisure,Supplies & Services,Provisions,BIKOLD,12/10/2023,145.17
"Communities, Customer & Commercial Services",Sport & Leisure,Supplies & Services,Provisions,BIKOLD,12/10/2023,101.50
"Communities, Customer & Commercial Services",Sport & Leisure,Supplies & Services,Provisions,BIKOLD,12/10/2023,133.09
"Communities, Customer & Commercial Services",Sport & Leisure,Supplies & Services,Provisions,BIKOLD,12/10/2023,362.93
"Communities, Customer & Commercial Services",Sport & Leisure,Supplies & Services,Provisions,BIKOLD,12/10/2023,441.59
"Communities, Customer & Commercial Services",Sport & Leisure,Supplies & Services,Provisions,BIKOLD,12/10/2023,348.21
"Communities, Customer & Commercial Services",Sport & Leisure,Supplies & Services,Provisions,BIKOLD,12/10/2023,272.49
"Communities, Customer & Commercial Services",Sport & Leisure,Supplies & Services,Provisions,BIKOLD,12/10/2023,165.86
"Communities, Customer & Commercial Services",Sport & Leisure,Supplies & Services,Provisions,BIKOLD,12/10/2023,112.05
"Communities, Customer & Commercial Services",Sport & Leisure,Supplies & Services,Provisions,BIKOLD,12/10/2023,161.73
"Communities, Customer & Commercial Services",Sport & Leisure,Supplies & Services,Provisions,BIKOLD,12/10/2023,771.46
"Communities, Customer & Commercial Services",Sport & Leisure,Supplies & Services,Provisions,BIKOLD,12/10/2023,501.49
"Communities, Customer & Commercial Services",Sport & Leisure,Supplies & Services,Provisions,BIKOLD,12/10/2023,231.94
"Communities, Customer & Commercial Services",Sport & Leisure,Supplies & Services,Provisions,BIKOLD,12/10/2023,544.15
"Communities, Customer & Commercial Services",Sport & Leisure,Supplies & Services,Provisions,BIKOLD,12/10/2023,186.04
"Communities, Customer & Commercial Services",Sport & Leisure,Supplies & Services,Provisions,BIKOLD,12/10/2023,111.62
"Communities, Customer & Commercial Services",Sport & Leisure,Supplies & Services,Provisions,BIKOLD,12/10/2023,171.79
"Communities, Customer & Commercial Services",Sport & Leisure,Supplies & Services,Provisions,BIKOLD,12/10/2023,195.14
"Communities, Customer & Commercial Services",Sport & Leisure,Supplies & Services,Provisions,BIKOLD,12/10/2023,257.44
"Communities, Customer & Commercial Services",Sport & Leisure,Supplies & Services,Provisions,BIKOLD,12/10/2023,162.39
"Communities, Customer & Commercial Services",Sport & Leisure,Supplies & Services,Provisions,BIKOLD,26/10/2023,138.31
"Communities, Customer & Commercial Services",Sport & Leisure,Supplies & Services,Provisions,BIKOLD,26/10/2023,203.43
"Communities, Customer & Commercial Services",Sport & Leisure,Supplies & Services,Provisions,BIKOLD,26/10/2023,260.58
"Communities, Customer & Commercial Services",Sport & Leisure,Supplies & Services,Provisions,BIKOLD,26/10/2023,237.76
"Communities, Customer & Commercial Services",Sport & Leisure,Supplies & Services,Provisions,BIKOLD,26/10/2023,317.50
"Communities, Customer & Commercial Services",Sport & Leisure,Supplies & Services,Provisions,BIKOLD,26/10/2023,331.62
"Communities, Customer & Commercial Services",Sport & Leisure,Supplies & Services,Provisions,BIKOLD,26/10/2023,441.21
"Communities, Customer & Commercial Services",Sport & Leisure,Supplies & Services,Provisions,BIKOLD,26/10/2023,332.55
"Communities, Customer & Commercial Services",Sport & Leisure,Supplies & Services,Provisions,BIKOLD,26/10/2023,281.69
"Communities, Customer & Commercial Services",Sport & Leisure,Supplies & Services,Provisions,BIKOLD,26/10/2023,175.13
"Communities, Customer & Commercial Services",Sport & Leisure,Supplies & Services,Provisions,BIKOLD,26/10/2023,289.51
"Communities, Customer & Commercial Services",Sport & Leisure,Supplies & Services,Provisions,BIKOLD,26/10/2023,177.85
"Communities, Customer & Commercial Services",Sport & Leisure,Supplies & Services,Provisions,BIKOLD,26/10/2023,119.34
"Communities, Customer & Commercial Services",Sport & Leisure,Supplies & Services,Provisions,BIKOLD,26/10/2023,194.57
"Communities, Customer & Commercial Services",Sport & Leisure,Supplies & Services,Provisions,BIKOLD,26/10/2023,319.45
"Communities, Customer & Commercial Services",Sport & Leisure,Supplies & Services,Provisions,BIKOLD,26/10/2023,225.88
"Communities, Customer & Commercial Services",Sport & Leisure,Supplies & Services,Provisions,BIKOLD,26/10/2023,198.58
"Communities, Customer & Commercial Services",Sport & Leisure,Supplies & Services,Provisions,BIKOLD,26/10/2023,123.20
"Communities, Customer & Commercial Services",Sport & Leisure,Supplies & Services,Provisions,BIKOLD,26/10/2023,140.84
"Communities, Customer & Commercial Services",Sport & Leisure,Supplies & Services,Provisions,BIKOLD,26/10/2023,164.79
"Communities, Customer & Commercial Services",Sport & Leisure,Supplies & Services,Provisions,BIKOLD,26/10/2023,134.23
"Communities, Customer & Commercial Services",Sport & Leisure,Supplies & Services,Provisions,BIKOLD,26/10/2023,197.12
"Communities, Customer & Commercial Services",Sport & Leisure,Supplies & Services,Provisions,BIKOLD,26/10/2023,179.65
"Communities, Customer & Commercial Services",Sport & Leisure,Supplies & Services,Provisions,BIKOLD,26/10/2023,114.56
"Communities, Customer & Commercial Services",Sport & Leisure,Supplies & Services,Provisions,BIKOLD,26/10/2023,223.46
"Communities, Customer & Commercial Services",Sport & Leisure,Supplies & Services,Provisions,BIKOLD,26/10/2023,135.46
"Communities, Customer & Commercial Services",Sport & Leisure,Supplies & Services,Provisions,BIKOLD,26/10/2023,153.36
"Communities, Customer & Commercial Services",Sport & Leisure,Supplies & Services,Provisions,BIKOLD,26/10/2023,117.80
"Communities, Customer & Commercial Services",Sport & Leisure,Supplies & Services,Provisions,BIKOLD,26/10/2023,118.11
"Communities, Customer & Commercial Services",Sport & Leisure,Supplies & Services,Provisions,BIKOLD,26/10/2023,124.29
"Communities, Customer & Commercial Services",Sport & Leisure,Supplies & Services,Provisions,BIKOLD,26/10/2023,560.70
"Communities, Customer & Commercial Services",Sport & Leisure,Supplies & Services,Provisions,BIKOLD,26/10/2023,199.86
"Communities, Customer & Commercial Services",Sport & Leisure,Supplies & Services,Provisions,BIKOLD,26/10/2023,214.90
"Communities, Customer & Commercial Services",Sport & Leisure,Supplies & Services,Provisions,BIKOLD,26/10/2023,121.42
"Communities, Customer & Commercial Services",Sport & Leisure,Supplies & Services,Provisions,BIKOLD,26/10/2023,619.31
"Communities, Customer & Commercial Services",Sport & Leisure,Supplies & Services,Provisions,BIKOLD,26/10/2023,387.34
"Communities, Customer & Commercial Services",Sport & Leisure,Supplies & Services,Provisions,BIKOLD,26/10/2023,467.79
"Communities, Customer & Commercial Services",Sport & Leisure,Supplies & Services,Provisions,BIKOLD,26/10/2023,142.51
"Communities, Customer & Commercial Services",Sport & Leisure,Supplies & Services,Provisions,BIKOLD,26/10/2023,412.72
"Communities, Customer & Commercial Services",Sport & Leisure,Supplies & Services,Provisions,BIKOLD,26/10/2023,318.35
"Communities, Customer & Commercial Services",Sport & Leisure,Supplies & Services,Provisions,BIKOLD,26/10/2023,336.06
"Communities, Customer & Commercial Services",Sport & Leisure,Supplies & Services,Provisions,BIKOLD,26/10/2023,650.05
"Communities, Customer & Commercial Services",Sport & Leisure,Supplies & Services,Provisions,BIKOLD,05/10/2023,428.06
"Communities, Customer & Commercial Services",Sport & Leisure,Supplies & Services,Provisions,BIKOLD,05/10/2023,"2,286.47"
"Communities, Customer & Commercial Services",Sport & Leisure,Supplies & Services,Provisions,BIKOLD,05/10/2023,220.20
"Communities, Customer & Commercial Services",Sport & Leisure,Supplies & Services,Provisions,BIKOLD,05/10/2023,227.00
"Communities, Customer & Commercial Services",Sport & Leisure,Supplies & Services,Provisions,BIKOLD,05/10/2023,353.45
"Communities, Customer & Commercial Services",Sport & Leisure,Supplies & Services,Provisions,BIKOLD,05/10/2023,519.40
"Communities, Customer & Commercial Services",Sport & Leisure,Supplies & Services,Provisions,BIKOLD,05/10/2023,132.55
"Communities, Customer & Commercial Services",Sport & Leisure,Supplies & Services,Provisions,BIKOLD,05/10/2023,375.80
"Communities, Customer & Commercial Services",Sport & Leisure,Supplies & Services,Provisions,BIKOLD,05/10/2023,894.21
"Communities, Customer & Commercial Services",Sport & Leisure,Supplies & Services,Provisions,BIKOLD,05/10/2023,252.45
"Communities, Customer & Commercial Services",Sport & Leisure,Supplies & Services,Provisions,BIKOLD,05/10/2023,219.86
"Communities, Customer & Commercial Services",Sport & Leisure,Supplies & Services,Provisions,BIKOLD,05/10/2023,263.18
"Communities, Customer & Commercial Services",Sport & Leisure,Supplies & Services,Provisions,BIKOLD,05/10/2023,"1,571.14"
"Communities, Customer & Commercial Services",Sport & Leisure,Supplies & Services,Provisions,BIKOLD,05/10/2023,655.98
"Communities, Customer & Commercial Services",Sport & Leisure,Supplies & Services,Provisions,BIKOLD,05/10/2023,474.65
"Communities, Customer & Commercial Services",Sport & Leisure,Supplies & Services,Provisions,BIKOLD,05/10/2023,139.96
"Communities, Customer & Commercial Services",Sport & Leisure,Supplies & Services,Provisions,BIKOLD,05/10/2023,424.73
"Communities, Customer & Commercial Services",Sport & Leisure,Supplies & Services,Provisions,BIKOLD,05/10/2023,183.35
"Communities, Customer & Commercial Services",Sport & Leisure,Supplies & Services,Provisions,BIKOLD,05/10/2023,360.21
"Communities, Customer & Commercial Services",Sport & Leisure,Supplies & Services,Provisions,BIKOLD,05/10/2023,209.33
"Communities, Customer & Commercial Services",Sport & Leisure,Supplies & Services,Provisions,BIKOLD,05/10/2023,137.84
"Communities, Customer & Commercial Services",Sport & Leisure,Supplies & Services,Provisions,BIKOLD,05/10/2023,355.34
"Communities, Customer & Commercial Services",Sport & Leisure,Supplies & Services,Provisions,BIKOLD,05/10/2023,743.39
"Communities, Customer & Commercial Services",Sport & Leisure,Supplies & Services,Provisions,BIKOLD,05/10/2023,155.59
"Communities, Customer & Commercial Services",Sport & Leisure,Supplies & Services,Provisions,BIKOLD,12/10/2023,384.07
"Communities, Customer & Commercial Services",Sport & Leisure,Supplies & Services,Provisions,BIKOLD,12/10/2023,207.67
"Communities, Customer & Commercial Services",Sport & Leisure,Supplies & Services,Provisions,BIKOLD,12/10/2023,120.36
"Communities, Customer & Commercial Services",Sport & Leisure,Supplies & Services,Provisions,BIKOLD,12/10/2023,186.59
"Communities, Customer & Commercial Services",Sport & Leisure,Supplies & Services,Provisions,BIKOLD,12/10/2023,118.98
"Communities, Customer & Commercial Services",Sport & Leisure,Supplies & Services,Provisions,BIKOLD,12/10/2023,670.98
"Communities, Customer & Commercial Services",Sport & Leisure,Supplies & Services,Provisions,BIKOLD,12/10/2023,115.11
"Communities, Customer & Commercial Services",Sport & Leisure,Supplies & Services,Provisions,BIKOLD,12/10/2023,201.68
"Communities, Customer & Commercial Services",Sport & Leisure,Supplies & Services,Provisions,BIKOLD,12/10/2023,262.95
"Communities, Customer & Commercial Services",Sport & Leisure,Supplies & Services,Provisions,BIKOLD,12/10/2023,253.90
"Communities, Customer & Commercial Services",Sport & Leisure,Supplies & Services,Provisions,BIKOLD,12/10/2023,395.52
"Communities, Customer & Commercial Services",Sport & Leisure,Supplies & Services,Provisions,BIKOLD,12/10/2023,315.81
"Communities, Customer & Commercial Services",Sport & Leisure,Supplies & Services,Provisions,BIKOLD,12/10/2023,165.18
"Communities, Customer & Commercial Services",Sport & Leisure,Supplies & Services,Provisions,BIKOLD,12/10/2023,257.42
"Communities, Customer & Commercial Services",Sport & Leisure,Supplies & Services,Provisions,BIKOLD,12/10/2023,103.18
"Communities, Customer & Commercial Services",Sport & Leisure,Supplies & Services,Provisions,BIKOLD,12/10/2023,269.52
"Communities, Customer & Commercial Services",Sport & Leisure,Supplies & Services,Provisions,BIKOLD,12/10/2023,783.05
"Communities, Customer & Commercial Services",Sport & Leisure,Supplies & Services,Provisions,BIKOLD,12/10/2023,"1,531.02"
"Communities, Customer & Commercial Services",Sport & Leisure,Supplies & Services,Provisions,BIKOLD,12/10/2023,414.18
"Communities, Customer & Commercial Services",Sport & Leisure,Supplies & Services,Provisions,BIKOLD,12/10/2023,587.66
"Communities, Customer & Commercial Services",Sport & Leisure,Supplies & Services,Provisions,BIKOLD,19/10/2023,211.52
"Communities, Customer & Commercial Services",Sport & Leisure,Supplies & Services,Provisions,BIKOLD,19/10/2023,244.91
"Communities, Customer & Commercial Services",Sport & Leisure,Supplies & Services,Provisions,BIKOLD,19/10/2023,126.06
"Communities, Customer & Commercial Services",Sport & Leisure,Supplies & Services,Provisions,BIKOLD,19/10/2023,296.81
"Communities, Customer & Commercial Services",Sport & Leisure,Supplies & Services,Provisions,BIKOLD,19/10/2023,146.74
"Communities, Customer & Commercial Services",Sport & Leisure,Supplies & Services,Provisions,BIKOLD,19/10/2023,"1,513.77"
"Communities, Customer & Commercial Services",Sport & Leisure,Supplies & Services,Provisions,BIKOLD,19/10/2023,442.15
"Communities, Customer & Commercial Services",Sport & Leisure,Supplies & Services,Provisions,BIKOLD,19/10/2023,405.01
"Communities, Customer & Commercial Services",Sport & Leisure,Supplies & Services,Provisions,BIKOLD,19/10/2023,111.24
"Communities, Customer & Commercial Services",Sport & Leisure,Supplies & Services,Provisions,BIKOLD,19/10/2023,358.07
"Communities, Customer & Commercial Services",Sport & Leisure,Supplies & Services,Provisions,BIKOLD,19/10/2023,251.14
"Communities, Customer & Commercial Services",Sport & Leisure,Supplies & Services,Provisions,BIKOLD,19/10/2023,271.73
"Communities, Customer & Commercial Services",Sport & Leisure,Supplies & Services,Provisions,BIKOLD,19/10/2023,556.42
"Communities, Customer & Commercial Services",Sport & Leisure,Supplies & Services,Provisions,BIKOLD,19/10/2023,106.20
"Communities, Customer & Commercial Services",Sport & Leisure,Supplies & Services,Provisions,BIKOLD,19/10/2023,721.23
"Communities, Customer & Commercial Services",Sport & Leisure,Supplies & Services,Provisions,BIKOLD,19/10/2023,136.89
"Communities, Customer & Commercial Services",Sport & Leisure,Supplies & Services,Provisions,BIKOLD,19/10/2023,536.26
"Communities, Customer & Commercial Services",Sport & Leisure,Supplies & Services,Provisions,BIKOLD,19/10/2023,305.33
"Communities, Customer & Commercial Services",Sport & Leisure,Supplies & Services,Provisions,BIKOLD,19/10/2023,644.50
"Communities, Customer & Commercial Services",Sport & Leisure,Supplies & Services,Provisions,BIKOLD,19/10/2023,125.02
"Communities, Customer & Commercial Services",Sport & Leisure,Supplies & Services,Provisions,BIKOLD,19/10/2023,"2,260.82"
"Communities, Customer & Commercial Services",Sport & Leisure,Supplies & Services,Provisions,BIKOLD,19/10/2023,553.97
"Communities, Customer & Commercial Services",Sport & Leisure,Supplies & Services,Provisions,BIKOLD,19/10/2023,140.07
"Communities, Customer & Commercial Services",Sport & Leisure,Supplies & Services,Provisions,BIKOLD,19/10/2023,214.70
"Communities, Customer & Commercial Services",Sport & Leisure,Supplies & Services,Provisions,BIKOLD,19/10/2023,235.98
"Communities, Customer & Commercial Services",Sport & Leisure,Supplies & Services,Provisions,BIKOLD,19/10/2023,367.64
"Communities, Customer & Commercial Services",Sport & Leisure,Supplies & Services,Provisions,BIKOLD,19/10/2023,116.65
"Communities, Customer & Commercial Services",Sport & Leisure,Supplies & Services,Provisions,BIKOLD,26/10/2023,280.88
"Communities, Customer & Commercial Services",Sport & Leisure,Supplies & Services,Provisions,BIKOLD,26/10/2023,"1,523.70"
"Communities, Customer & Commercial Services",Sport & Leisure,Supplies & Services,Provisions,BIKOLD,26/10/2023,100.88
"Communities, Customer & Commercial Services",Sport & Leisure,Supplies & Services,Provisions,BIKOLD,26/10/2023,255.52
"Communities, Customer & Commercial Services",Sport & Leisure,Supplies & Services,Provisions,BIKOLD,26/10/2023,177.98
"Communities, Customer & Commercial Services",Sport & Leisure,Supplies & Services,Provisions,BIKOLD,26/10/2023,133.94
"Communities, Customer & Commercial Services",Sport & Leisure,Supplies & Services,Provisions,BIKOLD,26/10/2023,178.03
"Communities, Customer & Commercial Services",Sport & Leisure,Supplies & Services,Provisions,BIKOLD,26/10/2023,188.49
"Communities, Customer & Commercial Services",Sport & Leisure,Supplies & Services,Provisions,BIKOLD,26/10/2023,223.98
"Communities, Customer & Commercial Services",Sport & Leisure,Supplies & Services,Provisions,BIKOLD,26/10/2023,201.49
"Communities, Customer & Commercial Services",Sport & Leisure,Supplies & Services,Provisions,BIKOLD,26/10/2023,444.06
"Communities, Customer & Commercial Services",Sport & Leisure,Supplies & Services,Provisions,BIKOLD,26/10/2023,140.19
"Communities, Customer & Commercial Services",Sport & Leisure,Supplies & Services,Provisions,BIKOLD,26/10/2023,349.51
"Communities, Customer & Commercial Services",Sport & Leisure,Supplies & Services,Provisions,BIKOLD,26/10/2023,141.44
"Communities, Customer & Commercial Services",Sport & Leisure,Supplies & Services,Provisions,BIKOLD,26/10/2023,275.52
"Communities, Customer & Commercial Services",Sport & Leisure,Supplies & Services,Provisions,BIKOLD,26/10/2023,573.90
"Communities, Customer & Commercial Services",Sport & Leisure,Supplies & Services,Provisions,BIKOLD,26/10/2023,542.85
"Communities, Customer & Commercial Services",Sport & Leisure,Supplies & Services,Provisions,BIKOLD,19/10/2023,230.87
"Communities, Customer & Commercial Services",Sport & Leisure,Supplies & Services,Provisions,BIKOLD,26/10/2023,135.88
"Communities, Customer & Commercial Services",Sport & Leisure,Supplies & Services,Provisions,BIKOLD,26/10/2023,453.98
"Communities, Customer & Commercial Services",Sport & Leisure,Supplies & Services,Provisions,BIKOLD,05/10/2023,111.44
"Communities, Customer & Commercial Services",Sport & Leisure,Supplies & Services,Provisions,BIKOLD,05/10/2023,160.80
"Communities, Customer & Commercial Services",Sport & Leisure,Supplies & Services,Provisions,BIKOLD,12/10/2023,584.06
"Communities, Customer & Commercial Services",Sport & Leisure,Supplies & Services,Provisions,BIKOLD,12/10/2023,208.00
"Communities, Customer & Commercial Services",Sport & Leisure,Supplies & Services,Provisions,BIKOLD,12/10/2023,257.52
"Communities, Customer & Commercial Services",Sport & Leisure,Supplies & Services,Provisions,BIKOLD,12/10/2023,255.00
"Communities, Customer & Commercial Services",Sport & Leisure,Supplies & Services,Provisions,BIKOLD,19/10/2023,434.92
"Communities, Customer & Commercial Services",Sport & Leisure,Supplies & Services,Provisions,BIKOLD,19/10/2023,714.64
"Communities, Customer & Commercial Services",Sport & Leisure,Supplies & Services,Provisions,BIKOLD,19/10/2023,264.95
"Communities, Customer & Commercial Services",Sport & Leisure,Supplies & Services,Provisions,BIKOLD,26/10/2023,548.36
"Communities, Customer & Commercial Services",Sport & Leisure,Supplies & Services,Provisions,BIKOLD,26/10/2023,107.76
"Communities, Customer & Commercial Services",Sport & Leisure,Supplies & Services,Provisions,BIKOLD,26/10/2023,325.97
Finance & Human Resources,Revenues,Supplies & Services,Other Office Expenses,DOCU-FINISH SOLUTIONS LTD,30/10/2023,495.00
"Communities, Customer & Commercial Services",Community Services,Supplies & Services,Grants To Voluntary Organis,DONNINGTON & MUXTON PARISH COUNCIL,27/10/2023,500.00
Children�s Safeguarding & Family Support,"Family Placements, Children in Care, Leaving Care & Emergency Duty Team",Supplies & Services,Doctors Fees,DONNINGTON MEDICAL PRACTICE,16/10/2023,230.00
"Communities, Customer & Commercial Services",Community Services,Premises-Related Expenditure,Hire Of Rooms,DONNINGTON PARTNERSHIP,05/10/2023,210.00
Education & Skills,Skills,Premises-Related Expenditure,Hire Of Rooms,DONNINGTON PARTNERSHIP,20/10/2023,420.75
Adult Social Care,Community Social Work & Adult Safeguarding,Supplies & Services,Medical Consultants Fees,REDACTED PERSONAL INFORMATION,13/10/2023,370.35
Prosperity & Investment,Regeneration & Investment,Premises-Related Expenditure,Dilapidations,Ductbusters Ltd,17/10/2023,780.00
Health & Wellbeing,Consultant in Public Health,Supplies & Services,Sub Contractors,Dudley Group of Hospitals NHS Foundation Trust,05/10/2023,205.00
Health & Wellbeing,Consultant in Public Health,Supplies & Services,Sub Contractors,Dudley Group of Hospitals NHS Foundation Trust,10/10/2023,134.00
Neighbourhood & Enforcement Services,Strategic Transport & Highway Network Management,Employees,Course Fees,D Training Ltd,24/10/2023,443.76
Neighbourhood & Enforcement Services,Strategic Transport & Highway Network Management,Employees,Course Fees,D Training Ltd,24/10/2023,319.80
Education & Skills,SEND (0-25),Third Party Payments,DSG - High Needs Block,EARLYWORLD LIMITED,16/10/2023,584.47
Adult Social Care,Prevention & Independence - Older Adults & Disability,Supplies & Services,Aids & Appliances,Easylink,31/10/2023,646.11
Adult Social Care,Prevention & Independence - Older Adults & Disability,Supplies & Services,Aids & Appliances,Easylink,31/10/2023,134.36
"Communities, Customer & Commercial Services",Customer Relationships & Welfare Services,Employees,Agency Supply Costs,E B LTD,17/10/2023,"1,215.00"
"Communities, Customer & Commercial Services",Customer Relationships & Welfare Services,Employees,Agency Supply Costs,E B LTD,17/10/2023,810.00
Education & Skills,SEND (0-25),Supplies & Services,Other Services,E B LTD,16/10/2023,"2,200.00"
Education & Skills,SEND (0-25),Supplies & Services,Other Services,E B LTD,16/10/2023,"1,650.00"
Education & Skills,SEND (0-25),Supplies & Services,Other Services,E B LTD,16/10/2023,550.00
Education & Skills,SEND (0-25),Supplies & Services,Other Services,E B LTD,30/10/2023,"1,100.00"
"Communities, Customer & Commercial Services",Culture & Events,Supplies & Services,Confectionery & Snacks,E Farm Hulleys,13/10/2023,120.00
"Communities, Customer & Commercial Services",Culture & Events,Supplies & Services,Confectionery & Snacks,E Farm Hulleys,13/10/2023,120.00
"Communities, Customer & Commercial Services",ICT,Supplies & Services,Mobile Phones,EE LTD AIRTIME,06/10/2023,"14,273.26"
"Communities, Customer & Commercial Services",ICT,Supplies & Services,Mobile Phones,EE LTD EQUIPMENT ,06/10/2023,375.00
Education & Skills,SEND (0-25),Third Party Payments,DSG - High Needs Block,E Mede School,20/10/2023,"3,500.00"
Education & Skills,SEND (0-25),Third Party Payments,DSG - High Needs Block,E Mede School,20/10/2023,"2,625.00"
Education & Skills,SEND (0-25),Third Party Payments,DSG - High Needs Block,E Mede School,20/10/2023,"3,553.00"
"Communities, Customer & Commercial Services",Culture & Events,Supplies & Services,Artistes Fees,E Live Ltd,24/10/2023,"4,557.18"
Corporate Communications,Communications & Marketing,Supplies & Services,Stationery,EMERGE DESIGN LTD,23/10/2023,132.00
Corporate Communications,Communications & Marketing,Supplies & Services,Community Newspaper,EMERGE DESIGN LTD,23/10/2023,"6,372.25"
"Housing, Employment & Infrastructure",Inward Investment & Business Support,Capital Expenditure,Payments to Contractor,EMERGE DESIGN LTD,19/10/2023,"1,500.00"
"Housing, Employment & Infrastructure",Inward Investment & Business Support,Capital Expenditure,Payments to Contractor,EMERGE DESIGN LTD,11/10/2023,"4,532.92"
Neighbourhood & Enforcement Services,Waste & Neighbourhood Services,Supplies & Services,Stationery,EMERGE DESIGN LTD,13/10/2023,132.00
Neighbourhood & Enforcement Services,Waste & Neighbourhood Services,Supplies & Services,Stationery,EMERGE DESIGN LTD,13/10/2023,110.00
Neighbourhood & Enforcement Services,Strategic Transport & Highway Network Management,Transport-Related Expenditure,Outside Hire,Enterprise Flexi Rent,09/10/2023,"8,598.86"
"Communities, Customer & Commercial Services",Sport & Leisure,Premises-Related Expenditure,Electricity,EON next,10/10/2023,181.02
Prosperity & Investment,BiT,Premises-Related Expenditure,Electricity,EON next,13/10/2023,210.81
Education & Skills,SEND (0-25),Supplies & Services,Other Services,EP Practice,16/10/2023,"8,000.00"
"Communities, Customer & Commercial Services",Sport & Leisure,Premises-Related Expenditure,Clean Mats & Toilet Requisites,E N CATERING EQUIPMENT AND SERVICES  LTD,13/10/2023,132.50
"Communities, Customer & Commercial Services",Sport & Leisure,Premises-Related Expenditure,Clean Mats & Toilet Requisites,E N CATERING EQUIPMENT AND SERVICES  LTD,20/10/2023,173.35
Children�s Safeguarding & Family Support,"Family Placements, Children in Care, Leaving Care & Emergency Duty Team",Employees,Training Exp�s (Facilitators),ES-PBS Services,04/10/2023,500.00
Education & Skills,SEND (0-25),Third Party Payments,DSG - High Needs Block,ESWB Tutoring and Support Ltd,30/10/2023,624.00
Education & Skills,SEND (0-25),Third Party Payments,DSG - High Needs Block,ESWB Tutoring and Support Ltd,30/10/2023,780.00
Education & Skills,SEND (0-25),Third Party Payments,DSG - High Needs Block,ESWB Tutoring and Support Ltd,30/10/2023,456.00
Education & Skills,SEND (0-25),Third Party Payments,DSG - High Needs Block,ESWB Tutoring and Support Ltd,30/10/2023,780.00
Education & Skills,SEND (0-25),Third Party Payments,DSG - High Needs Block,ESWB Tutoring and Support Ltd,30/10/2023,780.00
Education & Skills,SEND (0-25),Third Party Payments,DSG - High Needs Block,ESWB Tutoring and Support Ltd,30/10/2023,780.00
Education & Skills,SEND (0-25),Third Party Payments,DSG - High Needs Block,ESWB Tutoring and Support Ltd,30/10/2023,256.50
Education & Skills,SEND (0-25),Third Party Payments,DSG - High Needs Block,ESWB Tutoring and Support Ltd,30/10/2023,570.00
Education & Skills,SEND (0-25),Third Party Payments,DSG - High Needs Block,ESWB Tutoring and Support Ltd,30/10/2023,171.00
Education & Skills,SEND (0-25),Third Party Payments,DSG - High Needs Block,ESWB Tutoring and Support Ltd,30/10/2023,884.00
Education & Skills,SEND (0-25),Third Party Payments,DSG - High Needs Block,ESWB Tutoring and Support Ltd,30/10/2023,285.00
Children�s Safeguarding & Family Support,"Family Placements, Children in Care, Leaving Care & Emergency Duty Team",Supplies & Services,Aids & Appliances,Etac Limited,26/10/2023,"3,647.00"
Neighbourhood & Enforcement Services,"Highways, Engineering & Project Delivery",Supplies & Services,Protective Clothing,ETAK Creative Ltd,25/10/2023,274.00
Neighbourhood & Enforcement Services,Strategic Transport & Highway Network Management,Supplies & Services,Protective Clothing,ETAK Creative Ltd,09/10/2023,262.50
Neighbourhood & Enforcement Services,Strategic Transport & Highway Network Management,Supplies & Services,Protective Clothing,ETAK Creative Ltd,09/10/2023,262.50
Neighbourhood & Enforcement Services,Strategic Transport & Highway Network Management,Supplies & Services,Protective Clothing,ETAK Creative Ltd,09/10/2023,612.50
"Communities, Customer & Commercial Services",Customer Relationships & Welfare Services,Supplies & Services,Bus Pass Production,Euclid Limited,16/10/2023,812.89
"Communities, Customer & Commercial Services",Sport & Leisure,Supplies & Services,Equipment - Purchase,European Golf Machinery,13/10/2023,"1,965.00"
"Communities, Customer & Commercial Services",Sport & Leisure,Supplies & Services,Equipment - Purchase,European Golf Machinery,12/10/2023,167.55
"Communities, Customer & Commercial Services",Sport & Leisure,Supplies & Services,Equipment - Purchase,European Golf Machinery,12/10/2023,125.45
"Communities, Customer & Commercial Services",Sport & Leisure,Supplies & Services,Equipment - Purchase,European Golf Machinery,12/10/2023,"1,965.00"
"Communities, Customer & Commercial Services",Sport & Leisure,Supplies & Services,Equipment - Purchase,European Golf Machinery,12/10/2023,162.95
"Housing, Employment & Infrastructure",Inward Investment & Business Support,Supplies & Services,Other Grants (Expenses),European Innovation Limited,13/10/2023,"10,841.43"
"Communities, Customer & Commercial Services",Culture & Events,Supplies & Services,Equipment - Hire,Event Furniture Hire Ltd,31/10/2023,245.00
"Communities, Customer & Commercial Services",Culture & Events,Supplies & Services,Equipment - Hire,Event Furniture Hire Ltd,31/10/2023,"1,821.00"
Prosperity & Investment,BiT,Premises-Related Expenditure,Service Contracts,E Solutions Ltd,20/10/2023,"3,340.00"
Prosperity & Investment,BiT,Premises-Related Expenditure,Service Contracts,E Solutions Ltd,03/10/2023,595.00
Prosperity & Investment,BiT,Premises-Related Expenditure,Service Contracts,E Solutions Ltd,03/10/2023,200.00
Prosperity & Investment,BiT,Premises-Related Expenditure,Service Contracts,E Solutions Ltd,20/10/2023,"1,385.00"
Prosperity & Investment,BiT,Premises-Related Expenditure,Service Contracts,E Solutions Ltd,20/10/2023,550.00
Prosperity & Investment,BiT,Premises-Related Expenditure,R&M -Buildings DLO Charge,E Solutions Ltd,24/10/2023,220.00
Prosperity & Investment,BiT,Premises-Related Expenditure,R&M -Buildings DLO Charge,E Solutions Ltd,24/10/2023,920.00
Prosperity & Investment,Regeneration & Investment,Premises-Related Expenditure,R&M -Building Other,E Solutions Ltd,24/10/2023,176.00
Prosperity & Investment,Regeneration & Investment,Premises-Related Expenditure,R&M -Building Other,E Solutions Ltd,20/10/2023,400.00
Adult Social Care,Community Social Work (Principal Social Worker),Transport-Related Expenditure,Taxi Costs,Ezy Car Ltd,11/10/2023,580.35
Adult Social Care,Community Social Work (Principal Social Worker),Transport-Related Expenditure,Taxi Costs,Ezy Car Ltd,11/10/2023,535.40
Adult Social Care,Community Social Work (Principal Social Worker),Transport-Related Expenditure,Taxi Costs,Ezy Car Ltd,26/10/2023,669.25
Adult Social Care,Community Social Work (Principal Social Worker),Transport-Related Expenditure,Taxi Costs,Ezy Car Ltd,26/10/2023,401.55
Adult Social Care,Prevention & Independence - Older Adults & Disability,Transport-Related Expenditure,Taxi Costs,Ezy Car Ltd,30/10/2023,139.80
Adult Social Care,Prevention & Independence - Older Adults & Disability,Transport-Related Expenditure,Taxi Costs,Ezy Car Ltd,30/10/2023,139.80
Adult Social Care,Prevention & Independence - Older Adults & Disability,Transport-Related Expenditure,Taxi Costs,Ezy Car Ltd,30/10/2023,139.80
Children�s Safeguarding & Family Support,"Family Placements, Children in Care, Leaving Care & Emergency Duty Team",Transport-Related Expenditure,Taxi Costs,Ezy Car Ltd,27/10/2023,"2,716.60"
Children�s Safeguarding & Family Support,Family Connect & Childrens Centres,Supplies & Services,Other Services,Families in Telford,18/10/2023,"4,500.00"
Education & Skills,SEND (0-25),Third Party Payments,DSG - High Needs Block,Family Nurseries Ltd,16/10/2023,584.47
"Communities, Customer & Commercial Services",ICT,Capital Expenditure,Payments to Contractor,FarrPoint Ltd,17/10/2023,"2,475.00"
Children�s Safeguarding & Family Support,"Family Placements, Children in Care, Leaving Care & Emergency Duty Team",Supplies & Services,Other Services,REDACTED PERSONAL INFORMATION,03/10/2023,156.00
Prosperity & Investment,BiT,Premises-Related Expenditure,Trade Refuse,FCC Recycling Ltd,09/10/2023,610.48
Prosperity & Investment,BiT,Premises-Related Expenditure,Trade Refuse,FCC Recycling Ltd,05/10/2023,234.80
"Communities, Customer & Commercial Services",Customer Relationships & Welfare Services,Supplies & Services,Postages,Financial Data Management plc,05/10/2023,-472.05
"Communities, Customer & Commercial Services",Customer Relationships & Welfare Services,Supplies & Services,Printing - Other,Financial Data Management plc,05/10/2023,162.34
Finance & Human Resources,Revenues,Supplies & Services,Printing - Other,Financial Data Management plc,05/10/2023,396.83
Finance & Human Resources,Revenues,Supplies & Services,Printing - Other,Financial Data Management plc,05/10/2023,181.57
Finance & Human Resources,Revenues,Supplies & Services,Printing - Other,Financial Data Management plc,05/10/2023,"1,375.00"
Finance & Human Resources,Revenues,Supplies & Services,Postages,Financial Data Management plc,05/10/2023,"-2,459.90"
Finance & Human Resources,Revenues,Supplies & Services,Postages,Financial Data Management plc,05/10/2023,-552.71
Finance & Human Resources,Revenues,Supplies & Services,Postages,Financial Data Management plc,05/10/2023,"1,114.38"
Finance & Human Resources,Revenues,Supplies & Services,Postages,Financial Data Management plc,05/10/2023,378.01
"Communities, Customer & Commercial Services",Culture & Events,Supplies & Services,Advertising,Finch Magazines,26/10/2023,420.00
Prosperity & Investment,Housing Investment Programme,Supplies & Services,Materials,Focus Consultants 2010 LLP,11/10/2023,"2,190.00"
"Communities, Customer & Commercial Services",Culture & Events,Supplies & Services,Artistes Fees,Fools Paradise Ltd,26/10/2023,825.00
Prosperity & Investment,Regeneration & Investment,Third Party Payments,Contractor Recharge,F R Associates,31/10/2023,"2,000.00"
Prosperity & Investment,Regeneration & Investment,Third Party Payments,Contractor Recharge,F R Associates,31/10/2023,"1,000.00"
Finance & Human Resources,Revenues,Supplies & Services,Franking machine service,FRANCOTYP-POSTALIA LTD ,31/10/2023,"3,000.00"
Finance & Human Resources,Revenues,Supplies & Services,Postages,FREELANCE BUSINESS ASSOCIATES,10/10/2023,378.00
Education & Skills,Education & Skills,Capital Expenditure,Legal Fees,FREETHS LLP,09/10/2023,"1,101.60"
Education & Skills,Education & Skills,Capital Expenditure,Legal Fees,FREETHS LLP,09/10/2023,336.40
Prosperity & Investment,Regeneration & Investment,Capital Expenditure,Legal Fees,FREETHS LLP,24/10/2023,"2,493.40"
Prosperity & Investment,Regeneration & Investment,Capital Expenditure,Legal Fees,FREETHS LLP,03/10/2023,"1,037.40"
Prosperity & Investment,Regeneration & Investment,Capital Expenditure,Legal Fees,FREETHS LLP,31/10/2023,736.60
Prosperity & Investment,Regeneration & Investment,Capital Expenditure,Legal Fees,FREETHS LLP,06/10/2023,"1,437.80"
Prosperity & Investment,Regeneration & Investment,Capital Expenditure,Legal Fees,FREETHS LLP,06/10/2023,182.00
Prosperity & Investment,Regeneration & Investment,Capital Expenditure,Legal Fees,FREETHS LLP,06/10/2023,462.10
Prosperity & Investment,Regeneration & Investment,Capital Expenditure,Legal Fees,FREETHS LLP,11/10/2023,797.10
Prosperity & Investment,Regeneration & Investment,Capital Expenditure,Legal Fees,FREETHS LLP,31/10/2023,618.80
Prosperity & Investment,Regeneration & Investment,Capital Expenditure,Legal Fees,FREETHS LLP,31/10/2023,353.00
Prosperity & Investment,Regeneration & Investment,Capital Expenditure,Legal Fees,FREETHS LLP,31/10/2023,503.40
Prosperity & Investment,Regeneration & Investment,Capital Expenditure,Legal Fees,FREETHS LLP,31/10/2023,359.00
Prosperity & Investment,Regeneration & Investment,Capital Expenditure,Legal Fees,FREETHS LLP,31/10/2023,200.20
Prosperity & Investment,Regeneration & Investment,Capital Expenditure,Legal Fees,FREETHS LLP,31/10/2023,356.00
Prosperity & Investment,Regeneration & Investment,Capital Expenditure,Legal Fees,FREETHS LLP,31/10/2023,"2,344.60"
Prosperity & Investment,Regeneration & Investment,Capital Expenditure,Legal Fees,FREETHS LLP,06/10/2023,877.80
Prosperity & Investment,Regeneration & Investment,Capital Expenditure,Legal Fees,FREETHS LLP,06/10/2023,"1,259.60"
Prosperity & Investment,Regeneration & Investment,Capital Expenditure,Legal Fees,FREETHS LLP,11/10/2023,828.40
Prosperity & Investment,Regeneration & Investment,Capital Expenditure,Legal Fees,FREETHS LLP,11/10/2023,859.50
Prosperity & Investment,Regeneration & Investment,Capital Expenditure,Legal Fees,FREETHS LLP,17/10/2023,500.00
Prosperity & Investment,Regeneration & Investment,Capital Expenditure,Legal Fees,FREETHS LLP ,03/10/2023,"2,160.00"
Prosperity & Investment,Regeneration & Investment,Capital Expenditure,Compensation,FREETHS LLP ,03/10/2023,"6,300.00"
Neighbourhood & Enforcement Services,Strategic Transport & Highway Network Management,Transport-Related Expenditure,Servicing & Repairs V&P,FURROWS OF TELFORD,03/10/2023,669.99
Neighbourhood & Enforcement Services,Strategic Transport & Highway Network Management,Transport-Related Expenditure,Servicing & Repairs V&P,FURROWS OF TELFORD,03/10/2023,900.65
Neighbourhood & Enforcement Services,Strategic Transport & Highway Network Management,Transport-Related Expenditure,Servicing & Repairs V&P,FURROWS OF TELFORD,24/10/2023,127.50
Neighbourhood & Enforcement Services,Strategic Transport & Highway Network Management,Transport-Related Expenditure,Servicing & Repairs V&P,FURROWS OF TELFORD,24/10/2023,127.50
Neighbourhood & Enforcement Services,Strategic Transport & Highway Network Management,Transport-Related Expenditure,Servicing & Repairs V&P,FURROWS OF TELFORD,03/10/2023,847.28
Neighbourhood & Enforcement Services,Strategic Transport & Highway Network Management,Transport-Related Expenditure,Servicing & Repairs V&P,FURROWS OF TELFORD,03/10/2023,127.50
Neighbourhood & Enforcement Services,Strategic Transport & Highway Network Management,Transport-Related Expenditure,Servicing & Repairs V&P,FURROWS OF TELFORD,03/10/2023,127.50
Neighbourhood & Enforcement Services,Strategic Transport & Highway Network Management,Transport-Related Expenditure,Servicing & Repairs V&P,FURROWS OF TELFORD,03/10/2023,127.50
Neighbourhood & Enforcement Services,Strategic Transport & Highway Network Management,Transport-Related Expenditure,Servicing & Repairs V&P,FURROWS OF TELFORD,03/10/2023,127.50
Neighbourhood & Enforcement Services,Strategic Transport & Highway Network Management,Transport-Related Expenditure,Servicing & Repairs V&P,FURROWS OF TELFORD,03/10/2023,182.35
Neighbourhood & Enforcement Services,Strategic Transport & Highway Network Management,Transport-Related Expenditure,Servicing & Repairs V&P,FURROWS OF TELFORD,09/10/2023,127.50
"Housing, Employment & Infrastructure",Private Sector Housing & Enforcement,Employees,Agency Supply Costs,G2 Recruitment Solutions,24/10/2023,"1,326.00"
"Housing, Employment & Infrastructure",Private Sector Housing & Enforcement,Employees,Agency Supply Costs,G2 Recruitment Solutions,24/10/2023,"1,258.00"
"Housing, Employment & Infrastructure",Private Sector Housing & Enforcement,Employees,Agency Supply Costs,G2 Recruitment Solutions,30/10/2023,"1,258.00"
Prosperity & Investment,Development Management,Employees,Agency Supply Costs,G2 Recruitment Solutions,31/10/2023,"2,405.00"
Prosperity & Investment,Development Management,Employees,Agency Supply Costs,G2 Recruitment Solutions,31/10/2023,"2,161.25"
Prosperity & Investment,Development Management,Employees,Agency Supply Costs,G2 Recruitment Solutions,31/10/2023,"2,047.50"
Prosperity & Investment,BiT,Premises-Related Expenditure,R&M -Buildings DLO Charge,GAS ALARM SYSTEMS LTD,03/10/2023,172.00
Prosperity & Investment,BiT,Premises-Related Expenditure,R&M -Buildings DLO Charge,GAS ALARM SYSTEMS LTD,03/10/2023,172.00
Prosperity & Investment,BiT,Premises-Related Expenditure,R&M -Buildings DLO Charge,GAS ALARM SYSTEMS LTD,09/10/2023,320.00
Prosperity & Investment,Regeneration & Investment,Capital Expenditure,Engineers Fees,G LLP,31/10/2023,250.00
Education & Skills,Consultancy & Advisory Services,Supplies & Services,Other Grants (Expenses),Genius Tuition,17/10/2023,"4,000.00"
Education & Skills,Consultancy & Advisory Services,Supplies & Services,Other Grants (Expenses),Genius Tuition,17/10/2023,"1,495.25"
Education & Skills,Consultancy & Advisory Services,Supplies & Services,Other Grants (Expenses),Genius Tuition,17/10/2023,"4,000.00"
Education & Skills,Consultancy & Advisory Services,Supplies & Services,Other Grants (Expenses),Genius Tuition,17/10/2023,"4,000.00"
Education & Skills,Consultancy & Advisory Services,Supplies & Services,Other Grants (Expenses),Genius Tuition,17/10/2023,"5,986.00"
Finance & Human Resources,Human Resources,Supplies & Services,Doctors Fees,Get Medic Ltd,24/10/2023,550.00
"Communities, Customer & Commercial Services",ICT,Supplies & Services,Telephones,Ghekko LTD,17/10/2023,190.00
"Communities, Customer & Commercial Services",ICT,Supplies & Services,Telephones,Ghekko LTD,02/10/2023,300.00
"Communities, Customer & Commercial Services",ICT,Supplies & Services,Telephones,Ghekko LTD,02/10/2023,170.00
"Communities, Customer & Commercial Services",Sport & Leisure,Supplies & Services,Equipment - Purchase,G MRM Ltd,03/10/2023,"1,495.00"
Adult Social Care,My Options,Supplies & Services,Respite Care,REDACTED PERSONAL INFORMATION,20/10/2023,"1,030.40"
Neighbourhood & Enforcement Services,Safer & Stronger Communities,Premises-Related Expenditure,Leasehold Rents,GPS Property Shropshire LLP,10/10/2023,700.00
Neighbourhood & Enforcement Services,Safer & Stronger Communities,Premises-Related Expenditure,Leasehold Rents,GPS Property Shropshire LLP,16/10/2023,725.00
Neighbourhood & Enforcement Services,Strategic Transport & Highway Network Management,Transport-Related Expenditure,Servicing & Repairs V&P,G H Ltd,09/10/2023,198.42
Education & Skills,SEND (0-25),Third Party Payments,DSG - High Needs Block,Grange Park Primary School - Community Academies Trust,16/10/2023,"11,200.98"
Adult Social Care,My Options,Premises-Related Expenditure,R&M -Buildings DLO Charge,GRANVILLE CONSTRUCTION & MAINTENANCE LTD,04/10/2023,248.71
"Communities, Customer & Commercial Services",Sport & Leisure,Supplies & Services,Equipment - Purchase,GRANVILLE CONSTRUCTION & MAINTENANCE LTD,23/10/2023,251.99
"Communities, Customer & Commercial Services",Sport & Leisure,Supplies & Services,Sub Contractors,GRANVILLE CONSTRUCTION & MAINTENANCE LTD,16/10/2023,"1,320.00"
"Communities, Customer & Commercial Services",Sport & Leisure,Supplies & Services,Sub Contractors,GRANVILLE CONSTRUCTION & MAINTENANCE LTD,16/10/2023,"1,694.00"
"Communities, Customer & Commercial Services",Sport & Leisure,Supplies & Services,Equipment - Purchase,GRANVILLE CONSTRUCTION & MAINTENANCE LTD,26/10/2023,291.00
Education & Skills,Education & Skills,Capital Expenditure,Payments to Contractor,GRANVILLE CONSTRUCTION & MAINTENANCE LTD,09/10/2023,"11,160.00"
Education & Skills,Education & Skills,Capital Expenditure,Payments to Contractor,GRANVILLE CONSTRUCTION & MAINTENANCE LTD,09/10/2023,"16,600.51"
Education & Skills,Education & Skills,Capital Expenditure,Payments to Contractor,GRANVILLE CONSTRUCTION & MAINTENANCE LTD,03/10/2023,"1,100.00"
Education & Skills,Education & Skills,Capital Expenditure,Payments to Contractor,GRANVILLE CONSTRUCTION & MAINTENANCE LTD,03/10/2023,"1,288.00"
Education & Skills,Education & Skills,Capital Expenditure,Payments to Contractor,GRANVILLE CONSTRUCTION & MAINTENANCE LTD,09/10/2023,"12,709.00"
Education & Skills,Education & Skills,Capital Expenditure,Payments to Contractor,GRANVILLE CONSTRUCTION & MAINTENANCE LTD,09/10/2023,"18,517.00"
Education & Skills,Education & Skills,Capital Expenditure,Payments to Contractor,GRANVILLE CONSTRUCTION & MAINTENANCE LTD,03/10/2023,"5,640.00"
Education & Skills,Education & Skills,Capital Expenditure,Payments to Contractor,GRANVILLE CONSTRUCTION & MAINTENANCE LTD,03/10/2023,"5,494.00"
Education & Skills,Education & Skills,Capital Expenditure,Payments to Contractor,GRANVILLE CONSTRUCTION & MAINTENANCE LTD,03/10/2023,"4,820.00"
Education & Skills,Education & Skills,Capital Expenditure,Payments to Contractor,GRANVILLE CONSTRUCTION & MAINTENANCE LTD,03/10/2023,"8,126.50"
Education & Skills,Education & Skills,Capital Expenditure,Payments to Contractor,GRANVILLE CONSTRUCTION & MAINTENANCE LTD,03/10/2023,"3,170.00"
Education & Skills,Education & Skills,Capital Expenditure,Payments to Contractor,GRANVILLE CONSTRUCTION & MAINTENANCE LTD,03/10/2023,"4,379.00"
Education & Skills,Education & Skills,Capital Expenditure,Payments to Contractor,GRANVILLE CONSTRUCTION & MAINTENANCE LTD,03/10/2023,"1,040.00"
Education & Skills,Education & Skills,Capital Expenditure,Payments to Contractor,GRANVILLE CONSTRUCTION & MAINTENANCE LTD,03/10/2023,"1,944.44"
Education & Skills,Education & Skills,Capital Expenditure,Payments to Contractor,GRANVILLE CONSTRUCTION & MAINTENANCE LTD,09/10/2023,"11,927.00"
Education & Skills,Education & Skills,Capital Expenditure,Payments to Contractor,GRANVILLE CONSTRUCTION & MAINTENANCE LTD,09/10/2023,"14,380.12"
Prosperity & Investment,BiT,Premises-Related Expenditure,R&M -Buildings DLO Charge,GRANVILLE CONSTRUCTION & MAINTENANCE LTD,03/10/2023,162.87
Prosperity & Investment,BiT,Premises-Related Expenditure,R&M -Buildings DLO Charge,GRANVILLE CONSTRUCTION & MAINTENANCE LTD,03/10/2023,126.00
Prosperity & Investment,BiT,Premises-Related Expenditure,R&M -Buildings DLO Charge,GRANVILLE CONSTRUCTION & MAINTENANCE LTD,09/10/2023,132.71
Prosperity & Investment,BiT,Premises-Related Expenditure,R&M -Buildings DLO Charge,GRANVILLE CONSTRUCTION & MAINTENANCE LTD,13/10/2023,129.00
Prosperity & Investment,BiT,Premises-Related Expenditure,R&M -Buildings DLO Charge,GRANVILLE CONSTRUCTION & MAINTENANCE LTD,25/10/2023,151.34
Prosperity & Investment,BiT,Premises-Related Expenditure,R&M -Buildings DLO Charge,GRANVILLE CONSTRUCTION & MAINTENANCE LTD,25/10/2023,101.24
Prosperity & Investment,BiT,Premises-Related Expenditure,R&M -Buildings DLO Charge,GRANVILLE CONSTRUCTION & MAINTENANCE LTD,24/10/2023,"1,258.00"
Prosperity & Investment,BiT,Premises-Related Expenditure,R&M -Buildings DLO Charge,GRANVILLE CONSTRUCTION & MAINTENANCE LTD,24/10/2023,108.00
Prosperity & Investment,BiT,Premises-Related Expenditure,R&M -Buildings DLO Charge,GRANVILLE CONSTRUCTION & MAINTENANCE LTD,03/10/2023,"1,296.00"
Prosperity & Investment,BiT,Premises-Related Expenditure,R&M -Buildings DLO Charge,GRANVILLE CONSTRUCTION & MAINTENANCE LTD,03/10/2023,180.00
Prosperity & Investment,BiT,Premises-Related Expenditure,R&M -Buildings DLO Charge,GRANVILLE CONSTRUCTION & MAINTENANCE LTD,13/10/2023,386.80
Prosperity & Investment,BiT,Premises-Related Expenditure,R&M -Buildings DLO Charge,GRANVILLE CONSTRUCTION & MAINTENANCE LTD,20/10/2023,239.99
Prosperity & Investment,BiT,Premises-Related Expenditure,R&M -Buildings DLO Charge,GRANVILLE CONSTRUCTION & MAINTENANCE LTD,03/10/2023,"1,860.00"
Prosperity & Investment,BiT,Premises-Related Expenditure,R&M -Buildings DLO Charge,GRANVILLE CONSTRUCTION & MAINTENANCE LTD,03/10/2023,"1,682.98"
Prosperity & Investment,BiT,Premises-Related Expenditure,R&M -Buildings DLO Charge,GRANVILLE CONSTRUCTION & MAINTENANCE LTD,03/10/2023,181.10
Prosperity & Investment,BiT,Premises-Related Expenditure,R&M -Buildings DLO Charge,GRANVILLE CONSTRUCTION & MAINTENANCE LTD,03/10/2023,151.50
Prosperity & Investment,BiT,Premises-Related Expenditure,R&M -Buildings DLO Charge,GRANVILLE CONSTRUCTION & MAINTENANCE LTD,03/10/2023,"1,210.23"
Prosperity & Investment,BiT,Premises-Related Expenditure,R&M -Buildings DLO Charge,GRANVILLE CONSTRUCTION & MAINTENANCE LTD,20/10/2023,210.91
Prosperity & Investment,BiT,Premises-Related Expenditure,R&M -Buildings DLO Charge,GRANVILLE CONSTRUCTION & MAINTENANCE LTD,24/10/2023,524.52
Prosperity & Investment,BiT,Premises-Related Expenditure,R&M -Buildings DLO Charge,GRANVILLE CONSTRUCTION & MAINTENANCE LTD,24/10/2023,292.98
Prosperity & Investment,BiT,Premises-Related Expenditure,R&M -Buildings DLO Charge,GRANVILLE CONSTRUCTION & MAINTENANCE LTD,24/10/2023,355.66
Prosperity & Investment,BiT,Premises-Related Expenditure,R&M -Building Other,GRANVILLE CONSTRUCTION & MAINTENANCE LTD,13/10/2023,284.40
Prosperity & Investment,BiT,Premises-Related Expenditure,R&M -Building Other,GRANVILLE CONSTRUCTION & MAINTENANCE LTD,13/10/2023,601.00
Prosperity & Investment,BiT,Premises-Related Expenditure,R&M -Building Other,GRANVILLE CONSTRUCTION & MAINTENANCE LTD,13/10/2023,369.00
Prosperity & Investment,BiT,Premises-Related Expenditure,R&M -Building Other,GRANVILLE CONSTRUCTION & MAINTENANCE LTD,13/10/2023,634.12
Prosperity & Investment,BiT,Premises-Related Expenditure,R&M -Building Other,GRANVILLE CONSTRUCTION & MAINTENANCE LTD,13/10/2023,138.00
Prosperity & Investment,BiT,Premises-Related Expenditure,R&M -Building Other,GRANVILLE CONSTRUCTION & MAINTENANCE LTD,13/10/2023,250.80
Prosperity & Investment,BiT,Premises-Related Expenditure,R&M -Building Other,GRANVILLE CONSTRUCTION & MAINTENANCE LTD,13/10/2023,250.80
Prosperity & Investment,BiT,Premises-Related Expenditure,R&M -Buildings DLO Charge,GRANVILLE CONSTRUCTION & MAINTENANCE LTD,03/10/2023,133.66
Prosperity & Investment,Development Management,Premises-Related Expenditure,Planned Repairs,GRANVILLE CONSTRUCTION & MAINTENANCE LTD,04/10/2023,123.50
Prosperity & Investment,Development Management,Premises-Related Expenditure,Planned Repairs,GRANVILLE CONSTRUCTION & MAINTENANCE LTD,31/10/2023,"1,502.00"
Prosperity & Investment,Development Management,Premises-Related Expenditure,Planned Repairs,GRANVILLE CONSTRUCTION & MAINTENANCE LTD,31/10/2023,270.00
Prosperity & Investment,Development Management,Premises-Related Expenditure,Planned Repairs,GRANVILLE CONSTRUCTION & MAINTENANCE LTD,31/10/2023,"1,200.00"
Prosperity & Investment,Development Management,Premises-Related Expenditure,Planned Repairs,GRANVILLE CONSTRUCTION & MAINTENANCE LTD,31/10/2023,677.98
Prosperity & Investment,Development Management,Premises-Related Expenditure,Planned Repairs,GRANVILLE CONSTRUCTION & MAINTENANCE LTD,31/10/2023,498.00
Prosperity & Investment,Regeneration & Investment,Premises-Related Expenditure,Insurance Loss Over 250,GRANVILLE CONSTRUCTION & MAINTENANCE LTD,13/10/2023,"1,050.00"
Prosperity & Investment,Regeneration & Investment,Premises-Related Expenditure,Insurance Loss Over 250,GRANVILLE CONSTRUCTION & MAINTENANCE LTD,13/10/2023,356.43
Prosperity & Investment,Regeneration & Investment,Premises-Related Expenditure,R&M -Building Other,GRANVILLE CONSTRUCTION & MAINTENANCE LTD,24/10/2023,132.00
Prosperity & Investment,Regeneration & Investment,Premises-Related Expenditure,R&M -Building Other,GRANVILLE CONSTRUCTION & MAINTENANCE LTD,24/10/2023,348.00
Prosperity & Investment,Regeneration & Investment,Premises-Related Expenditure,R&M -Building Other,GRANVILLE CONSTRUCTION & MAINTENANCE LTD,03/10/2023,"2,291.65"
Prosperity & Investment,Regeneration & Investment,Premises-Related Expenditure,R&M -Building Other,GRANVILLE CONSTRUCTION & MAINTENANCE LTD,17/10/2023,"2,472.05"
Prosperity & Investment,Regeneration & Investment,Premises-Related Expenditure,R&M -Building Other,GRANVILLE CONSTRUCTION & MAINTENANCE LTD,18/10/2023,"1,020.00"
Prosperity & Investment,Regeneration & Investment,Premises-Related Expenditure,R&M -Building Other,GRANVILLE CONSTRUCTION & MAINTENANCE LTD,18/10/2023,"1,505.50"
Prosperity & Investment,Regeneration & Investment,Premises-Related Expenditure,R&M -Building Other,GRANVILLE CONSTRUCTION & MAINTENANCE LTD,26/10/2023,389.00
Prosperity & Investment,Regeneration & Investment,Premises-Related Expenditure,R&M -Building Other,GRANVILLE CONSTRUCTION & MAINTENANCE LTD,31/10/2023,206.69
Prosperity & Investment,Regeneration & Investment,Premises-Related Expenditure,R&M -Building Other,GRANVILLE CONSTRUCTION & MAINTENANCE LTD,31/10/2023,513.00
Prosperity & Investment,Regeneration & Investment,Premises-Related Expenditure,R&M -Building Other,GRANVILLE CONSTRUCTION & MAINTENANCE LTD,31/10/2023,704.16
Prosperity & Investment,Regeneration & Investment,Premises-Related Expenditure,R&M -Building Other,GRANVILLE CONSTRUCTION & MAINTENANCE LTD,31/10/2023,116.40
Prosperity & Investment,Regeneration & Investment,Premises-Related Expenditure,R&M -Building Other,GRANVILLE CONSTRUCTION & MAINTENANCE LTD,31/10/2023,154.95
Prosperity & Investment,Regeneration & Investment,Premises-Related Expenditure,R&M -Building Other,GRANVILLE CONSTRUCTION & MAINTENANCE LTD,19/10/2023,269.40
Prosperity & Investment,Regeneration & Investment,Premises-Related Expenditure,R&M -Building Other,GRANVILLE CONSTRUCTION & MAINTENANCE LTD,31/10/2023,924.98
Prosperity & Investment,Regeneration & Investment,Capital Expenditure,Payments to Contractor,GRANVILLE CONSTRUCTION & MAINTENANCE LTD,18/10/2023,169.00
Prosperity & Investment,Regeneration & Investment,Capital Expenditure,Payments to Contractor,GRANVILLE CONSTRUCTION & MAINTENANCE LTD,31/10/2023,"1,705.41"
"Communities, Customer & Commercial Services",Community Services,Supplies & Services,Grants To Voluntary Organis,Great Dawley Town Council,10/10/2023,500.00
"Communities, Customer & Commercial Services",Community Services,Supplies & Services,Grants To Voluntary Organis,Great Dawley Town Council,10/10/2023,500.00
Education & Skills,Consultancy & Advisory Services,Supplies & Services,Other Grants (Expenses),Great Dawley Town Council,04/10/2023,"2,572.80"
Prosperity & Investment,BiT,Premises-Related Expenditure,R&M -Buildings DLO Charge,Green Assess Telford and Wrekin,09/10/2023,105.00
Prosperity & Investment,BiT,Premises-Related Expenditure,R&M -Buildings DLO Charge,Green Assess Telford and Wrekin,09/10/2023,105.00
Prosperity & Investment,BiT,Premises-Related Expenditure,R&M -Buildings DLO Charge,Green Assess Telford and Wrekin,13/10/2023,105.00
Prosperity & Investment,BiT,Premises-Related Expenditure,R&M -Buildings DLO Charge,Green Assess Telford and Wrekin,13/10/2023,105.00
Prosperity & Investment,BiT,Premises-Related Expenditure,R&M -Buildings DLO Charge,Green Assess Telford and Wrekin,13/10/2023,105.00
Prosperity & Investment,BiT,Premises-Related Expenditure,R&M -Buildings DLO Charge,Green Assess Telford and Wrekin,13/10/2023,105.00
Prosperity & Investment,BiT,Premises-Related Expenditure,Service Contracts,Green Assess Telford and Wrekin,09/10/2023,105.00
Children�s Safeguarding & Family Support,Family Connect & Childrens Centres,Premises-Related Expenditure,Electricity,Guinness Sustainable Schools,17/10/2023,522.26
Neighbourhood & Enforcement Services,Neighbourhood & Environmental Services,Supplies & Services,Sport Equip - Purchase,HAGS-SMP LTD,23/10/2023,"5,513.61"
Neighbourhood & Enforcement Services,Waste & Neighbourhood Services,Capital Expenditure,Payments to Contractor,HAGS-SMP LTD,19/10/2023,"5,513.61"
Neighbourhood & Enforcement Services,Waste & Neighbourhood Services,Capital Expenditure,Payments to Contractor,HAGS-SMP LTD,19/10/2023,"58,999.99"
Education & Skills,Consultancy & Advisory Services,Supplies & Services,Other Grants (Expenses),HALESFIELD DAY NURSERY CENTRE,04/10/2023,"2,509.08"
Prosperity & Investment,Regeneration & Investment,Capital Expenditure,Payments to Contractor,H Land Management Ltd,31/10/2023,"4,633.00"
Prosperity & Investment,Regeneration & Investment,Capital Expenditure,External Professional Fees,H Land Management Ltd,31/10/2023,"7,508.00"
"Communities, Customer & Commercial Services",Sport & Leisure,Supplies & Services,Provisions,Handmade Speciality Products Ltd,20/10/2023,400.38
"Communities, Customer & Commercial Services",Sport & Leisure,Supplies & Services,Provisions,Handmade Speciality Products Ltd,24/10/2023,296.26
Neighbourhood & Enforcement Services,Neighbourhood & Environmental Services,Premises-Related Expenditure,Grounds Maintenance - Other,H RIVER MAINTENANCE,17/10/2023,"4,200.00"
"Communities, Customer & Commercial Services",Sport & Leisure,Supplies & Services,Crockery/Hardware/Light Equip,Harfield Components Ltd,02/10/2023,"1,433.60"
"Communities, Customer & Commercial Services",Sport & Leisure,Supplies & Services,Crockery/Hardware/Light Equip,Harfield Components Ltd,20/10/2023,138.09
"Communities, Customer & Commercial Services",Sport & Leisure,Supplies & Services,Crockery/Hardware/Light Equip,Harfield Components Ltd,26/10/2023,153.29
"Communities, Customer & Commercial Services",Customer Relationships & Welfare Services,Supplies & Services,Other Grants (Expenses),Hawk Incentives Ltd ,12/10/2023,"155,484.00"
"Communities, Customer & Commercial Services",Customer Relationships & Welfare Services,Supplies & Services,Other Grants (Expenses),Hawk Incentives Ltd ,13/10/2023,"19,744.00"
"Housing, Employment & Infrastructure",Local Plan,Supplies & Services,Research Surveys,HDH Planning & Development Ltd,19/10/2023,"14,449.00"
Policy & Governance,Organisational Development & Delivery,Employees,Staff Training,Henpicked: Menopause in the Workplace Ltd,12/10/2023,850.00
Neighbourhood & Enforcement Services,Neighbourhood & Environmental Services,Supplies & Services,Other Services,H PETS HOTEL,26/10/2023,"1,506.12"
Neighbourhood & Enforcement Services,Neighbourhood & Environmental Services,Supplies & Services,Other Services,H PETS HOTEL,26/10/2023,-425.00
Education & Skills,Consultancy & Advisory Services,Supplies & Services,Other Grants (Expenses),HOLLINSWOOD & RANDLAY PARISH COUNCIL,17/10/2023,"2,436.00"
Prosperity & Investment,Regeneration & Investment,Premises-Related Expenditure,Grounds Maintenance - L&CS,H Tree Care Ltd,31/10/2023,850.00
Education & Skills,Consultancy & Advisory Services,Supplies & Services,Other Services,HONEYBUNS NURSERIES,20/10/2023,540.04
"Housing, Employment & Infrastructure",Inward Investment & Business Support,Supplies & Services,Consultancy,Horizons Consultants Ltd,13/10/2023,"1,250.00"
Neighbourhood & Enforcement Services,Enforcement,Supplies & Services,Green Waste,Hough Green Garage Ltd,23/10/2023,461.00
"Communities, Customer & Commercial Services",Sport & Leisure,Premises-Related Expenditure,R&M - Mechanical,Hutchison Technologies Ltd.,11/10/2023,200.00
Prosperity & Investment,BiT,Premises-Related Expenditure,R&M -Buildings DLO Charge,HYDRO-TECH ENVIRONMENTAL LLP,09/10/2023,380.00
Prosperity & Investment,BiT,Premises-Related Expenditure,R&M -Buildings DLO Charge,HYDRO-TECH ENVIRONMENTAL LLP,09/10/2023,240.00
Prosperity & Investment,BiT,Premises-Related Expenditure,R&M -Buildings DLO Charge,HYDRO-TECH ENVIRONMENTAL LLP,09/10/2023,390.00
Prosperity & Investment,BiT,Capital Expenditure,Payments to Contractor,ICTn Limited,16/10/2023,"2,558.34"
Neighbourhood & Enforcement Services,Neighbourhood & Environmental Services,Third Party Payments,Contractor Recharge,Id verde,30/10/2023,"493,558.02"
Prosperity & Investment,Regeneration & Investment,Premises-Related Expenditure,Grounds Maintenance - L&CS,Id verde,13/10/2023,139.94
Prosperity & Investment,Regeneration & Investment,Premises-Related Expenditure,Grounds Maintenance - L&CS,Id verde,13/10/2023,129.94
"Communities, Customer & Commercial Services",ICT,Supplies & Services,Comp Software (Purch / Hire),IDOX SOFTWARE LTD,17/10/2023,"6,550.00"
Adult Social Care,"Commissioning, Procurement & Brokerage",Supplies & Services,Registration / Licence Fees,iESE Innovation Ltd,16/10/2023,"15,750.00"
"Communities, Customer & Commercial Services",Sport & Leisure,Supplies & Services,Protective Clothing,IMAGE@WORK LTD,13/10/2023,582.56
Policy & Governance,Governance & Legal Services,Supplies & Services,Printing - Other,IMPACT MAIL & PRINT LTD,20/10/2023,231.42
Prosperity & Investment,Development Management,Supplies & Services,Administrative/Office Supplies,Impact Test Equipment Ltd,31/10/2023,180.00
Finance & Human Resources,Revenues,Supplies & Services,Consultancy,Inform CPI Ltd,10/10/2023,350.00
Finance & Human Resources,Revenues,Supplies & Services,Consultancy,Inform CPI Ltd,16/10/2023,750.00
Finance & Human Resources,Revenues,Supplies & Services,Consultancy,Inform CPI Ltd,20/10/2023,"2,300.00"
Health & Wellbeing,Consultant in Public Health,Supplies & Services,Publications,Totally Branded,31/10/2023,925.00
Neighbourhood & Enforcement Services,"Highways, Engineering & Project Delivery",Employees,Training Expenses,INSTITUTE OF HIGHWAYS ENGINEERS,18/10/2023,900.00
"Communities, Customer & Commercial Services",Sport & Leisure,Employees,Staff Training,INSTITUTE OF SWIMMING ,25/10/2023,425.00
"Communities, Customer & Commercial Services",Sport & Leisure,Employees,Staff Training,INSTITUTE OF SWIMMING ,20/10/2023,425.00
"Communities, Customer & Commercial Services",Sport & Leisure,Employees,Staff Training,INSTITUTE OF SWIMMING ,20/10/2023,850.00
"Housing, Employment & Infrastructure",Inward Investment & Business Support,Supplies & Services,Consultancy,Involved Social Impact Projects Ltd,13/10/2023,"2,125.00"
Finance & Human Resources,Revenues,Employees,Course Fees,IRRV,16/10/2023,215.00
Adult Social Care,ASC Directorate,Supplies & Services,Subscriptions,Islington Council,23/10/2023,918.00
Children�s Safeguarding & Family Support,Child Protection & Family Support,Supplies & Services,Subscriptions,Islington Council,23/10/2023,919.00
Prosperity & Investment,Development Management,Employees,Staff Training,Ivy Legal Limited,09/10/2023,"2,500.00"
Prosperity & Investment,Development Management,Employees,Staff Training,Ivy Legal Limited,25/10/2023,195.00
Prosperity & Investment,Development Management,Employees,Staff Training,Ivy Legal Limited,25/10/2023,195.00
Prosperity & Investment,Development Management,Employees,Staff Training,Ivy Legal Limited,25/10/2023,195.00
"Communities, Customer & Commercial Services",Community Services,Supplies & Services,Other Services,IZEN Energy Systems,06/10/2023,"3,038.21"
Neighbourhood & Enforcement Services,Neighbourhood & Environmental Services,Premises-Related Expenditure,Grounds Maintenance - Other,J M Ltd,13/10/2023,700.00
"Communities, Customer & Commercial Services",Sport & Leisure,Supplies & Services,Equipment - Purchase,J P L LTD,20/10/2023,202.13
Prosperity & Investment,BiT,Premises-Related Expenditure,R&M -Buildings DLO Charge,JAK WATER SYSTEMS LTD,09/10/2023,"1,638.37"
Prosperity & Investment,BiT,Premises-Related Expenditure,R&M -Buildings DLO Charge,JAK WATER SYSTEMS LTD,09/10/2023,247.67
Prosperity & Investment,BiT,Premises-Related Expenditure,R&M -Buildings DLO Charge,JAK WATER SYSTEMS LTD,05/10/2023,183.60
Prosperity & Investment,BiT,Premises-Related Expenditure,R&M -Buildings DLO Charge,JAK WATER SYSTEMS LTD,20/10/2023,288.00
Prosperity & Investment,BiT,Premises-Related Expenditure,Service Contracts,JAK WATER SYSTEMS LTD,09/10/2023,111.50
Prosperity & Investment,BiT,Premises-Related Expenditure,Service Contracts,JAK WATER SYSTEMS LTD,09/10/2023,161.50
Prosperity & Investment,BiT,Premises-Related Expenditure,Service Contracts,JAK WATER SYSTEMS LTD,20/10/2023,381.50
"Housing, Employment & Infrastructure",Inward Investment & Business Support,Capital Expenditure,Payments to Contractor,Jalving Potatoes UK Ltd,11/10/2023,"1,875.34"
Neighbourhood & Enforcement Services,Neighbourhood & Environmental Services,Premises-Related Expenditure,Grounds Maintenance - Other,J L & SONS LTD,30/10/2023,169.74
Children�s Safeguarding & Family Support,Family Connect & Childrens Centres,Premises-Related Expenditure,R&M -Building Other,JCE & SONS LTD,02/10/2023,237.53
Prosperity & Investment,BiT,Premises-Related Expenditure,R&M -Buildings DLO Charge,JCE & SONS LTD,13/10/2023,146.56
Prosperity & Investment,BiT,Premises-Related Expenditure,R&M -Buildings DLO Charge,JCE & SONS LTD,03/10/2023,230.96
Prosperity & Investment,BiT,Premises-Related Expenditure,R&M -Buildings DLO Charge,JCE & SONS LTD,09/10/2023,"3,111.46"
Prosperity & Investment,BiT,Premises-Related Expenditure,R&M -Buildings DLO Charge,JCE & SONS LTD,13/10/2023,169.24
Prosperity & Investment,BiT,Premises-Related Expenditure,R&M -Buildings DLO Charge,JCE & SONS LTD,13/10/2023,169.24
Prosperity & Investment,BiT,Premises-Related Expenditure,R&M -Buildings DLO Charge,JCE & SONS LTD,13/10/2023,463.08
Prosperity & Investment,BiT,Premises-Related Expenditure,R&M -Buildings DLO Charge,JCE & SONS LTD,13/10/2023,133.42
Prosperity & Investment,BiT,Premises-Related Expenditure,R&M -Buildings DLO Charge,JCE & SONS LTD,13/10/2023,168.20
Prosperity & Investment,BiT,Premises-Related Expenditure,R&M -Buildings DLO Charge,JCE & SONS LTD,13/10/2023,139.76
Prosperity & Investment,BiT,Premises-Related Expenditure,R&M -Buildings DLO Charge,JCE & SONS LTD,13/10/2023,297.50
Prosperity & Investment,BiT,Premises-Related Expenditure,R&M -Buildings DLO Charge,JCE & SONS LTD,13/10/2023,219.82
Prosperity & Investment,BiT,Premises-Related Expenditure,R&M -Buildings DLO Charge,JCE & SONS LTD,13/10/2023,405.00
Prosperity & Investment,BiT,Premises-Related Expenditure,R&M -Buildings DLO Charge,JCE & SONS LTD,13/10/2023,207.32
Prosperity & Investment,BiT,Premises-Related Expenditure,R&M -Buildings DLO Charge,JCE & SONS LTD,25/10/2023,880.00
Prosperity & Investment,BiT,Premises-Related Expenditure,R&M -Buildings DLO Charge,JCE & SONS LTD,25/10/2023,112.00
Prosperity & Investment,BiT,Premises-Related Expenditure,R&M -Buildings DLO Charge,JCE & SONS LTD,24/10/2023,247.80
Prosperity & Investment,BiT,Premises-Related Expenditure,R&M -Buildings DLO Charge,JCE & SONS LTD,24/10/2023,120.60
Prosperity & Investment,BiT,Premises-Related Expenditure,R&M -Buildings DLO Charge,JCE & SONS LTD,13/10/2023,819.26
Prosperity & Investment,BiT,Premises-Related Expenditure,R&M -Buildings DLO Charge,JCE & SONS LTD,18/10/2023,656.20
Prosperity & Investment,BiT,Premises-Related Expenditure,R&M -Buildings DLO Charge,JCE & SONS LTD,03/10/2023,210.06
Prosperity & Investment,BiT,Premises-Related Expenditure,R&M -Buildings DLO Charge,JCE & SONS LTD,03/10/2023,198.04
Prosperity & Investment,BiT,Premises-Related Expenditure,R&M -Buildings DLO Charge,JCE & SONS LTD,13/10/2023,270.40
Prosperity & Investment,BiT,Premises-Related Expenditure,R&M -Buildings DLO Charge,JCE & SONS LTD,13/10/2023,126.64
Prosperity & Investment,BiT,Premises-Related Expenditure,R&M -Buildings DLO Charge,JCE & SONS LTD,13/10/2023,244.88
Prosperity & Investment,BiT,Premises-Related Expenditure,R&M -Buildings DLO Charge,JCE & SONS LTD,20/10/2023,153.00
Prosperity & Investment,BiT,Premises-Related Expenditure,R&M -Buildings DLO Charge,JCE & SONS LTD,03/10/2023,971.36
Prosperity & Investment,BiT,Premises-Related Expenditure,R&M -Buildings DLO Charge,JCE & SONS LTD,03/10/2023,347.73
Prosperity & Investment,BiT,Premises-Related Expenditure,R&M -Buildings DLO Charge,JCE & SONS LTD,03/10/2023,262.85
Prosperity & Investment,BiT,Premises-Related Expenditure,R&M -Buildings DLO Charge,JCE & SONS LTD,18/10/2023,120.00
Prosperity & Investment,BiT,Premises-Related Expenditure,R&M -Buildings DLO Charge,JCE & SONS LTD,13/10/2023,287.08
Prosperity & Investment,BiT,Premises-Related Expenditure,R&M -Buildings DLO Charge,JCE & SONS LTD,13/10/2023,211.18
Prosperity & Investment,BiT,Premises-Related Expenditure,R&M -Buildings DLO Charge,JCE & SONS LTD,13/10/2023,169.60
Prosperity & Investment,BiT,Premises-Related Expenditure,R&M -Buildings DLO Charge,JCE & SONS LTD,13/10/2023,125.40
Prosperity & Investment,BiT,Premises-Related Expenditure,R&M -Buildings DLO Charge,JCE & SONS LTD,13/10/2023,232.97
Prosperity & Investment,BiT,Premises-Related Expenditure,R&M -Buildings DLO Charge,JCE & SONS LTD,13/10/2023,338.00
Prosperity & Investment,BiT,Premises-Related Expenditure,R&M -Buildings DLO Charge,JCE & SONS LTD,13/10/2023,182.45
Prosperity & Investment,BiT,Premises-Related Expenditure,R&M -Buildings DLO Charge,JCE & SONS LTD,13/10/2023,143.00
Prosperity & Investment,BiT,Premises-Related Expenditure,R&M -Buildings DLO Charge,JCE & SONS LTD,05/10/2023,250.00
Prosperity & Investment,BiT,Premises-Related Expenditure,R&M -Buildings DLO Charge,JCE & SONS LTD,18/10/2023,312.00
Prosperity & Investment,BiT,Premises-Related Expenditure,R&M -Buildings DLO Charge,JCE & SONS LTD,18/10/2023,145.80
Prosperity & Investment,BiT,Premises-Related Expenditure,R&M -Buildings DLO Charge,JCE & SONS LTD,18/10/2023,374.11
Prosperity & Investment,BiT,Premises-Related Expenditure,R&M -Buildings DLO Charge,JCE & SONS LTD,20/10/2023,450.00
Prosperity & Investment,BiT,Premises-Related Expenditure,R&M -Buildings DLO Charge,JCE & SONS LTD,24/10/2023,260.50
Prosperity & Investment,BiT,Premises-Related Expenditure,R&M -Buildings DLO Charge,JCE & SONS LTD,24/10/2023,244.48
Prosperity & Investment,BiT,Premises-Related Expenditure,R&M -Buildings DLO Charge,JCE & SONS LTD,24/10/2023,220.84
Prosperity & Investment,BiT,Premises-Related Expenditure,R&M -Buildings DLO Charge,JCE & SONS LTD,24/10/2023,114.00
Prosperity & Investment,BiT,Premises-Related Expenditure,R&M -Buildings DLO Charge,JCE & SONS LTD,24/10/2023,215.50
Prosperity & Investment,BiT,Premises-Related Expenditure,Service Contracts,JCE & SONS LTD,20/10/2023,520.00
Prosperity & Investment,BiT,Premises-Related Expenditure,Service Contracts,JCE & SONS LTD,20/10/2023,150.00
Prosperity & Investment,BiT,Premises-Related Expenditure,R&M -Buildings DLO Charge,JCE & SONS LTD,24/10/2023,406.30
Prosperity & Investment,BiT,Premises-Related Expenditure,R&M -Buildings DLO Charge,JCE & SONS LTD,24/10/2023,110.60
Prosperity & Investment,BiT,Premises-Related Expenditure,R&M -Buildings DLO Charge,JCE & SONS LTD,24/10/2023,202.50
Prosperity & Investment,BiT,Premises-Related Expenditure,R&M -Buildings DLO Charge,JCE & SONS LTD,18/10/2023,137.70
Prosperity & Investment,BiT,Premises-Related Expenditure,R&M -Buildings DLO Charge,JCE & SONS LTD,24/10/2023,102.56
Prosperity & Investment,BiT,Premises-Related Expenditure,R&M -Buildings DLO Charge,JCE & SONS LTD,24/10/2023,558.65
Prosperity & Investment,BiT,Capital Expenditure,Payments to Contractor,JCE & SONS LTD,13/10/2023,225.00
Prosperity & Investment,Regeneration & Investment,Premises-Related Expenditure,R&M -Building Other,JCE & SONS LTD,27/10/2023,235.48
Prosperity & Investment,Regeneration & Investment,Third Party Payments,Contractor Recharge,JCE & SONS LTD,18/10/2023,"1,890.46"
Neighbourhood & Enforcement Services,"Highways, Engineering & Project Delivery",Employees,Training Expenses,JCT CONSULTANCY LIMITED,18/10/2023,555.00
Prosperity & Investment,BiT,Premises-Related Expenditure,R&M -Buildings DLO Charge,JGS Electrical Solutions Ltd.,18/10/2023,320.00
"Communities, Customer & Commercial Services",Sport & Leisure,Supplies & Services,Protective Clothing,MYWORKWEAR,12/10/2023,"1,072.65"
"Communities, Customer & Commercial Services",Sport & Leisure,Supplies & Services,Protective Clothing,MYWORKWEAR,12/10/2023,-356.40
Health & Wellbeing,Consultant in Public Health,Supplies & Services,Other Services,J U Removals Ltd,11/10/2023,365.00
"Communities, Customer & Commercial Services",Sport & Leisure,Supplies & Services,EEC Whole Milk,J DAIRIES,26/10/2023,799.37
"Communities, Customer & Commercial Services",Sport & Leisure,Supplies & Services,EEC Whole Milk,J DAIRIES,26/10/2023,"1,796.22"
"Communities, Customer & Commercial Services",Sport & Leisure,Supplies & Services,EEC Whole Milk,J DAIRIES,02/10/2023,821.08
"Communities, Customer & Commercial Services",Sport & Leisure,Supplies & Services,EEC Whole Milk,J DAIRIES,02/10/2023,"1,808.92"
"Communities, Customer & Commercial Services",Sport & Leisure,Supplies & Services,EEC Whole Milk,J DAIRIES,06/10/2023,811.20
"Communities, Customer & Commercial Services",Sport & Leisure,Supplies & Services,EEC Whole Milk,J DAIRIES,06/10/2023,"1,797.74"
"Communities, Customer & Commercial Services",Sport & Leisure,Supplies & Services,EEC Whole Milk,J DAIRIES,13/10/2023,799.37
"Communities, Customer & Commercial Services",Sport & Leisure,Supplies & Services,EEC Whole Milk,J DAIRIES,13/10/2023,"1,796.22"
"Communities, Customer & Commercial Services",Sport & Leisure,Supplies & Services,EEC Whole Milk,J DAIRIES,20/10/2023,799.37
"Communities, Customer & Commercial Services",Sport & Leisure,Supplies & Services,EEC Whole Milk,J DAIRIES,20/10/2023,"1,783.42"
Finance & Human Resources,Revenues,Supplies & Services,Printing - Other,J P Printers Limited,13/10/2023,269.00
"Communities, Customer & Commercial Services",Sport & Leisure,Supplies & Services,Provisions,J S Catering Butchers,03/10/2023,118.76
"Communities, Customer & Commercial Services",Sport & Leisure,Supplies & Services,Provisions,J S Catering Butchers,03/10/2023,208.50
"Communities, Customer & Commercial Services",Sport & Leisure,Supplies & Services,Provisions,J S Catering Butchers,03/10/2023,130.87
"Communities, Customer & Commercial Services",Sport & Leisure,Supplies & Services,Provisions,J S Catering Butchers,03/10/2023,156.15
"Communities, Customer & Commercial Services",Sport & Leisure,Supplies & Services,Provisions,J S Catering Butchers,03/10/2023,104.93
"Communities, Customer & Commercial Services",Sport & Leisure,Supplies & Services,Provisions,J S Catering Butchers,03/10/2023,110.40
"Communities, Customer & Commercial Services",Sport & Leisure,Supplies & Services,Provisions,J S Catering Butchers,03/10/2023,106.82
"Communities, Customer & Commercial Services",Sport & Leisure,Supplies & Services,Provisions,J S Catering Butchers,03/10/2023,292.80
"Communities, Customer & Commercial Services",Sport & Leisure,Supplies & Services,Provisions,J S Catering Butchers,09/10/2023,142.43
"Communities, Customer & Commercial Services",Sport & Leisure,Supplies & Services,Provisions,J S Catering Butchers,09/10/2023,124.91
"Communities, Customer & Commercial Services",Sport & Leisure,Supplies & Services,Provisions,J S Catering Butchers,09/10/2023,180.63
"Communities, Customer & Commercial Services",Sport & Leisure,Supplies & Services,Provisions,J S Catering Butchers,09/10/2023,103.11
"Communities, Customer & Commercial Services",Sport & Leisure,Supplies & Services,Provisions,J S Catering Butchers,09/10/2023,119.76
"Communities, Customer & Commercial Services",Sport & Leisure,Supplies & Services,Provisions,J S Catering Butchers,09/10/2023,206.55
"Communities, Customer & Commercial Services",Sport & Leisure,Supplies & Services,Provisions,J S Catering Butchers,09/10/2023,113.63
"Communities, Customer & Commercial Services",Sport & Leisure,Supplies & Services,Provisions,J S Catering Butchers,09/10/2023,190.76
"Communities, Customer & Commercial Services",Sport & Leisure,Supplies & Services,Provisions,J S Catering Butchers,25/10/2023,128.10
"Communities, Customer & Commercial Services",Sport & Leisure,Supplies & Services,Provisions,J S Catering Butchers,25/10/2023,104.93
"Communities, Customer & Commercial Services",Sport & Leisure,Supplies & Services,Provisions,J S Catering Butchers,25/10/2023,241.80
"Communities, Customer & Commercial Services",Sport & Leisure,Supplies & Services,Provisions,J S Catering Butchers,25/10/2023,348.93
"Communities, Customer & Commercial Services",Sport & Leisure,Supplies & Services,Provisions,J S Catering Butchers,25/10/2023,206.21
"Communities, Customer & Commercial Services",Sport & Leisure,Supplies & Services,Provisions,J S Catering Butchers,25/10/2023,110.40
"Communities, Customer & Commercial Services",Sport & Leisure,Supplies & Services,Provisions,J S Catering Butchers,27/10/2023,106.61
"Communities, Customer & Commercial Services",Sport & Leisure,Supplies & Services,Provisions,J S Catering Butchers,27/10/2023,173.40
"Communities, Customer & Commercial Services",Sport & Leisure,Supplies & Services,Provisions,J S Catering Butchers,27/10/2023,190.80
"Communities, Customer & Commercial Services",Sport & Leisure,Supplies & Services,Provisions,J S Catering Butchers,27/10/2023,121.50
"Communities, Customer & Commercial Services",Sport & Leisure,Supplies & Services,Provisions,J S Catering Butchers,13/10/2023,106.61
"Communities, Customer & Commercial Services",Sport & Leisure,Supplies & Services,Provisions,J S Catering Butchers,13/10/2023,238.33
"Communities, Customer & Commercial Services",Sport & Leisure,Supplies & Services,Provisions,J S Catering Butchers,13/10/2023,115.82
"Communities, Customer & Commercial Services",Sport & Leisure,Supplies & Services,Provisions,J S Catering Butchers,13/10/2023,358.07
"Communities, Customer & Commercial Services",Sport & Leisure,Supplies & Services,Provisions,J S Catering Butchers,13/10/2023,107.10
"Communities, Customer & Commercial Services",Sport & Leisure,Supplies & Services,Provisions,J S Catering Butchers,13/10/2023,100.43
"Communities, Customer & Commercial Services",Sport & Leisure,Supplies & Services,Provisions,J S Catering Butchers,13/10/2023,104.93
"Communities, Customer & Commercial Services",Sport & Leisure,Supplies & Services,Provisions,J S Catering Butchers,13/10/2023,103.11
"Communities, Customer & Commercial Services",Sport & Leisure,Supplies & Services,Provisions,J S Catering Butchers,03/10/2023,100.24
"Communities, Customer & Commercial Services",Sport & Leisure,Supplies & Services,Provisions,J S Catering Butchers,03/10/2023,331.85
"Communities, Customer & Commercial Services",Sport & Leisure,Supplies & Services,Provisions,J S Catering Butchers,03/10/2023,-231.00
"Communities, Customer & Commercial Services",Sport & Leisure,Supplies & Services,Provisions,J S Catering Butchers,13/10/2023,143.10
"Communities, Customer & Commercial Services",Sport & Leisure,Supplies & Services,Provisions,J S Catering Butchers,13/10/2023,106.62
"Communities, Customer & Commercial Services",Sport & Leisure,Supplies & Services,Provisions,J S Catering Butchers,25/10/2023,103.04
Prosperity & Investment,BiT,Premises-Related Expenditure,Service Contracts,JOHNSON CONTROLS LTD,20/10/2023,683.59
"Communities, Customer & Commercial Services",Community Services,Supplies & Services,Equipment - Purchase,JUST PROJECTORS,24/10/2023,490.42
Policy & Governance,Governance & Legal Services,Transport-Related Expenditure,Car Hire Charges,K & L CARS,10/10/2023,155.00
Prosperity & Investment,Regeneration & Investment,Capital Expenditure,External Professional Fees,Kajima Partnerships Ltd,24/10/2023,"10,581.19"
Prosperity & Investment,Regeneration & Investment,Capital Expenditure,External Professional Fees,Kajima Partnerships Ltd,24/10/2023,"9,268.46"
"Communities, Customer & Commercial Services",Customer Relationships & Welfare Services,Transfer Payments,Crisis Assistance Awards,Kings of the Road,09/10/2023,275.00
"Communities, Customer & Commercial Services",Customer Relationships & Welfare Services,Transfer Payments,Crisis Assistance Awards,Kings of the Road,13/10/2023,475.00
"Communities, Customer & Commercial Services",Customer Relationships & Welfare Services,Transfer Payments,Crisis Assistance Awards,Kings of the Road,12/10/2023,375.00
"Communities, Customer & Commercial Services",Customer Relationships & Welfare Services,Transfer Payments,Crisis Assistance Awards,Kings of the Road,12/10/2023,245.00
"Communities, Customer & Commercial Services",Customer Relationships & Welfare Services,Transfer Payments,Crisis Assistance Awards,Kings of the Road,13/10/2023,375.00
"Communities, Customer & Commercial Services",Customer Relationships & Welfare Services,Transfer Payments,Crisis Assistance Awards,Kings of the Road,31/10/2023,375.00
Children�s Safeguarding & Family Support,"Family Placements, Children in Care, Leaving Care & Emergency Duty Team",Supplies & Services,Form F Assessments,Kite Fostering Consultancy Ltd,04/10/2023,"2,005.67"
Prosperity & Investment,BiT,Premises-Related Expenditure,R&M -Buildings DLO Charge,KN Services Staffordshire Ltd,03/10/2023,"3,080.00"
Prosperity & Investment,BiT,Premises-Related Expenditure,R&M -Buildings DLO Charge,KN Services Staffordshire Ltd,03/10/2023,"3,300.00"
Prosperity & Investment,BiT,Premises-Related Expenditure,R&M -Buildings DLO Charge,KN Services Staffordshire Ltd,03/10/2023,950.00
Prosperity & Investment,BiT,Premises-Related Expenditure,R&M -Buildings DLO Charge,KN Services Staffordshire Ltd,24/10/2023,"2,640.00"
Prosperity & Investment,BiT,Premises-Related Expenditure,R&M -Buildings DLO Charge,KN Services Staffordshire Ltd,24/10/2023,350.00
Prosperity & Investment,BiT,Premises-Related Expenditure,R&M -Buildings DLO Charge,KN Services Staffordshire Ltd,24/10/2023,880.00
Prosperity & Investment,BiT,Premises-Related Expenditure,R&M -Buildings DLO Charge,KN Services Staffordshire Ltd,24/10/2023,"1,119.95"
Prosperity & Investment,BiT,Premises-Related Expenditure,R&M -Buildings DLO Charge,KN Services Staffordshire Ltd,24/10/2023,"1,760.00"
Prosperity & Investment,BiT,Premises-Related Expenditure,R&M -Buildings DLO Charge,KN Services Staffordshire Ltd,24/10/2023,659.66
"Communities, Customer & Commercial Services",Sport & Leisure,Supplies & Services,Other Materials,KOMPAN Limited,17/10/2023,151.61
Children�s Safeguarding & Family Support,"Family Placements, Children in Care, Leaving Care & Emergency Duty Team",Supplies & Services,Other Services,REDACTED PERSONAL INFORMATION,03/10/2023,121.71
Education & Skills,SEND (0-25),Third Party Payments,DSG - High Needs Block,LANDAU LTD,30/10/2023,"33,400.00"
"Communities, Customer & Commercial Services",Community Services,Supplies & Services,Grants To Voluntary Organis,LAWLEY & OVERDALE PARISH COUNCIL,17/10/2023,500.00
"Communities, Customer & Commercial Services",Community Services,Supplies & Services,Grants To Voluntary Organis,LAWLEY & OVERDALE PARISH COUNCIL,25/10/2023,450.00
Neighbourhood & Enforcement Services,Safer & Stronger Communities,Supplies & Services,Other Services,LAWLEY & OVERDALE PARISH COUNCIL,23/10/2023,180.00
Neighbourhood & Enforcement Services,Safer & Stronger Communities,Supplies & Services,Other Services,LAWLEY & OVERDALE PARISH COUNCIL,23/10/2023,490.00
Neighbourhood & Enforcement Services,Safer & Stronger Communities,Supplies & Services,Other Services,LAWLEY & OVERDALE PARISH COUNCIL,25/10/2023,"1,000.00"
Education & Skills,SEND (0-25),Third Party Payments,DSG - High Needs Block,Lawley Village Academy,16/10/2023,335.84
Finance & Human Resources,Revenues,Supplies & Services,Other Expenses,Learning Community Trust,04/10/2023,"3,571.92"
"Communities, Customer & Commercial Services",Sport & Leisure,Supplies & Services,Licences,L M Fitness UK Ltd,12/10/2023,"1,097.25"
"Communities, Customer & Commercial Services",Sport & Leisure,Supplies & Services,Licences,L M Fitness UK Ltd,13/10/2023,"1,097.25"
"Communities, Customer & Commercial Services",Sport & Leisure,Supplies & Services,Licences,L M Fitness UK Ltd,18/10/2023,682.50
Finance & Human Resources,Revenues,Supplies & Services,Printing - Other,LEXON GB LTD,03/10/2023,456.27
Finance & Human Resources,Revenues,Supplies & Services,Printing - Other,LEXON GB LTD,03/10/2023,291.54
Education & Skills,Pupil Support Services,Supplies & Services,Artistes Fees,Lichfield Cathedral School,02/10/2023,673.30
